Body name,Service Area,Dept,Capital/Revenue,Expenses Type,Detailed Expenses Type,Transaction number,Expense Code,Date,Amount,Supplier Name,Supplier ID
WANDSWORTH COUNCIL,CS,FINANCE,Revenue,"REPAIRS, ALTERATIONS & MTCE","REPS, ALTS & MTCE-BUILDINGS",498335,100410000,06-Oct-14,"1,162.00",OTIS LTD,SP0000139
WANDSWORTH COUNCIL,CS,FINANCE,Revenue,"REPAIRS, ALTERATIONS & MTCE","REPS, ALTS & MTCE-BUILDINGS",517788,100410000,31-Oct-14,"2,585.44",T BROWN GROUP LTD,SP0001050
WANDSWORTH COUNCIL,CS,ENVIRONMENT & COMMUNITY,Revenue,"REPAIRS, ALTERATIONS & MTCE","REPS, ALTS & MTCE-BUILDINGS",507036,10051000K0002P,20-Oct-14,"14,375.00",JONES LANG LASALLE,SP0008111
WANDSWORTH COUNCIL,CS,ENVIRONMENT & COMMUNITY,Revenue,"REPAIRS, ALTERATIONS & MTCE","REPS, ALTS & MTCE-BUILDINGS",516172,10051000K0002P,30-Oct-14,"1,000.00",DUNSIN SURVEYORS,SP0008185
WANDSWORTH COUNCIL,CS,ENVIRONMENT & COMMUNITY,Revenue,SERVICES,CONSULTANTS FEES,514842,100534200,29-Oct-14,"21,763.00",FEILDEN CLEGG BRADLEY STUDIOS,SP0006782
WANDSWORTH COUNCIL,CS,ENVIRONMENT & COMMUNITY,Revenue,SERVICES,CONSULTANTS FEES,514854,100534200,29-Oct-14,"2,600.00",RIGHT OF LIGHT CONSULTING LTD,SP0007191
WANDSWORTH COUNCIL,CS,ADMINISTRATION,Revenue,SERVICES,LEGAL & COURT COSTS,20293999,100534600,14-Oct-14,"8,640.00",HM REVENUE AND CUSTOMS,2017382
WANDSWORTH COUNCIL,CS,ENVIRONMENT & COMMUNITY,Revenue,RENTS,RENTS,499906,10061340K00941,09-Oct-14,"11,250.00",D&A (CAUSEWAY) LIMITED,SP0002628
WANDSWORTH COUNCIL,CS,ENVIRONMENT & COMMUNITY,Revenue,RENTS,RENTS,504440,10061340K00951,17-Oct-14,"5,250.00",C GOLFINGER,SP0007180
WANDSWORTH COUNCIL,CS,ADMINISTRATION,Revenue,SERVICES,LEGAL & COURT COSTS,20294002,100634600,14-Oct-14,"11,400.00",HM REVENUE AND CUSTOMS,2017382
WANDSWORTH COUNCIL,CS,ENVIRONMENT & COMMUNITY,Revenue,OTHER AGENCIES,HEALTHWATCH CONTRACT,501044,102043830,15-Oct-14,"2,319.00",WANDSWORTH CARE ALLIANCE,SP0008176
WANDSWORTH COUNCIL,PH,ENVIRONMENT & COMMUNITY,Revenue,SERVICES,PROJECT WORK,506994,102234800,22-Oct-14,"4,602.50",ELAYS NETWORK,SP0007047
WANDSWORTH COUNCIL,PH,ENVIRONMENT & COMMUNITY,Revenue,SERVICES,PROJECT WORK,506996,102234800,22-Oct-14,"4,602.50",ELAYS NETWORK,SP0007047
WANDSWORTH COUNCIL,PH,ENVIRONMENT & COMMUNITY,Revenue,SERVICES,PROJECT WORK,507033,102234800,22-Oct-14,"4,602.50",ELAYS NETWORK,SP0007047
WANDSWORTH COUNCIL,CS,ENVIRONMENT & COMMUNITY,Revenue,PRINTING STAT & GEN OFFICE EXP,PRINTING REGISTRATION A FORM,502262,103033440,16-Oct-14,"4,654.53",BANNER MANAGED COMMUNICATION,SP0003555
WANDSWORTH COUNCIL,CS,ENVIRONMENT & COMMUNITY,Revenue,COMMUNICATIONS & COMP,COMMUNICATIONS - POSTAGE,503235,103036000,16-Oct-14,587.96,ROYAL MAIL,SP0001067
WANDSWORTH COUNCIL,CS,ADMINISTRATION,Revenue,"EQUIPMENT, FURNITURE & MATS","EQUIPMENT, FURNITURE & MATS",20294358,103130000,20-Oct-14,920.00,DOWNS FLOORING LTD,2006584
WANDSWORTH COUNCIL,CS,ENVIRONMENT & COMMUNITY,Revenue,"EQUIPMENT, FURNITURE & MATS",FLOWERS,497195,103130170,08-Oct-14,960.00,PATRICIA WONG,SP0002085
WANDSWORTH COUNCIL,CS,ADMINISTRATION,Revenue,MISC,MISCELLANEOUS EXPENSES,20293895,103138500,17-Oct-14,15.50,THE KEEN GROUP LTD,2002696
WANDSWORTH COUNCIL,CDC,ADMINISTRATION,Revenue,MISC,MISCELLANEOUS EXPENSES,20293446,103338500,03-Oct-14,"16,169.56",The Copyright Licensing Agency,2991000
WANDSWORTH COUNCIL,PH,ADMINISTRATION,Revenue,HEALTH,PRESCRIBING SERVICES,20294577,106340550,23-Oct-14,454.63,SALASJI LTD FG443 T/A DUMLERS PHARMACY,2015434
WANDSWORTH COUNCIL,PH,ADMINISTRATION,Revenue,HEALTH,PRESCRIBING SERVICES,20294577,106340550,23-Oct-14,30.00,SALASJI LTD FG443 T/A DUMLERS PHARMACY,2015434
WANDSWORTH COUNCIL,PH,ADMINISTRATION,Revenue,HEALTH,PRESCRIBING SERVICES,20294697,106340550,23-Oct-14,50.00,FAZAL PHARMACY,2016874
WANDSWORTH COUNCIL,PH,ADMINISTRATION,Revenue,HEALTH,PRESCRIBING SERVICES,20294697,106340550,23-Oct-14,530.69,FAZAL PHARMACY,2016874
WANDSWORTH COUNCIL,PH,ADMINISTRATION,Revenue,HEALTH,PRESCRIBING SERVICES,20294698,106340550,23-Oct-14,54.00,FAZAL PHARMACY,2016874
WANDSWORTH COUNCIL,PH,ADMINISTRATION,Revenue,HEALTH,PRESCRIBING SERVICES,20294698,106340550,23-Oct-14,571.47,FAZAL PHARMACY,2016874
WANDSWORTH COUNCIL,PH,ADMINISTRATION,Revenue,HEALTH,PRESCRIBING SERVICES,20294699,106340550,23-Oct-14,66.00,FAZAL PHARMACY,2016874
WANDSWORTH COUNCIL,PH,ADMINISTRATION,Revenue,HEALTH,PRESCRIBING SERVICES,20294699,106340550,23-Oct-14,677.85,FAZAL PHARMACY,2016874
WANDSWORTH COUNCIL,PH,ADMINISTRATION,Revenue,HEALTH,YOUNG PEOPLES HEALTH AGENCY,20293287,106341980,01-Oct-14,"9,520.00",CATCH 22,2005902
WANDSWORTH COUNCIL,PH,ADMINISTRATION,Revenue,COMMUNICATIONS & COMP,COMMUNICATIONS - TELEPHONES,20293278,107836020,02-Oct-14,21.00,SUNA COMMUNICATION LTD,2003083
WANDSWORTH COUNCIL,NGF CS,ADMINISTRATION,Revenue,PRIVATE,REFUSE COLLECTN & PEST CONTROL,20294932,111045500,28-Oct-14,497.21,SITA UK LTD,2003271
WANDSWORTH COUNCIL,NGF CS,ADMINISTRATION,Revenue,PRIVATE,REFUSE COLLECTN & PEST CONTROL,20294934,111045500,28-Oct-14,"1,202.69",SITA UK LTD,2003271
WANDSWORTH COUNCIL,NGF CS,ADMINISTRATION,Revenue,PRIVATE,REFUSE COLLECTN & PEST CONTROL,20294931,111545500,28-Oct-14,670.91,SITA UK LTD,2003271
WANDSWORTH COUNCIL,NGF CS,FINANCE,Revenue,"REPAIRS, ALTERATIONS & MTCE","REPS, ALTS & MTCE-BUILDINGS",501723,11181000L08301,14-Oct-14,"1,005.62",DH CROFTS LTD,SP0000076
WANDSWORTH COUNCIL,NGF CS,FINANCE,Revenue,"REPAIRS, ALTERATIONS & MTCE","REPS, ALTS & MTCE-BUILDINGS",517856,11181000L08301,31-Oct-14,"1,768.36",DH CROFTS LTD,SP0000076
WANDSWORTH COUNCIL,NGF CS,FINANCE,Revenue,"REPAIRS, ALTERATIONS & MTCE","REPS, ALTS & MTCE-BUILDINGS",517857,11181000L08301,31-Oct-14,"1,162.52",DH CROFTS LTD,SP0000076
WANDSWORTH COUNCIL,NGF CS,FINANCE,Revenue,"REPAIRS, ALTERATIONS & MTCE","REPS, ALTS & MTCE-BUILDINGS",504654,11181000L08301,16-Oct-14,"2,546.71",T BROWN GROUP LTD,SP0001050
WANDSWORTH COUNCIL,NGF CS,FINANCE,Revenue,"REPAIRS, ALTERATIONS & MTCE","REPS, ALTS & MTCE-BUILDINGS",517877,11181000L08301,31-Oct-14,"1,072.50",T BROWN GROUP LTD,SP0001050
WANDSWORTH COUNCIL,NGF CS,FINANCE,Revenue,"REPAIRS, ALTERATIONS & MTCE","REPS, ALTS & MTCE-BUILDINGS",501638,11181000L08305,14-Oct-14,677.88,ACR LONDON LTD,SP0000193
WANDSWORTH COUNCIL,NGF CS,FINANCE,Revenue,"REPAIRS, ALTERATIONS & MTCE","REPS, ALTS & MTCE-BUILDINGS",504674,11181000L08305,16-Oct-14,"2,174.00",ACR LONDON LTD,SP0000193
WANDSWORTH COUNCIL,NGF CS,FINANCE,Revenue,"REPAIRS, ALTERATIONS & MTCE","REPS, ALTS & MTCE-BUILDINGS",517746,11181000L08305,31-Oct-14,972.79,ELECTROLOK COMPANY (SECURITY) LTD,SP0000966
WANDSWORTH COUNCIL,NGF CS,FINANCE,Revenue,"REPAIRS, ALTERATIONS & MTCE","REPS, ALTS & MTCE-BUILDINGS",501623,11181000L0830A,14-Oct-14,466.00,DOORWISE LTD,SP0000017
WANDSWORTH COUNCIL,NGF CS,FINANCE,Revenue,"REPAIRS, ALTERATIONS & MTCE","REPS, ALTS & MTCE-BUILDINGS",517928,11181000L0830A,31-Oct-14,952.96,DH CROFTS LTD,SP0000076
WANDSWORTH COUNCIL,NGF CS,FINANCE,Revenue,"REPAIRS, ALTERATIONS & MTCE","REPS, ALTS & MTCE-BUILDINGS",501635,11181000L0830K,14-Oct-14,"1,488.80",ACR LONDON LTD,SP0000193
WANDSWORTH COUNCIL,NGF CS,FINANCE,Revenue,"REPAIRS, ALTERATIONS & MTCE","REPS, ALTS & MTCE-BUILDINGS",501595,11181000L0830V,14-Oct-14,"1,833.40",DH CROFTS LTD,SP0000076
WANDSWORTH COUNCIL,NGF CS,FINANCE,Revenue,"REPAIRS, ALTERATIONS & MTCE","REPS, ALTS & MTCE-BUILDINGS",517950,11181000L08331,31-Oct-14,"1,013.42",DH CROFTS LTD,SP0000076
WANDSWORTH COUNCIL,NGF CS,FINANCE,Revenue,"REPAIRS, ALTERATIONS & MTCE","REPS, ALTS & MTCE-BUILDINGS",498344,11181000L08331,06-Oct-14,514.00,DEBA UK LTD,SP0005811
WANDSWORTH COUNCIL,NGF CS,FINANCE,Revenue,"REPAIRS, ALTERATIONS & MTCE","REPS, ALTS & MTCE-BUILDINGS",517864,11181000L08335,31-Oct-14,766.85,DH CROFTS LTD,SP0000076
WANDSWORTH COUNCIL,NGF CS,FINANCE,Revenue,"REPAIRS, ALTERATIONS & MTCE","REPS, ALTS & MTCE-BUILDINGS",517952,11181000L08337,31-Oct-14,555.92,DH CROFTS LTD,SP0000076
WANDSWORTH COUNCIL,NGF CS,FINANCE,Revenue,"REPAIRS, ALTERATIONS & MTCE","REPS, ALTS & MTCE-BUILDINGS",501522,11181000L0833A,14-Oct-14,"3,127.66",DH CROFTS LTD,SP0000076
WANDSWORTH COUNCIL,NGF CS,FINANCE,Revenue,"REPAIRS, ALTERATIONS & MTCE","REPS, ALTS & MTCE-BUILDINGS",517949,11181000L0833A,31-Oct-14,"1,970.11",DH CROFTS LTD,SP0000076
WANDSWORTH COUNCIL,NGF CS,FINANCE,Revenue,"REPAIRS, ALTERATIONS & MTCE","REPS, ALTS & MTCE-BUILDINGS",517583,11181000L0833A,31-Oct-14,"2,100.09",ACR LONDON LTD,SP0000193
WANDSWORTH COUNCIL,NGF CS,FINANCE,Revenue,"REPAIRS, ALTERATIONS & MTCE","REPS, ALTS & MTCE-BUILDINGS",498342,11181000L0833A,06-Oct-14,514.00,DEBA UK LTD,SP0005811
WANDSWORTH COUNCIL,NGF CS,FINANCE,Revenue,"REPAIRS, ALTERATIONS & MTCE","REPS, ALTS & MTCE-BUILDINGS",504666,11181000L0833B,16-Oct-14,682.53,ACR LONDON LTD,SP0000193
WANDSWORTH COUNCIL,NGF CS,FINANCE,Revenue,"REPAIRS, ALTERATIONS & MTCE","REPS, ALTS & MTCE-BUILDINGS",504667,11181000L0833C,16-Oct-14,577.53,ACR LONDON LTD,SP0000193
WANDSWORTH COUNCIL,NGF CS,FINANCE,Revenue,"REPAIRS, ALTERATIONS & MTCE","REPS, ALTS & MTCE-BUILDINGS",504670,11181000L0833D,16-Oct-14,840.04,ACR LONDON LTD,SP0000193
WANDSWORTH COUNCIL,NGF CS,FINANCE,Revenue,"REPAIRS, ALTERATIONS & MTCE","REPS, ALTS & MTCE-BUILDINGS",504671,11181000L0833E,16-Oct-14,"1,207.55",ACR LONDON LTD,SP0000193
WANDSWORTH COUNCIL,NGF CS,FINANCE,Revenue,"REPAIRS, ALTERATIONS & MTCE","REPS, ALTS & MTCE-BUILDINGS",517591,11181000L0833F,31-Oct-14,840.04,ACR LONDON LTD,SP0000193
WANDSWORTH COUNCIL,NGF CS,FINANCE,Revenue,"REPAIRS, ALTERATIONS & MTCE","REPS, ALTS & MTCE-BUILDINGS",517865,11181000L0833V,31-Oct-14,438.10,DH CROFTS LTD,SP0000076
WANDSWORTH COUNCIL,NGF CS,FINANCE,Revenue,"REPAIRS, ALTERATIONS & MTCE","REPS, ALTS & MTCE-BUILDINGS",517782,11181000L0833X,31-Oct-14,591.06,H S JACKSON & SON FENCING LTD,SP0000705
WANDSWORTH COUNCIL,NGF CS,ADMINISTRATION,Revenue,PRIVATE,REFUSE COLLECTN & PEST CONTROL,20294935,112045500,28-Oct-14,169.57,SITA UK LTD,2003271
WANDSWORTH COUNCIL,NGF CS,ADMINISTRATION,Revenue,PRIVATE,REFUSE COLLECTN & PEST CONTROL,20294935,112145500,28-Oct-14,169.58,SITA UK LTD,2003271
WANDSWORTH COUNCIL,NGF CS,ADMINISTRATION,Revenue,PRIVATE,REFUSE COLLECTN & PEST CONTROL,20294935,112245500,28-Oct-14,169.58,SITA UK LTD,2003271
WANDSWORTH COUNCIL,NGF CS,ADMINISTRATION,Revenue,PRIVATE,REFUSE COLLECTN & PEST CONTROL,20294935,112345500,28-Oct-14,169.58,SITA UK LTD,2003271
WANDSWORTH COUNCIL,NGF CS,ADMINISTRATION,Revenue,PRIVATE,REFUSE COLLECTN & PEST CONTROL,20294937,112945500,28-Oct-14,678.31,SITA UK LTD,2003271
WANDSWORTH COUNCIL,NGF CS,ADMINISTRATION,Revenue,CLEANING & DOMESTIC SUPPLIES,CLEANING CONTRACT,20294361,113813020,20-Oct-14,"46,324.96",OCEAN INTEGRATED SERVICES LTD,2009026
WANDSWORTH COUNCIL,NGF CS,ADMINISTRATION,Revenue,CLEANING & DOMESTIC SUPPLIES,CLEANING CONTRACT,20293459,113813020,07-Oct-14,"3,051.60",PHS GROUP PLC,2009031
WANDSWORTH COUNCIL,NGF CS,ADMINISTRATION,Revenue,CLEANING & DOMESTIC SUPPLIES,CLEANING CONTRACT,20294360,113813020,20-Oct-14,"3,051.60",PHS GROUP PLC,2009031
WANDSWORTH COUNCIL,NGF CS,ADMINISTRATION,Revenue,CLEANING & DOMESTIC SUPPLIES,WINDOW CLEANING,20294939,113813060,28-Oct-14,"6,350.00",PARKERS CLEANING CONTRACTORS LTD,2004677
WANDSWORTH COUNCIL,NGF CS,ADMINISTRATION,Revenue,"EQUIPMENT, FURNITURE & MATS","EQUIPMENT, FURNITURE & MATS",20293905,114030000,17-Oct-14,548.00,SOUND ADVICE P.A. INSTALLATION LTD,2002173
WANDSWORTH COUNCIL,NGF CS,ADMINISTRATION,Revenue,COMMUNICATIONS & COMP,I.T. EQUIPMENT & MAINTENANCE,20293278,114136210,02-Oct-14,21.00,SUNA COMMUNICATION LTD,2003083
WANDSWORTH COUNCIL,NGF CDC,ADMINISTRATION,Revenue,"REPAIRS, ALTERATIONS & MTCE",REMOVALS & REORGANISATIONS,20293278,11421014K07117,02-Oct-14,36.00,SUNA COMMUNICATION LTD,2003083
WANDSWORTH COUNCIL,NGF CDC,ADMINISTRATION,Revenue,"REPAIRS, ALTERATIONS & MTCE",REMOVALS & REORGANISATIONS,20293680,11421014K07207,10-Oct-14,78.00,JT & SONS RELOCATIONS,2018113
WANDSWORTH COUNCIL,NGF CDC,ADMINISTRATION,Revenue,"REPAIRS, ALTERATIONS & MTCE",REMOVALS & REORGANISATIONS,20293680,11421014K07207,10-Oct-14,780.00,JT & SONS RELOCATIONS,2018113
WANDSWORTH COUNCIL,NGF CDC,ADMINISTRATION,Revenue,"REPAIRS, ALTERATIONS & MTCE",REMOVALS & REORGANISATIONS,20295063,11421014K07207,31-Oct-14,725.40,JT & SONS RELOCATIONS,2018113
WANDSWORTH COUNCIL,NGF CDC,ADMINISTRATION,Revenue,"REPAIRS, ALTERATIONS & MTCE",REMOVALS & REORGANISATIONS,20295055,11421014K07237,31-Oct-14,525.00,JT & SONS RELOCATIONS,2018113
WANDSWORTH COUNCIL,NGF CDC,ADMINISTRATION,Revenue,"REPAIRS, ALTERATIONS & MTCE",REMOVALS & REORGANISATIONS,20295058,11421014K07237,31-Oct-14,"1,125.00",JT & SONS RELOCATIONS,2018113
WANDSWORTH COUNCIL,NGF CDC,ADMINISTRATION,Revenue,"REPAIRS, ALTERATIONS & MTCE",REMOVALS & REORGANISATIONS,20295058,11421014K07237,31-Oct-14,112.50,JT & SONS RELOCATIONS,2018113
WANDSWORTH COUNCIL,NGF CDC,ADMINISTRATION,Revenue,"REPAIRS, ALTERATIONS & MTCE",REMOVALS & REORGANISATIONS,20295060,11421014K07247,31-Oct-14,780.00,JT & SONS RELOCATIONS,2018113
WANDSWORTH COUNCIL,NGF CDC,ADMINISTRATION,Revenue,"REPAIRS, ALTERATIONS & MTCE",REMOVALS & REORGANISATIONS,20295061,11421014K07247,31-Oct-14,"1,046.00",JT & SONS RELOCATIONS,2018113
WANDSWORTH COUNCIL,NGF CDC,ADMINISTRATION,Revenue,"REPAIRS, ALTERATIONS & MTCE",REMOVALS & REORGANISATIONS,20293278,11421014K07287,02-Oct-14,141.80,SUNA COMMUNICATION LTD,2003083
WANDSWORTH COUNCIL,NGF CDC,ADMINISTRATION,Revenue,"REPAIRS, ALTERATIONS & MTCE",REMOVALS & REORGANISATIONS,20293681,11421014K07287,10-Oct-14,525.00,JT & SONS RELOCATIONS,2018113
WANDSWORTH COUNCIL,NGF CDC,ADMINISTRATION,Revenue,"REPAIRS, ALTERATIONS & MTCE",REMOVALS & REORGANISATIONS,20295056,11421014K07287,31-Oct-14,525.00,JT & SONS RELOCATIONS,2018113
WANDSWORTH COUNCIL,NGF CDC,ADMINISTRATION,Revenue,"REPAIRS, ALTERATIONS & MTCE",REMOVALS & REORGANISATIONS,20295063,11421014K07287,31-Oct-14,444.60,JT & SONS RELOCATIONS,2018113
WANDSWORTH COUNCIL,NGF CDC,ADMINISTRATION,Revenue,"REPAIRS, ALTERATIONS & MTCE",REMOVALS & REORGANISATIONS,20295209,11421014K07287,31-Oct-14,"3,475.69",JT & SONS RELOCATIONS,2018113
WANDSWORTH COUNCIL,NGF CDC,ADMINISTRATION,Revenue,COMMUNICATIONS & COMP,TELECOMMUNICATIONS SLA,20293278,11423652K07195,02-Oct-14,564.00,SUNA COMMUNICATION LTD,2003083
WANDSWORTH COUNCIL,NGF CDC,ADMINISTRATION,Revenue,COMMUNICATIONS & COMP,TELECOMMUNICATIONS SLA,20293278,11423652K07245,02-Oct-14,"1,166.00",SUNA COMMUNICATION LTD,2003083
WANDSWORTH COUNCIL,NGF CDC,ADMINISTRATION,Revenue,COMMUNICATIONS & COMP,TELECOMMUNICATIONS SLA,20293942,11423652K07245,14-Oct-14,510.00,SUNA COMMUNICATION LTD,2003083
WANDSWORTH COUNCIL,NGF CDC,ADMINISTRATION,Revenue,COMMUNICATIONS & COMP,TELECOMMUNICATIONS SLA,20293278,11423652K07265,02-Oct-14,126.00,SUNA COMMUNICATION LTD,2003083
WANDSWORTH COUNCIL,NGF CDC,ADMINISTRATION,Revenue,COMMUNICATIONS & COMP,TELECOMMUNICATIONS SLA,20293278,11423652K07285,02-Oct-14,42.00,SUNA COMMUNICATION LTD,2003083
WANDSWORTH COUNCIL,NGF CDC,ADMINISTRATION,Revenue,COMMUNICATIONS & COMP,TELECOMMUNICATIONS SLA,20293278,11423652K07285,02-Oct-14,45.16,SUNA COMMUNICATION LTD,2003083
WANDSWORTH COUNCIL,NGF CDC,ADMINISTRATION,Revenue,COMMUNICATIONS & COMP,TELECOMMUNICATIONS SLA,20293278,11423652K07295,02-Oct-14,42.00,SUNA COMMUNICATION LTD,2003083
WANDSWORTH COUNCIL,NGF CDC,ADMINISTRATION,Revenue,COMMUNICATIONS & COMP,TELECOMMUNICATIONS SLA,20293278,11423652K07305,02-Oct-14,79.00,SUNA COMMUNICATION LTD,2003083
WANDSWORTH COUNCIL,NGF CDC,ADMINISTRATION,Revenue,COMMUNICATIONS & COMP,TELECOMMUNICATIONS SLA,20293278,11423652K07305,02-Oct-14,63.00,SUNA COMMUNICATION LTD,2003083
WANDSWORTH COUNCIL,NGF CDC,FINANCE,Revenue,PRIVATE,GENERAL CONTRACT WORK,501503,11424537K07061,14-Oct-14,"9,500.00",DH CROFTS LTD,SP0000076
WANDSWORTH COUNCIL,NGF CDC,FINANCE,Revenue,PRIVATE,GENERAL CONTRACT WORK,501553,11424537K07062,14-Oct-14,"1,945.47",DH CROFTS LTD,SP0000076
WANDSWORTH COUNCIL,NGF CDC,FINANCE,Revenue,PRIVATE,GENERAL CONTRACT WORK,501513,11424537K07091,14-Oct-14,"9,000.00",DH CROFTS LTD,SP0000076
WANDSWORTH COUNCIL,NGF CDC,FINANCE,Revenue,PRIVATE,GENERAL CONTRACT WORK,501514,11424537K07091,14-Oct-14,"2,000.00",DH CROFTS LTD,SP0000076
WANDSWORTH COUNCIL,NGF CDC,FINANCE,Revenue,PRIVATE,GENERAL CONTRACT WORK,517535,11424537K07091,31-Oct-14,950.00,DOWNS FLOORING LTD,SP0000833
WANDSWORTH COUNCIL,NGF CDC,FINANCE,Revenue,PRIVATE,GENERAL CONTRACT WORK,517535,11424537K07091,31-Oct-14,300.00,DOWNS FLOORING LTD,SP0000833
WANDSWORTH COUNCIL,NGF CDC,FINANCE,Revenue,PRIVATE,GENERAL CONTRACT WORK,501567,11424537K07171,14-Oct-14,"1,277.39",DH CROFTS LTD,SP0000076
WANDSWORTH COUNCIL,NGF CDC,FINANCE,Revenue,PRIVATE,GENERAL CONTRACT WORK,501590,11424537K07171,14-Oct-14,"9,488.44",DH CROFTS LTD,SP0000076
WANDSWORTH COUNCIL,NGF CDC,FINANCE,Revenue,PRIVATE,GENERAL CONTRACT WORK,501608,11424537K07171,14-Oct-14,446.65,DH CROFTS LTD,SP0000076
WANDSWORTH COUNCIL,NGF CDC,FINANCE,Revenue,PRIVATE,GENERAL CONTRACT WORK,501681,11424537K07171,14-Oct-14,"1,140.00",DOWNS FLOORING LTD,SP0000833
WANDSWORTH COUNCIL,NGF CDC,FINANCE,Revenue,PRIVATE,GENERAL CONTRACT WORK,501681,11424537K07171,14-Oct-14,300.00,DOWNS FLOORING LTD,SP0000833
WANDSWORTH COUNCIL,NGF CDC,FINANCE,Revenue,PRIVATE,GENERAL CONTRACT WORK,504624,11424537K07171,16-Oct-14,450.00,DOWNS FLOORING LTD,SP0000833
WANDSWORTH COUNCIL,NGF CDC,FINANCE,Revenue,PRIVATE,GENERAL CONTRACT WORK,504624,11424537K07171,16-Oct-14,654.00,DOWNS FLOORING LTD,SP0000833
WANDSWORTH COUNCIL,NGF CDC,FINANCE,Revenue,PRIVATE,GENERAL CONTRACT WORK,504625,11424537K07241,16-Oct-14,600.00,DOWNS FLOORING LTD,SP0000833
WANDSWORTH COUNCIL,NGF CDC,FINANCE,Revenue,PRIVATE,GENERAL CONTRACT WORK,504625,11424537K07241,16-Oct-14,872.00,DOWNS FLOORING LTD,SP0000833
WANDSWORTH COUNCIL,NGF CDC,FINANCE,Revenue,PRIVATE,GENERAL CONTRACT WORK,517537,11424537K07241,31-Oct-14,"1,052.00",DOWNS FLOORING LTD,SP0000833
WANDSWORTH COUNCIL,NGF CDC,FINANCE,Revenue,PRIVATE,GENERAL CONTRACT WORK,517537,11424537K07241,31-Oct-14,400.00,DOWNS FLOORING LTD,SP0000833
WANDSWORTH COUNCIL,NGF CDC,FINANCE,Revenue,PRIVATE,GENERAL CONTRACT WORK,517538,11424537K07241,31-Oct-14,450.00,DOWNS FLOORING LTD,SP0000833
WANDSWORTH COUNCIL,NGF CDC,FINANCE,Revenue,PRIVATE,GENERAL CONTRACT WORK,517538,11424537K07241,31-Oct-14,860.00,DOWNS FLOORING LTD,SP0000833
WANDSWORTH COUNCIL,NGF CDC,FINANCE,Revenue,PRIVATE,GENERAL CONTRACT WORK,517766,11424537K07241,31-Oct-14,400.00,DOWNS FLOORING LTD,SP0000833
WANDSWORTH COUNCIL,NGF CDC,FINANCE,Revenue,PRIVATE,GENERAL CONTRACT WORK,517766,11424537K07241,31-Oct-14,"1,030.00",DOWNS FLOORING LTD,SP0000833
WANDSWORTH COUNCIL,NGF CDC,FINANCE,Revenue,PRIVATE,GENERAL CONTRACT WORK,501510,11424537K07271,14-Oct-14,"2,500.00",DH CROFTS LTD,SP0000076
WANDSWORTH COUNCIL,NGF CDC,FINANCE,Revenue,PRIVATE,GENERAL CONTRACT WORK,504627,11424537K07271,16-Oct-14,780.00,DOWNS FLOORING LTD,SP0000833
WANDSWORTH COUNCIL,NGF CDC,FINANCE,Revenue,PRIVATE,GENERAL CONTRACT WORK,504627,11424537K07271,16-Oct-14,300.00,DOWNS FLOORING LTD,SP0000833
WANDSWORTH COUNCIL,NGF CDC,FINANCE,Revenue,PRIVATE,GENERAL CONTRACT WORK,504633,11424537K07271,16-Oct-14,300.00,DOWNS FLOORING LTD,SP0000833
WANDSWORTH COUNCIL,NGF CDC,FINANCE,Revenue,PRIVATE,GENERAL CONTRACT WORK,504633,11424537K07271,16-Oct-14,960.00,DOWNS FLOORING LTD,SP0000833
WANDSWORTH COUNCIL,NGF CDC,FINANCE,Revenue,PRIVATE,GENERAL CONTRACT WORK,504634,11424537K07271,16-Oct-14,780.00,DOWNS FLOORING LTD,SP0000833
WANDSWORTH COUNCIL,NGF CDC,FINANCE,Revenue,PRIVATE,GENERAL CONTRACT WORK,504634,11424537K07271,16-Oct-14,300.00,DOWNS FLOORING LTD,SP0000833
WANDSWORTH COUNCIL,NGF CDC,FINANCE,Revenue,PRIVATE,GENERAL CONTRACT WORK,501502,11424537K07291,14-Oct-14,"4,900.00",DH CROFTS LTD,SP0000076
WANDSWORTH COUNCIL,NGF CDC,FINANCE,Revenue,PRIVATE,GENERAL CONTRACT WORK,501504,11424537K07291,14-Oct-14,"9,500.00",DH CROFTS LTD,SP0000076
WANDSWORTH COUNCIL,NGF CDC,FINANCE,Revenue,PRIVATE,GENERAL CONTRACT WORK,517536,11424537K07291,31-Oct-14,400.00,DOWNS FLOORING LTD,SP0000833
WANDSWORTH COUNCIL,NGF CDC,FINANCE,Revenue,PRIVATE,GENERAL CONTRACT WORK,517536,11424537K07291,31-Oct-14,"1,096.00",DOWNS FLOORING LTD,SP0000833
WANDSWORTH COUNCIL,NGF CDC,FINANCE,Revenue,PRIVATE,GENERAL CONTRACT WORK,517539,11424537K07291,31-Oct-14,930.00,DOWNS FLOORING LTD,SP0000833
WANDSWORTH COUNCIL,NGF CDC,FINANCE,Revenue,PRIVATE,GENERAL CONTRACT WORK,517539,11424537K07291,31-Oct-14,350.00,DOWNS FLOORING LTD,SP0000833
WANDSWORTH COUNCIL,NGF CDC,FINANCE,Revenue,PRIVATE,GENERAL CONTRACT WORK,517767,11424537K07291,31-Oct-14,350.00,DOWNS FLOORING LTD,SP0000833
WANDSWORTH COUNCIL,NGF CDC,FINANCE,Revenue,PRIVATE,GENERAL CONTRACT WORK,517767,11424537K07291,31-Oct-14,970.00,DOWNS FLOORING LTD,SP0000833
WANDSWORTH COUNCIL,NGF CDC,FINANCE,Revenue,PRIVATE,GENERAL CONTRACT WORK,501511,11424537K07301,14-Oct-14,"5,200.00",DH CROFTS LTD,SP0000076
WANDSWORTH COUNCIL,NGF CDC,FINANCE,Revenue,PRIVATE,GENERAL CONTRACT WORK,517524,11424537K07301,31-Oct-14,"1,034.00",DH CROFTS LTD,SP0000076
WANDSWORTH COUNCIL,NGF CDC,FINANCE,Revenue,PRIVATE,GENERAL CONTRACT WORK,517534,11424537K07301,31-Oct-14,"2,266.00",DH CROFTS LTD,SP0000076
WANDSWORTH COUNCIL,NGF CDC,FINANCE,Revenue,PRIVATE,GENERAL CONTRACT WORK,504626,11424537K07301,16-Oct-14,"1,032.00",DOWNS FLOORING LTD,SP0000833
WANDSWORTH COUNCIL,NGF CDC,FINANCE,Revenue,PRIVATE,GENERAL CONTRACT WORK,504626,11424537K07301,16-Oct-14,300.00,DOWNS FLOORING LTD,SP0000833
WANDSWORTH COUNCIL,NGF CDC,FINANCE,Revenue,PRIVATE,GENERAL CONTRACT WORK,504628,11424537K07301,16-Oct-14,300.00,DOWNS FLOORING LTD,SP0000833
WANDSWORTH COUNCIL,NGF CDC,FINANCE,Revenue,PRIVATE,GENERAL CONTRACT WORK,504628,11424537K07301,16-Oct-14,705.00,DOWNS FLOORING LTD,SP0000833
WANDSWORTH COUNCIL,NGF CDC,FINANCE,Revenue,PRIVATE,GENERAL CONTRACT WORK,504629,11424537K07301,16-Oct-14,150.00,DOWNS FLOORING LTD,SP0000833
WANDSWORTH COUNCIL,NGF CDC,FINANCE,Revenue,PRIVATE,GENERAL CONTRACT WORK,504629,11424537K07301,16-Oct-14,606.00,DOWNS FLOORING LTD,SP0000833
WANDSWORTH COUNCIL,NGF CDC,FINANCE,Revenue,PRIVATE,GENERAL CONTRACT WORK,504630,11424537K07301,16-Oct-14,780.00,DOWNS FLOORING LTD,SP0000833
WANDSWORTH COUNCIL,NGF CDC,FINANCE,Revenue,PRIVATE,GENERAL CONTRACT WORK,504630,11424537K07301,16-Oct-14,300.00,DOWNS FLOORING LTD,SP0000833
WANDSWORTH COUNCIL,NGF CDC,FINANCE,Revenue,PRIVATE,GENERAL CONTRACT WORK,504631,11424537K07301,16-Oct-14,780.00,DOWNS FLOORING LTD,SP0000833
WANDSWORTH COUNCIL,NGF CDC,FINANCE,Revenue,PRIVATE,GENERAL CONTRACT WORK,504631,11424537K07301,16-Oct-14,300.00,DOWNS FLOORING LTD,SP0000833
WANDSWORTH COUNCIL,NGF CDC,FINANCE,Revenue,PRIVATE,GENERAL CONTRACT WORK,504632,11424537K07301,16-Oct-14,780.00,DOWNS FLOORING LTD,SP0000833
WANDSWORTH COUNCIL,NGF CDC,FINANCE,Revenue,PRIVATE,GENERAL CONTRACT WORK,504632,11424537K07301,16-Oct-14,300.00,DOWNS FLOORING LTD,SP0000833
WANDSWORTH COUNCIL,NGF CDC,FINANCE,Revenue,PRIVATE,GENERAL CONTRACT WORK,517521,11424537K07311,31-Oct-14,"5,522.00",DH CROFTS LTD,SP0000076
WANDSWORTH COUNCIL,NGF CDC,FINANCE,Revenue,PRIVATE,GENERAL CONTRACT WORK,517522,11424537K07311,31-Oct-14,"7,768.75",DH CROFTS LTD,SP0000076
WANDSWORTH COUNCIL,NGF CDC,FINANCE,Revenue,PRIVATE,GENERAL CONTRACT WORK,517523,11424537K07311,31-Oct-14,"4,734.40",DH CROFTS LTD,SP0000076
WANDSWORTH COUNCIL,NGF CDC,FINANCE,Revenue,PRIVATE,GENERAL CONTRACT WORK,517749,11424537K07311,31-Oct-14,"6,683.60",DH CROFTS LTD,SP0000076
WANDSWORTH COUNCIL,NGF CDC,FINANCE,Revenue,PRIVATE,GENERAL CONTRACT WORK,517750,11424537K07311,31-Oct-14,"1,947.00",DH CROFTS LTD,SP0000076
WANDSWORTH COUNCIL,NGF CDC,FINANCE,Revenue,PRIVATE,GENERAL CONTRACT WORK,517541,11424537K07341,31-Oct-14,"2,805.00",AGB ENVIRONMENTAL LTD,SP0004287
WANDSWORTH COUNCIL,NGF CS,FINANCE,Revenue,WATER,WATER CHARGES (METERED),20294667,114313810,27-Oct-14,711.86,THAMES WATER (A/C 00286125),2002360
WANDSWORTH COUNCIL,NGF CS,ENVIRONMENT & COMMUNITY,Revenue,SERVICES,PRACTICE CERTIFICATES,508142,120134780,22-Oct-14,"4,928.00",THE LAW SOCIETY,SP0003358
WANDSWORTH COUNCIL,NGF CS,ENVIRONMENT & COMMUNITY,Revenue,COMMUNICATIONS & COMP,COMMUNICATIONS - POSTAGE,513625,120136000,27-Oct-14,750.00,DX NETWORK SERVICES LTD,SP0003147
WANDSWORTH COUNCIL,NGF CS,ADMINISTRATION,Revenue,COMMUNICATIONS & COMP,I.T. EQUIPMENT & MAINTENANCE,20293759,120136210,13-Oct-14,853.42,FATHOM,2015394
WANDSWORTH COUNCIL,NGF CS,ENVIRONMENT & COMMUNITY,Revenue,COMMUNICATIONS & COMP,I.T. EQUIPMENT & MAINTENANCE,507219,120136210,21-Oct-14,"6,050.00",EMIS INTELLECTUAL TECHNOLOGY,SP0004247
WANDSWORTH COUNCIL,NGF CS,ADMINISTRATION,Revenue,MISC,MISCELLANEOUS EXPENSES,20293895,120138500,17-Oct-14,28.72,THE KEEN GROUP LTD,2002696
WANDSWORTH COUNCIL,NGF CS,ENVIRONMENT & COMMUNITY,Revenue,MISC,MISCELLANEOUS EXPENSES,499783,120438500,08-Oct-14,492.00,JT ENTERPRISES,SP0000349
WANDSWORTH COUNCIL,NGF CS,ENVIRONMENT & COMMUNITY,Revenue,DIRECT2,AGENCY STAFF,506989,120500510,20-Oct-14,"1,486.80",COBALT CONSULTING (UK) LTD,SP0008002
WANDSWORTH COUNCIL,NGF CS,ENVIRONMENT & COMMUNITY,Revenue,DIRECT2,AGENCY STAFF,506990,120500510,20-Oct-14,"1,486.80",COBALT CONSULTING (UK) LTD,SP0008002
WANDSWORTH COUNCIL,NGF CS,ENVIRONMENT & COMMUNITY,Revenue,DIRECT2,AGENCY STAFF,506991,120500510,20-Oct-14,"1,486.80",COBALT CONSULTING (UK) LTD,SP0008002
WANDSWORTH COUNCIL,NGF CS,ADMINISTRATION,Revenue,OTHER AGENCIES,DISBURSEMENTS,20293918,120643250,13-Oct-14,-12.66,SHARPE PRITCHARD LLP,2011391
WANDSWORTH COUNCIL,NGF CS,ADMINISTRATION,Revenue,OTHER AGENCIES,DISBURSEMENTS,20293918,120643250,13-Oct-14,12.66,SHARPE PRITCHARD LLP,2011391
WANDSWORTH COUNCIL,NGF CS,ENVIRONMENT & COMMUNITY,Revenue,OTHER AGENCIES,DISBURSEMENTS,500710,120643250,09-Oct-14,46.00,SHARPE PRITCHARD LLP,SP0003677
WANDSWORTH COUNCIL,NGF CS,ENVIRONMENT & COMMUNITY,Revenue,OTHER AGENCIES,DISBURSEMENTS,500710,120643250,09-Oct-14,"3,054.10",SHARPE PRITCHARD LLP,SP0003677
WANDSWORTH COUNCIL,NGF CS,ADMINISTRATION,Revenue,PRIVATE,CONTRACT 7 - VNEB LEGAL,20295200,120645540,31-Oct-14,"-3,046.52",WINCKWORTH SHERWOOD LLP,2009504
WANDSWORTH COUNCIL,NGF CS,ADMINISTRATION,Revenue,PRIVATE,CONTRACT 7 - VNEB LEGAL,20295200,120645540,31-Oct-14,"3,046.52",WINCKWORTH SHERWOOD LLP,2009504
WANDSWORTH COUNCIL,NGF CS,ADMINISTRATION,Revenue,PRIVATE,"CONTRACT 6- HWYS, PLAN ETC",20293910,120646170,13-Oct-14,"-3,018.99",SHARPE PRITCHARD LLP,2011391
WANDSWORTH COUNCIL,NGF CS,ADMINISTRATION,Revenue,PRIVATE,"CONTRACT 6- HWYS, PLAN ETC",20293910,120646170,13-Oct-14,"3,018.99",SHARPE PRITCHARD LLP,2011391
WANDSWORTH COUNCIL,NGF CS,ADMINISTRATION,Revenue,PRIVATE,"CONTRACT 6- HWYS, PLAN ETC",20293916,120646170,13-Oct-14,"2,802.40",SHARPE PRITCHARD LLP,2011391
WANDSWORTH COUNCIL,NGF CS,ADMINISTRATION,Revenue,PRIVATE,"CONTRACT 6- HWYS, PLAN ETC",20293916,120646170,13-Oct-14,"-2,802.40",SHARPE PRITCHARD LLP,2011391
WANDSWORTH COUNCIL,NGF CS,ADMINISTRATION,Revenue,PRIVATE,"CONTRACT 6- HWYS, PLAN ETC",20293918,120646170,13-Oct-14,"-3,416.94",SHARPE PRITCHARD LLP,2011391
WANDSWORTH COUNCIL,NGF CS,ADMINISTRATION,Revenue,PRIVATE,"CONTRACT 6- HWYS, PLAN ETC",20293918,120646170,13-Oct-14,"3,416.94",SHARPE PRITCHARD LLP,2011391
WANDSWORTH COUNCIL,NGF CS,ADMINISTRATION,Revenue,PRIVATE,"CONTRACT 6- HWYS, PLAN ETC",20293988,120646170,13-Oct-14,"2,611.33",SHARPE PRITCHARD LLP,2011391
WANDSWORTH COUNCIL,NGF CS,ADMINISTRATION,Revenue,PRIVATE,"CONTRACT 6- HWYS, PLAN ETC",20293988,120646170,13-Oct-14,"-2,611.33",SHARPE PRITCHARD LLP,2011391
WANDSWORTH COUNCIL,NGF CS,ENVIRONMENT & COMMUNITY,Revenue,PRIVATE,"CONTRACT 6- HWYS, PLAN ETC",513195,120646170,24-Oct-14,"2,899.04",SHARPE PRITCHARD LLP,SP0003677
WANDSWORTH COUNCIL,NGF CS,ENVIRONMENT & COMMUNITY,Revenue,OTHER AGENCIES,DISBURSEMENTS,503240,120743250,15-Oct-14,"12,139.28",LAMBERT SMITH HAMPTON,SP0002515
WANDSWORTH COUNCIL,NGF CS,ADMINISTRATION,Revenue,PRINTING STAT & GEN OFFICE EXP,OUTWORK - WEB OFFSET,20294888,121333580,28-Oct-14,"3,030.00",WARNERS MIDLANDS PLC,2017395
WANDSWORTH COUNCIL,NGF CS,ADMINISTRATION,Revenue,PRINTING STAT & GEN OFFICE EXP,OUTWORK - WEB OFFSET,20294441,121333580,22-Oct-14,"10,500.00",WOODFORD LITHO LTD,2017409
WANDSWORTH COUNCIL,NGF CS,ADMINISTRATION,Revenue,PRINTING STAT & GEN OFFICE EXP,OUTWORK - LITHO,20293488,121333590,07-Oct-14,539.17,PURBROOKS LTD,2000088
WANDSWORTH COUNCIL,NGF CS,ADMINISTRATION,Revenue,PRINTING STAT & GEN OFFICE EXP,OUTWORK - LITHO,20294415,121333590,22-Oct-14,"1,794.56",PURBROOKS LTD,2000088
WANDSWORTH COUNCIL,NGF CS,ADMINISTRATION,Revenue,PRINTING STAT & GEN OFFICE EXP,OUTWORK - LITHO,20293484,121333590,07-Oct-14,619.71,FINANCIAL DATA MANAGEMENT LTD,2003241
WANDSWORTH COUNCIL,NGF CS,ADMINISTRATION,Revenue,PRINTING STAT & GEN OFFICE EXP,OUTWORK - LITHO,20293485,121333590,07-Oct-14,528.51,FINANCIAL DATA MANAGEMENT LTD,2003241
WANDSWORTH COUNCIL,NGF CS,ADMINISTRATION,Revenue,PRINTING STAT & GEN OFFICE EXP,OUTWORK - LITHO,20294887,121333590,28-Oct-14,451.00,HILL & GARWOOD PRINTING LTD,2007381
WANDSWORTH COUNCIL,NGF CS,ADMINISTRATION,Revenue,PRINTING STAT & GEN OFFICE EXP,OUTWORK - LITHO,20295235,121333590,31-Oct-14,640.00,HILL & GARWOOD PRINTING LTD,2007381
WANDSWORTH COUNCIL,NGF CS,ADMINISTRATION,Revenue,PRINTING STAT & GEN OFFICE EXP,OUTWORK - LITHO,20293478,121333590,07-Oct-14,450.00,KALL KWIK,2007566
WANDSWORTH COUNCIL,NGF CS,ADMINISTRATION,Revenue,PRINTING STAT & GEN OFFICE EXP,OUTWORK - LITHO,20294404,121333590,22-Oct-14,445.00,KALL KWIK,2007566
WANDSWORTH COUNCIL,NGF CS,ADMINISTRATION,Revenue,PRINTING STAT & GEN OFFICE EXP,OUTWORK - LITHO,20294906,121333590,28-Oct-14,450.00,KALL KWIK,2007566
WANDSWORTH COUNCIL,NGF CS,ADMINISTRATION,Revenue,PRINTING STAT & GEN OFFICE EXP,OUTWORK - LITHO,20294907,121333590,28-Oct-14,980.00,KALL KWIK,2007566
WANDSWORTH COUNCIL,NGF CS,ADMINISTRATION,Revenue,PRINTING STAT & GEN OFFICE EXP,OUTWORK - LITHO,20293481,121333590,07-Oct-14,"1,579.17",IMPRESS PRINT SERVICES LTD,2008443
WANDSWORTH COUNCIL,NGF CS,ADMINISTRATION,Revenue,PRINTING STAT & GEN OFFICE EXP,OUTWORK - LITHO,20293482,121333590,07-Oct-14,"1,053.00",IMPRESS PRINT SERVICES LTD,2008443
WANDSWORTH COUNCIL,NGF CS,ADMINISTRATION,Revenue,PRINTING STAT & GEN OFFICE EXP,OUTWORK - LITHO,20294436,121333590,22-Oct-14,841.00,IMPRESS PRINT SERVICES LTD,2008443
WANDSWORTH COUNCIL,NGF CS,ADMINISTRATION,Revenue,PRINTING STAT & GEN OFFICE EXP,OUTWORK - LITHO,20293480,121333590,07-Oct-14,"2,504.93",WOODFORD LITHO LTD,2017409
WANDSWORTH COUNCIL,NGF CS,ADMINISTRATION,Revenue,PRINTING STAT & GEN OFFICE EXP,OUTWORK - EXTERN NON FRAMEWORK,20294444,121333600,22-Oct-14,760.00,LIBERTY SERVICES  LIMITED,2001023
WANDSWORTH COUNCIL,NGF CS,ADMINISTRATION,Revenue,PRINTING STAT & GEN OFFICE EXP,OUTWORK - EXTERN NON FRAMEWORK,20294890,121333600,28-Oct-14,493.00,EURO LABEL PRINTERS LTD,2001657
WANDSWORTH COUNCIL,NGF CS,ADMINISTRATION,Revenue,PRINTING STAT & GEN OFFICE EXP,OUTWORK - EXTERN NON FRAMEWORK,20294428,121333600,22-Oct-14,"1,988.00",LONDON LETTERBOX MARKETING,2003685
WANDSWORTH COUNCIL,NGF CS,ADMINISTRATION,Revenue,PRINTING STAT & GEN OFFICE EXP,OUTWORK - EXTERN NON FRAMEWORK,20294433,121333600,22-Oct-14,"2,227.26",LONDON LETTERBOX MARKETING,2003685
WANDSWORTH COUNCIL,NGF CS,ADMINISTRATION,Revenue,PRINTING STAT & GEN OFFICE EXP,OUTWORK - EXTERN NON FRAMEWORK,20295240,121333600,31-Oct-14,641.00,ONNEKAS LTD (MARTINS),2007366
WANDSWORTH COUNCIL,NGF CS,ENVIRONMENT & COMMUNITY,Revenue,"EQUIPMENT, FURNITURE & MATS","EQUIPMENT, FURNITURE & MATS",507035,121430000,23-Oct-14,228.14,CANON (UK) LTD,SP0000262
WANDSWORTH COUNCIL,NGF CS,ENVIRONMENT & COMMUNITY,Revenue,"EQUIPMENT, FURNITURE & MATS","EQUIPMENT, FURNITURE & MATS",507035,121430000,23-Oct-14,228.14,CANON (UK) LTD,SP0000262
WANDSWORTH COUNCIL,NGF CS,ENVIRONMENT & COMMUNITY,Revenue,"EQUIPMENT, FURNITURE & MATS","EQUIPMENT, FURNITURE & MATS",507035,121430000,23-Oct-14,456.28,CANON (UK) LTD,SP0000262
WANDSWORTH COUNCIL,NGF CS,ENVIRONMENT & COMMUNITY,Revenue,"EQUIPMENT, FURNITURE & MATS","EQUIPMENT, FURNITURE & MATS",507035,121430000,23-Oct-14,114.07,CANON (UK) LTD,SP0000262
WANDSWORTH COUNCIL,NGF CDC,ENVIRONMENT & COMMUNITY,Revenue,PRINTING STAT & GEN OFFICE EXP,PUBLIC RELATIONS,502682,12203346K9018A,16-Oct-14,"6,106.00",LONDON LETTERBOX MARKETING,SP0000546
WANDSWORTH COUNCIL,NGF CDC,ENVIRONMENT & COMMUNITY,Revenue,PRINTING STAT & GEN OFFICE EXP,PUBLICITY,497628,122033470,08-Oct-14,547.02,DOTMAILER LTD,SP0006264
WANDSWORTH COUNCIL,NGF CS,ADMINISTRATION,Revenue,COMMUNICATIONS & COMP,COMMUNICATIONS - POSTAGE,20293460,122136000,07-Oct-14,"1,483.04",ROYAL MAIL,2009044
WANDSWORTH COUNCIL,NGF CS,ADMINISTRATION,Revenue,COMMUNICATIONS & COMP,COMMUNICATIONS - POSTAGE,20293906,122136000,17-Oct-14,"1,619.45",ROYAL MAIL,2009044
WANDSWORTH COUNCIL,NGF CS,ADMINISTRATION,Revenue,COMMUNICATIONS & COMP,COMMUNICATIONS - POSTAGE,20294924,122136000,28-Oct-14,"1,170.12",ROYAL MAIL,2009044
WANDSWORTH COUNCIL,NGF CS,ADMINISTRATION,Revenue,COMMUNICATIONS & COMP,COMMUNICATIONS - POSTAGE,20293461,122136000,07-Oct-14,"2,609.80",TNT POST LONDON LTD,2011033
WANDSWORTH COUNCIL,NGF CS,ADMINISTRATION,Revenue,COMMUNICATIONS & COMP,COMMUNICATIONS - POSTAGE,20293466,122136000,07-Oct-14,"1,964.26",TNT POST LONDON LTD,2011033
WANDSWORTH COUNCIL,NGF CS,ADMINISTRATION,Revenue,COMMUNICATIONS & COMP,COMMUNICATIONS - POSTAGE,20293683,122136000,10-Oct-14,"1,803.79",TNT POST LONDON LTD,2011033
WANDSWORTH COUNCIL,NGF CS,ADMINISTRATION,Revenue,COMMUNICATIONS & COMP,COMMUNICATIONS - POSTAGE,20293684,122136000,10-Oct-14,"2,098.32",TNT POST LONDON LTD,2011033
WANDSWORTH COUNCIL,NGF CS,ADMINISTRATION,Revenue,COMMUNICATIONS & COMP,COMMUNICATIONS - POSTAGE,20293896,122136000,17-Oct-14,"1,917.19",TNT POST LONDON LTD,2011033
WANDSWORTH COUNCIL,NGF CS,ADMINISTRATION,Revenue,COMMUNICATIONS & COMP,COMMUNICATIONS - POSTAGE,20294359,122136000,20-Oct-14,"2,932.12",TNT POST LONDON LTD,2011033
WANDSWORTH COUNCIL,NGF CS,ADMINISTRATION,Revenue,COMMUNICATIONS & COMP,COMMUNICATIONS - POSTAGE,20295080,122136000,31-Oct-14,"2,947.51",TNT POST LONDON LTD,2011033
WANDSWORTH COUNCIL,NGF CS,ADMINISTRATION,Revenue,INDIRECT,IN-SERVICE TRAINING-SLA,20293309,123000740,02-Oct-14,"5,945.00",TRAINING SYNERGY LTD T/A ESCALLA,2001767
WANDSWORTH COUNCIL,NGF CS,ADMINISTRATION,Revenue,INDIRECT,IN-SERVICE TRAINING-SLA,20293310,123000740,02-Oct-14,"3,085.00",TRAINING SYNERGY LTD T/A ESCALLA,2001767
WANDSWORTH COUNCIL,NGF CS,ADMINISTRATION,Revenue,INDIRECT,IN-SERVICE TRAINING-SLA,20295150,123000740,30-Oct-14,"3,085.00",PREMIER IT,2019383
WANDSWORTH COUNCIL,NGF CS,ADMINISTRATION,Revenue,INDIRECT,IN-SERVICE TRAINING-SLA,20295151,123000740,30-Oct-14,"5,945.00",PREMIER IT,2019383
WANDSWORTH COUNCIL,NGF CS,ADMINISTRATION,Revenue,INDIRECT,IN-SERVICE TRAINING-SLA,20294367,123000740,22-Oct-14,"5,655.00",Assist Knowledge Development,2991000
WANDSWORTH COUNCIL,NGF CS,ENVIRONMENT & COMMUNITY,Revenue,INDIRECT,IN-SERVICE TRAINING-SLA,497661,123000740,08-Oct-14,216.00,TRAINING SYNERGY LTD,SP0000312
WANDSWORTH COUNCIL,NGF CS,ENVIRONMENT & COMMUNITY,Revenue,INDIRECT,IN-SERVICE TRAINING-SLA,497661,123000740,08-Oct-14,590.00,TRAINING SYNERGY LTD,SP0000312
WANDSWORTH COUNCIL,NGF CS,ENVIRONMENT & COMMUNITY,Revenue,INDIRECT,IN-SERVICE TRAINING-SLA,497661,123000740,08-Oct-14,325.00,TRAINING SYNERGY LTD,SP0000312
WANDSWORTH COUNCIL,NGF CS,ENVIRONMENT & COMMUNITY,Revenue,INDIRECT,IN-SERVICE TRAINING-SLA,510540,123000740,22-Oct-14,589.00,THE KNOWLEDGE ACADEMY LIMITED,SP0005118
WANDSWORTH COUNCIL,NGF CS,ENVIRONMENT & COMMUNITY,Revenue,INDIRECT,IN-SERVICE TRAINING-SLA,499831,123000740,08-Oct-14,450.00,TREND CONTROL SYSTEMS LTD,SP0007745
WANDSWORTH COUNCIL,NGF CS,ENVIRONMENT & COMMUNITY,Revenue,INDIRECT,IN-SERVICE TRAINING-SLA,499831,123000740,08-Oct-14,450.00,TREND CONTROL SYSTEMS LTD,SP0007745
WANDSWORTH COUNCIL,NGF CS,ENVIRONMENT & COMMUNITY,Revenue,INDIRECT,IN-SERVICE TRAINING-SLA,505883,123000740,16-Oct-14,"2,499.99",NETWORK LEARNING CENTRES,SP0008582
WANDSWORTH COUNCIL,NGF CS,ENVIRONMENT & COMMUNITY,Revenue,INDIRECT,IN-SERVICE TRAINING-SLA,508164,123000740,22-Oct-14,"1,095.00",CROYDON COLLEGE,SP0008641
WANDSWORTH COUNCIL,NGF CS,ADMINISTRATION,Revenue,INDIRECT,HEALTH CARE PROMOTIONAL,20294986,123200630,28-Oct-14,"1,349.00",RELAXA UK LTD,2010212
WANDSWORTH COUNCIL,NGF CS,ENVIRONMENT & COMMUNITY,Revenue,INDIRECT,HEALTH CARE,503503,123200640,24-Oct-14,759.23,MEDICALS DIRECT SCREENING LTD,SP0006897
WANDSWORTH COUNCIL,NGF CS,ADMINISTRATION,Revenue,INDIRECT,CHILDCARE VOUCHERS,20293835,123200650,10-Oct-14,629.55,COMPUTERSHARE VOUCHER SERVICES,2007281
WANDSWORTH COUNCIL,NGF CS,ADMINISTRATION,Revenue,INDIRECT,CHILDCARE VOUCHERS,20293836,123200650,10-Oct-14,159.66,COMPUTERSHARE VOUCHER SERVICES,2007281
WANDSWORTH COUNCIL,NGF CS,ADMINISTRATION,Revenue,INDIRECT,CHILDCARE VOUCHERS,20294864,123200650,27-Oct-14,"1,212.02",COMPUTERSHARE VOUCHER SERVICES,2007281
WANDSWORTH COUNCIL,NGF CS,ADMINISTRATION,Revenue,INDIRECT,CHILDCARE VOUCHERS,20294865,123200650,27-Oct-14,110.48,COMPUTERSHARE VOUCHER SERVICES,2007281
WANDSWORTH COUNCIL,NGF CS,ADMINISTRATION,Revenue,INDIRECT,CHILDCARE VOUCHERS,20294866,123200650,27-Oct-14,21.87,COMPUTERSHARE VOUCHER SERVICES,2007281
WANDSWORTH COUNCIL,NGF CS,ENVIRONMENT & COMMUNITY,Revenue,INDIRECT,IN-SERVICE TRAINING-SLA,495673,123200740,02-Oct-14,422.00,SKILLS TEAM LTD,SP0007105
WANDSWORTH COUNCIL,NGF CS,ADMINISTRATION,Revenue,INDIRECT,TRAINING - APPROVED QUALS,20293565,123200760,06-Oct-14,"2,000.00",KINGSTON COLLEGE,2000344
WANDSWORTH COUNCIL,NGF CS,ENVIRONMENT & COMMUNITY,Revenue,INDIRECT,TRAINING - APPROVED QUALS,506339,123200760,22-Oct-14,996.00,FIRST AID FOR LIFE,SP0008231
WANDSWORTH COUNCIL,NGF CS,ENVIRONMENT & COMMUNITY,Revenue,INDIRECT,TRAINING - APPROVED QUALS,508164,123200760,22-Oct-14,"2,750.00",CROYDON COLLEGE,SP0008641
WANDSWORTH COUNCIL,NGF CS,ENVIRONMENT & COMMUNITY,Revenue,INDIRECT,TRAINING - EXTERNAL COURSES,497175,123200770,21-Oct-14,81.00,THE RAPID RESULTS COLLEGE LTD,SP0007425
WANDSWORTH COUNCIL,NGF CS,ENVIRONMENT & COMMUNITY,Revenue,INDIRECT,TRAINING - EXTERNAL COURSES,497175,123200770,21-Oct-14,85.00,THE RAPID RESULTS COLLEGE LTD,SP0007425
WANDSWORTH COUNCIL,NGF CS,ENVIRONMENT & COMMUNITY,Revenue,INDIRECT,TRAINING - EXTERNAL COURSES,497175,123200770,21-Oct-14,945.00,THE RAPID RESULTS COLLEGE LTD,SP0007425
WANDSWORTH COUNCIL,NGF CS,ENVIRONMENT & COMMUNITY,Revenue,INDIRECT,TRAINING - EXTERNAL COURSES,497175,123200770,21-Oct-14,140.00,THE RAPID RESULTS COLLEGE LTD,SP0007425
WANDSWORTH COUNCIL,NGF CS,ENVIRONMENT & COMMUNITY,Revenue,PRINTING STAT & GEN OFFICE EXP,PHOTOCOPYING,503260,123233380,23-Oct-14,217.35,DANWOOD GROUP LTD,SP0002739
WANDSWORTH COUNCIL,NGF CS,ENVIRONMENT & COMMUNITY,Revenue,PRINTING STAT & GEN OFFICE EXP,PHOTOCOPYING,503260,123233380,23-Oct-14,307.50,DANWOOD GROUP LTD,SP0002739
WANDSWORTH COUNCIL,NGF CS,ENVIRONMENT & COMMUNITY,Revenue,PRINTING STAT & GEN OFFICE EXP,PHOTOCOPYING,503260,123233380,23-Oct-14,307.50,DANWOOD GROUP LTD,SP0002739
WANDSWORTH COUNCIL,NGF CS,ENVIRONMENT & COMMUNITY,Revenue,PRINTING STAT & GEN OFFICE EXP,PHOTOCOPYING,503260,123233380,23-Oct-14,307.50,DANWOOD GROUP LTD,SP0002739
WANDSWORTH COUNCIL,NGF CS,ENVIRONMENT & COMMUNITY,Revenue,SERVICES,OHS SESSIONAL DOCTOR,514694,123234690,29-Oct-14,"5,658.84",HJM ASSOCIATES,SP0003667
WANDSWORTH COUNCIL,NGF CS,ENVIRONMENT & COMMUNITY,Revenue,MISC,MISCELLANEOUS EXPENSES,499825,123238500,08-Oct-14,470.00,SNAP SURVEYS LTD,SP0002784
WANDSWORTH COUNCIL,NGF CDC,ADMINISTRATION,Revenue,COMMUNICATIONS & COMP,COMMUNICATIONS - POSTAGE,20293895,124236000,17-Oct-14,8.63,THE KEEN GROUP LTD,2002696
WANDSWORTH COUNCIL,NGF CDC,ADMINISTRATION,Revenue,PRIVATE,GENERAL CONTRACT WORK,20293823,124245370,09-Oct-14,11.05,Riley Dunn & Wilson,2991000
WANDSWORTH COUNCIL,NGF CDC,ADMINISTRATION,Revenue,PRIVATE,GENERAL CONTRACT WORK,20293823,124245370,09-Oct-14,"1,266.30",Riley Dunn & Wilson,2991000
WANDSWORTH COUNCIL,NGF CDC,ADMINISTRATION,Revenue,PRIVATE,GENERAL CONTRACT WORK,20293824,124245370,09-Oct-14,"1,049.00",Edulaw Training,2991000
WANDSWORTH COUNCIL,NGF CDC,ENVIRONMENT & COMMUNITY,Revenue,MISC,MISCELLANEOUS EXPENSES,510557,124438500,22-Oct-14,506.93,READ & BOOTH,SP0008648
WANDSWORTH COUNCIL,NGF CS,ADMINISTRATION,Revenue,SERVICES,"FEES, LICENCES & ROYALTIES",20293446,124734390,03-Oct-14,0.01,The Copyright Licensing Agency,2991000
WANDSWORTH COUNCIL,NGF CS,ADMINISTRATION,Revenue,SERVICES,"FEES, LICENCES & ROYALTIES",20293446,124734390,03-Oct-14,"2,425.43",The Copyright Licensing Agency,2991000
WANDSWORTH COUNCIL,NGF CS,FINANCE,Revenue,COMMUNICATIONS & COMP,I.T. EQUIPMENT & MAINTENANCE,504635,124736210,16-Oct-14,450.00,DOWNS FLOORING LTD,SP0000833
WANDSWORTH COUNCIL,NGF CS,FINANCE,Revenue,COMMUNICATIONS & COMP,I.T. EQUIPMENT & MAINTENANCE,504635,124736210,16-Oct-14,150.00,DOWNS FLOORING LTD,SP0000833
WANDSWORTH COUNCIL,NGF CS,ADMINISTRATION,Revenue,MISC,MISCELLANEOUS EXPENSES,20294504,124738500,21-Oct-14,"4,500.00",CORNERSTONE BARRISTERS,2014820
WANDSWORTH COUNCIL,NGF CS,FINANCE,Revenue,DIRECT2,AGENCY STAFF,20293449,126000510,06-Oct-14,"2,081.46",MATRIX SCM LIMITED,2014926
WANDSWORTH COUNCIL,NGF CS,FINANCE,Revenue,DIRECT2,AGENCY STAFF,20293449,126000510,06-Oct-14,"1,474.80",MATRIX SCM LIMITED,2014926
WANDSWORTH COUNCIL,NGF CS,FINANCE,Revenue,DIRECT2,AGENCY STAFF,20293449,126000510,06-Oct-14,"2,673.00",MATRIX SCM LIMITED,2014926
WANDSWORTH COUNCIL,NGF CS,FINANCE,Revenue,DIRECT2,AGENCY STAFF,20293876,126000510,13-Oct-14,"1,474.80",MATRIX SCM LIMITED,2014926
WANDSWORTH COUNCIL,NGF CS,FINANCE,Revenue,DIRECT2,AGENCY STAFF,20294281,126000510,17-Oct-14,"3,154.14",MATRIX SCM LIMITED,2014926
WANDSWORTH COUNCIL,NGF CS,FINANCE,Revenue,DIRECT2,AGENCY STAFF,20294281,126000510,17-Oct-14,"2,048.37",MATRIX SCM LIMITED,2014926
WANDSWORTH COUNCIL,NGF CS,FINANCE,Revenue,DIRECT2,AGENCY STAFF,20294281,126000510,17-Oct-14,"2,673.00",MATRIX SCM LIMITED,2014926
WANDSWORTH COUNCIL,NGF CS,FINANCE,Revenue,DIRECT2,AGENCY STAFF,20294281,126000510,17-Oct-14,"1,923.33",MATRIX SCM LIMITED,2014926
WANDSWORTH COUNCIL,NGF CS,FINANCE,Revenue,DIRECT2,AGENCY STAFF,20295187,126000510,30-Oct-14,"2,779.92",MATRIX SCM LIMITED,2014926
WANDSWORTH COUNCIL,NGF CS,FINANCE,Revenue,DIRECT2,AGENCY STAFF,20295187,126000510,30-Oct-14,"2,245.32",MATRIX SCM LIMITED,2014926
WANDSWORTH COUNCIL,NGF CS,FINANCE,Revenue,DIRECT2,AGENCY STAFF,20295187,126000510,30-Oct-14,651.00,MATRIX SCM LIMITED,2014926
WANDSWORTH COUNCIL,NGF CS,ENVIRONMENT & COMMUNITY,Revenue,INDIRECT,TRAINING - EXTERNAL COURSES,499784,126000770,15-Oct-14,"2,400.00",LEARNING TREE INTERNATIONAL LTD,SP0003426
WANDSWORTH COUNCIL,NGF CS,ENVIRONMENT & COMMUNITY,Revenue,"EQUIPMENT, FURNITURE & MATS","EQUIPMENT, FURNITURE & MATS",514666,126030000,28-Oct-14,"9,830.00",RETAIL ASSIST LTD,SP0007725
WANDSWORTH COUNCIL,NGF CS,ENVIRONMENT & COMMUNITY,Revenue,"EQUIPMENT, FURNITURE & MATS","EQUIPMENT, FURNITURE & MATS",514713,126030000,28-Oct-14,"2,917.00",RETAIL ASSIST LTD,SP0007725
WANDSWORTH COUNCIL,NGF CS,ENVIRONMENT & COMMUNITY,Revenue,SERVICES,ELECTRICAL TESTING,508172,126034350,23-Oct-14,168.00,ELECTRICAL INSTALLN & APPLCE TESTING UK,SP0000318
WANDSWORTH COUNCIL,NGF CS,ENVIRONMENT & COMMUNITY,Revenue,SERVICES,ELECTRICAL TESTING,508172,126034350,23-Oct-14,780.53,ELECTRICAL INSTALLN & APPLCE TESTING UK,SP0000318
WANDSWORTH COUNCIL,NGF CS,ENVIRONMENT & COMMUNITY,Revenue,SERVICES,ELECTRICAL TESTING,508172,126034350,23-Oct-14,21.75,ELECTRICAL INSTALLN & APPLCE TESTING UK,SP0000318
WANDSWORTH COUNCIL,NGF CS,ENVIRONMENT & COMMUNITY,Revenue,COMMUNICATIONS & COMP,I.T. EQUIPMENT & MAINTENANCE,497669,126036210,20-Oct-14,2.50,KINGSFIELD COMPUTER PRODUCTS LTD,SP0001948
WANDSWORTH COUNCIL,NGF CS,ENVIRONMENT & COMMUNITY,Revenue,COMMUNICATIONS & COMP,I.T. EQUIPMENT & MAINTENANCE,497669,126036210,20-Oct-14,19.00,KINGSFIELD COMPUTER PRODUCTS LTD,SP0001948
WANDSWORTH COUNCIL,NGF CS,ENVIRONMENT & COMMUNITY,Revenue,COMMUNICATIONS & COMP,I.T. EQUIPMENT & MAINTENANCE,497669,126036210,20-Oct-14,79.00,KINGSFIELD COMPUTER PRODUCTS LTD,SP0001948
WANDSWORTH COUNCIL,NGF CS,ENVIRONMENT & COMMUNITY,Revenue,COMMUNICATIONS & COMP,I.T. EQUIPMENT & MAINTENANCE,497669,126036210,20-Oct-14,825.00,KINGSFIELD COMPUTER PRODUCTS LTD,SP0001948
WANDSWORTH COUNCIL,NGF CS,ENVIRONMENT & COMMUNITY,Revenue,COMMUNICATIONS & COMP,I.T. EQUIPMENT & MAINTENANCE,506333,126036210,21-Oct-14,800.00,DELL CORPORATION LTD,SP0003352
WANDSWORTH COUNCIL,NGF CS,ENVIRONMENT & COMMUNITY,Revenue,GRANTS & SUBSCRIPTIONS,SUBSCRIPTIONS,514659,126037640,29-Oct-14,"4,549.57",LANDESK INTERNATIONAL LTD,SP0008498
WANDSWORTH COUNCIL,NGF CS,ADMINISTRATION,Revenue,COMMUNICATIONS & COMP,CALLS USAGE,20293267,126236050,02-Oct-14,"2,002.61",CABLE & WIRELESS COMMUNICATIONS,2009023
WANDSWORTH COUNCIL,NGF CS,ADMINISTRATION,Revenue,COMMUNICATIONS & COMP,CALLS USAGE,20293937,126236050,14-Oct-14,"1,881.17",VIRGIN MEDIA BUSINESS,2011718
WANDSWORTH COUNCIL,NGF CS,ADMINISTRATION,Revenue,"EQUIPMENT, FURNITURE & MATS","EQUIPMENT, FURNITURE & MATS",20293278,126330000,02-Oct-14,147.00,SUNA COMMUNICATION LTD,2003083
WANDSWORTH COUNCIL,NGF CS,ADMINISTRATION,Revenue,"EQUIPMENT, FURNITURE & MATS","EQUIPMENT, FURNITURE & MATS",20294340,126330000,22-Oct-14,"1,980.00",INCOM TELECOMMUNICATIONS,2003864
WANDSWORTH COUNCIL,NGF CS,ADMINISTRATION,Revenue,"EQUIPMENT, FURNITURE & MATS","EQUIPMENT, FURNITURE & MATS",20294338,126330000,22-Oct-14,"5,356.75",DAMOVO UK LTD,2007340
WANDSWORTH COUNCIL,NGF CS,ADMINISTRATION,Revenue,"EQUIPMENT, FURNITURE & MATS","EQUIPMENT, FURNITURE & MATS",20293939,126330000,14-Oct-14,"1,352.10",M H COMS,2007870
WANDSWORTH COUNCIL,NGF CS,ADMINISTRATION,Revenue,"EQUIPMENT, FURNITURE & MATS","EQUIPMENT, FURNITURE & MATS",20293267,126330000,02-Oct-14,385.50,CABLE & WIRELESS COMMUNICATIONS,2009023
WANDSWORTH COUNCIL,NGF CS,ADMINISTRATION,Revenue,"EQUIPMENT, FURNITURE & MATS","EQUIPMENT, FURNITURE & MATS",20293937,126330000,14-Oct-14,"1,714.00",VIRGIN MEDIA BUSINESS,2011718
WANDSWORTH COUNCIL,NGF CS,ADMINISTRATION,Revenue,"EQUIPMENT, FURNITURE & MATS","EQUIPMENT, FURNITURE & MATS",20293274,126330000,02-Oct-14,"2,275.00",DV02 LTD,2014905
WANDSWORTH COUNCIL,NGF CS,ADMINISTRATION,Revenue,"EQUIPMENT, FURNITURE & MATS","EQUIPMENT, FURNITURE & MATS",20295180,126330000,30-Oct-14,"20,000.00",3C TECHNOLOGY LIMITED,2019384
WANDSWORTH COUNCIL,NGF CS,FINANCE,Revenue,"EQUIPMENT, FURNITURE & MATS",EQUIP.FURN & MATS-REPS & MTCE,517593,126330010,31-Oct-14,472.52,ACR LONDON LTD,SP0000193
WANDSWORTH COUNCIL,NGF CS,ENVIRONMENT & COMMUNITY,Revenue,"EQUIPMENT, FURNITURE & MATS","EQUIPMENT, FURNITURE & MATS",514701,126530000,28-Oct-14,"2,917.00",RETAIL ASSIST LTD,SP0007725
WANDSWORTH COUNCIL,NGF CS,ADMINISTRATION,Revenue,COMMUNICATIONS & COMP,NETWORK COSTS,20295185,126536390,30-Oct-14,"6,840.00",LRQA LIMITED,2009416
WANDSWORTH COUNCIL,NGF CS,ENVIRONMENT & COMMUNITY,Revenue,COMMUNICATIONS & COMP,NETWORK SUPPORT & MAINTENANCE,508155,126536400,23-Oct-14,"1,074.75",ELECTRICAL INSTALLN & APPLCE TESTING UK,SP0000318
WANDSWORTH COUNCIL,NGF CS,ENVIRONMENT & COMMUNITY,Revenue,COMMUNICATIONS & COMP,NETWORK SUPPORT & MAINTENANCE,508155,126536400,23-Oct-14,10.68,ELECTRICAL INSTALLN & APPLCE TESTING UK,SP0000318
WANDSWORTH COUNCIL,NGF CS,ENVIRONMENT & COMMUNITY,Revenue,"EQUIPMENT, FURNITURE & MATS","EQUIPMENT, FURNITURE & MATS",502264,126630000,15-Oct-14,"15,000.00",EBASE TECHNOLOGY LTD,SP0006389
WANDSWORTH COUNCIL,NGF CS,ENVIRONMENT & COMMUNITY,Revenue,COMMUNICATIONS & COMP,I.T. SLA RECHARGE,516171,126836230,30-Oct-14,"2,487.46",DORSET SOFTWARE SERVICES LIMITED,SP0001072
WANDSWORTH COUNCIL,NGF CS,ENVIRONMENT & COMMUNITY,Revenue,COMMUNICATIONS & COMP,I.T. - SAFFRON,508647,126836260,23-Oct-14,"35,500.00",CIVICA UK LTD,SP0000394
WANDSWORTH COUNCIL,NGF CS,ENVIRONMENT & COMMUNITY,Revenue,SERVICES,PROJECT WORK,497651,127034800,15-Oct-14,"2,906.00",STORM FAMILY CENTRE LTD,SP0002613
WANDSWORTH COUNCIL,CS,ENVIRONMENT & COMMUNITY,Revenue,DIRECT2,AGENCY STAFF,497910,128000510,08-Oct-14,"14,777.24",MATRIX SCM LIMITED,SP0004572
WANDSWORTH COUNCIL,CS,ENVIRONMENT & COMMUNITY,Revenue,DIRECT2,AGENCY STAFF,502684,128000510,16-Oct-14,"14,285.87",MATRIX SCM LIMITED,SP0004572
WANDSWORTH COUNCIL,CS,ENVIRONMENT & COMMUNITY,Revenue,DIRECT2,AGENCY STAFF,507181,128000510,22-Oct-14,"15,987.48",MATRIX SCM LIMITED,SP0004572
WANDSWORTH COUNCIL,CS,ENVIRONMENT & COMMUNITY,Revenue,INDIRECT,STAFF ADVERTISING - VACANCIES,500897,128000960,13-Oct-14,"1,415.00",PENNA PLC,SP0006290
WANDSWORTH COUNCIL,CS,ENVIRONMENT & COMMUNITY,Revenue,INDIRECT,STAFF ADVERTISING - VACANCIES,501063,128000960,15-Oct-14,"3,343.00",PENNA PLC,SP0006290
WANDSWORTH COUNCIL,CS,ENVIRONMENT & COMMUNITY,Revenue,INDIRECT,STAFF ADVERTISING - VACANCIES,503224,128000960,16-Oct-14,"3,005.60",PENNA PLC,SP0006290
WANDSWORTH COUNCIL,CS,ENVIRONMENT & COMMUNITY,Revenue,HEALTH,THIRD PARTY PYMT - HEALTH,514643,128041130,29-Oct-14,"4,213.39",BRIDGE LANE GROUP PRACTICE,SP0000516
WANDSWORTH COUNCIL,CS,ENVIRONMENT & COMMUNITY,Revenue,HEALTH,THIRD PARTY PYMT - HEALTH,514646,128041130,29-Oct-14,"7,775.18",BALHAM PARK SURGERY,SP0000925
WANDSWORTH COUNCIL,CS,ENVIRONMENT & COMMUNITY,Revenue,HEALTH,THIRD PARTY PYMT - HEALTH,514656,128041130,29-Oct-14,"3,885.07",MAYFIELD SURGERY,SP0002209
WANDSWORTH COUNCIL,CS,ENVIRONMENT & COMMUNITY,Revenue,HEALTH,THIRD PARTY PYMT - HEALTH,514642,128041130,29-Oct-14,"4,657.33",BEDFORD HILL FAMILY PRACTICE H85009,SP0002543
WANDSWORTH COUNCIL,CS,ENVIRONMENT & COMMUNITY,Revenue,HEALTH,THIRD PARTY PYMT - HEALTH,514859,128041130,29-Oct-14,"8,303.68",LAVENDER HILL GROUP PRACTICE H85069,SP0003344
WANDSWORTH COUNCIL,CS,ENVIRONMENT & COMMUNITY,Revenue,HEALTH,THIRD PARTY PYMT - HEALTH,514844,128041130,29-Oct-14,"2,816.00",WANDSWORTH PHARMACY FGJ32,SP0004998
WANDSWORTH COUNCIL,CS,ENVIRONMENT & COMMUNITY,Revenue,HEALTH,THIRD PARTY PYMT - HEALTH,511608,128041130,23-Oct-14,"8,916.44",PUTNEYMEAD GROUP MEDICAL PRACTICE H85012,SP0006951
WANDSWORTH COUNCIL,CS,ENVIRONMENT & COMMUNITY,Revenue,HEALTH,THIRD PARTY PYMT - HEALTH,499781,128041130,08-Oct-14,800.00,HEALTHCHEM LTD,SP0007576
WANDSWORTH COUNCIL,CS,ENVIRONMENT & COMMUNITY,Revenue,HEALTH,THIRD PARTY PYMT - HEALTH,514702,128041130,29-Oct-14,500.00,RIZPHARM LTD T/A R. WALJI CHEMIST FCK89,SP0007578
WANDSWORTH COUNCIL,CS,ENVIRONMENT & COMMUNITY,Revenue,HEALTH,THIRD PARTY PYMT - HEALTH,514649,128041130,29-Oct-14,"1,178.50",DAY LEWIS PLC,SP0007580
WANDSWORTH COUNCIL,CS,ENVIRONMENT & COMMUNITY,Revenue,HEALTH,THIRD PARTY PYMT - HEALTH,514641,128041130,29-Oct-14,862.24,SOUTHFIELDS GROUP PRACTICE H85007,SP0007583
WANDSWORTH COUNCIL,CS,ENVIRONMENT & COMMUNITY,Revenue,HEALTH,THIRD PARTY PYMT - HEALTH,514640,128041130,29-Oct-14,"3,194.80",THE FALCON ROAD MEDICAL CENTRE H85002,SP0007953
WANDSWORTH COUNCIL,CS,ENVIRONMENT & COMMUNITY,Revenue,HEALTH,THIRD PARTY PYMT - HEALTH,511549,128041130,23-Oct-14,573.50,TINDACOL LTD T/A CARE CHEMISTS FW023,SP0008146
WANDSWORTH COUNCIL,CS,ENVIRONMENT & COMMUNITY,Revenue,HEALTH,THIRD PARTY PYMT - HEALTH,514647,128041130,29-Oct-14,"4,567.14",HEATHBRIDGE PRACTICE,SP0008179
WANDSWORTH COUNCIL,CS,ENVIRONMENT & COMMUNITY,Revenue,HEALTH,THIRD PARTY PYMT - HEALTH,514658,128041130,29-Oct-14,752.78,THE HAIDER PRACTICE H85075,SP0008283
WANDSWORTH COUNCIL,CS,ENVIRONMENT & COMMUNITY,Revenue,HEALTH,THIRD PARTY PYMT - HEALTH,514648,128041130,29-Oct-14,"1,355.44",P AND A KUMAR PRACTICE,SP0008285
WANDSWORTH COUNCIL,CS,ENVIRONMENT & COMMUNITY,Revenue,HEALTH,THIRD PARTY PYMT - HEALTH,514668,128041130,29-Oct-14,"1,743.02",TUDOR LODGE HEALTH CENTRE H85682,SP0008309
WANDSWORTH COUNCIL,CS,ENVIRONMENT & COMMUNITY,Revenue,HEALTH,THIRD PARTY PYMT - HEALTH,495642,128041130,02-Oct-14,752.50,ABC PHARMACY FML18 T/A DAY LEWIS PHARMAC,SP0008445
WANDSWORTH COUNCIL,CS,ENVIRONMENT & COMMUNITY,Revenue,HEALTH,THIRD PARTY PYMT - HEALTH,514638,128041130,29-Oct-14,"1,851.50",ABC PHARMACY FGT10,SP0008446
WANDSWORTH COUNCIL,CS,ENVIRONMENT & COMMUNITY,Revenue,HEALTH,THIRD PARTY PYMT - HEALTH,514655,128041130,29-Oct-14,"1,783.00",AMICHEM LIMITED FNQ61 T/A KRYSTAL PHARMA,SP0008457
WANDSWORTH COUNCIL,ASC,SOCIAL SERVICES,Revenue,HIRE,HIRE - TRANSPORT,497112,130020410,02-Oct-14,"1,030.10",BECKETT CORPORATION LTD T/A TINAS CARS,SP0000729
WANDSWORTH COUNCIL,ASC,SOCIAL SERVICES,Revenue,HIRE,HIRE - TRANSPORT,516043,130020410,30-Oct-14,"1,286.05",BECKETT CORPORATION LTD T/A TINAS CARS,SP0000729
WANDSWORTH COUNCIL,ASC,SOCIAL SERVICES,Revenue,PRIVATE,EXTERNAL HOMECARE,499063,130045300,06-Oct-14,173.28,ASIAN ELDERS SUPPORT SCHEME,SP0000190
WANDSWORTH COUNCIL,ASC,SOCIAL SERVICES,Revenue,PRIVATE,EXTERNAL HOMECARE,513716,130045300,27-Oct-14,173.28,ASIAN ELDERS SUPPORT SCHEME,SP0000190
WANDSWORTH COUNCIL,ASC,SOCIAL SERVICES,Revenue,PRIVATE,EXTERNAL HOMECARE,504235,130045300,16-Oct-14,"1,576.04",PAUL EYLES,SP0008168
WANDSWORTH COUNCIL,ASC,SOCIAL SERVICES,Revenue,HIRE,HIRE - TRANSPORT,499206,130220410,06-Oct-14,630.00,HEALTHCARE & TRANSPORT SERVICES (HATS),SP0000012
WANDSWORTH COUNCIL,ASC,SOCIAL SERVICES,Revenue,HIRE,HIRE - TRANSPORT,508339,130220410,21-Oct-14,630.00,HEALTHCARE & TRANSPORT SERVICES (HATS),SP0000012
WANDSWORTH COUNCIL,ASC,SOCIAL SERVICES,Revenue,HIRE,HIRE - TRANSPORT,508349,130220410,21-Oct-14,420.00,HEALTHCARE & TRANSPORT SERVICES (HATS),SP0000012
WANDSWORTH COUNCIL,ASC,SOCIAL SERVICES,Revenue,HIRE,HIRE - TRANSPORT,513384,130220410,24-Oct-14,630.00,HEALTHCARE & TRANSPORT SERVICES (HATS),SP0000012
WANDSWORTH COUNCIL,ASC,SOCIAL SERVICES,Revenue,HIRE,HIRE - TRANSPORT,518281,130220410,31-Oct-14,630.00,HEALTHCARE & TRANSPORT SERVICES (HATS),SP0000012
WANDSWORTH COUNCIL,ASC,SOCIAL SERVICES,Revenue,HIRE,HIRE - TRANSPORT,497107,130220410,02-Oct-14,548.64,BECKETT CORPORATION LTD T/A TINAS CARS,SP0000729
WANDSWORTH COUNCIL,ASC,SOCIAL SERVICES,Revenue,HIRE,HIRE - TRANSPORT,497110,130220410,02-Oct-14,579.12,BECKETT CORPORATION LTD T/A TINAS CARS,SP0000729
WANDSWORTH COUNCIL,ASC,SOCIAL SERVICES,Revenue,HIRE,HIRE - TRANSPORT,497118,130220410,02-Oct-14,656.16,BECKETT CORPORATION LTD T/A TINAS CARS,SP0000729
WANDSWORTH COUNCIL,ASC,SOCIAL SERVICES,Revenue,HIRE,HIRE - TRANSPORT,497119,130220410,02-Oct-14,474.08,BECKETT CORPORATION LTD T/A TINAS CARS,SP0000729
WANDSWORTH COUNCIL,ASC,SOCIAL SERVICES,Revenue,HIRE,HIRE - TRANSPORT,497120,130220410,02-Oct-14,460.66,BECKETT CORPORATION LTD T/A TINAS CARS,SP0000729
WANDSWORTH COUNCIL,ASC,SOCIAL SERVICES,Revenue,HIRE,HIRE - TRANSPORT,516041,130220410,30-Oct-14,518.16,BECKETT CORPORATION LTD T/A TINAS CARS,SP0000729
WANDSWORTH COUNCIL,ASC,SOCIAL SERVICES,Revenue,HIRE,HIRE - TRANSPORT,516047,130220410,30-Oct-14,137.12,BECKETT CORPORATION LTD T/A TINAS CARS,SP0000729
WANDSWORTH COUNCIL,ASC,SOCIAL SERVICES,Revenue,HIRE,HIRE - TRANSPORT,516053,130220410,30-Oct-14,"1,500.00",BECKETT CORPORATION LTD T/A TINAS CARS,SP0000729
WANDSWORTH COUNCIL,ASC,SOCIAL SERVICES,Revenue,HIRE,HIRE - TRANSPORT,516054,130220410,30-Oct-14,733.76,BECKETT CORPORATION LTD T/A TINAS CARS,SP0000729
WANDSWORTH COUNCIL,ASC,SOCIAL SERVICES,Revenue,HIRE,HIRE - TRANSPORT,516059,130220410,30-Oct-14,990.00,BECKETT CORPORATION LTD T/A TINAS CARS,SP0000729
WANDSWORTH COUNCIL,ASC,SOCIAL SERVICES,Revenue,HIRE,HIRE - TRANSPORT,516060,130220410,30-Oct-14,543.36,BECKETT CORPORATION LTD T/A TINAS CARS,SP0000729
WANDSWORTH COUNCIL,ASC,SOCIAL SERVICES,Revenue,HIRE,HIRE - TRANSPORT,516061,130220410,30-Oct-14,450.00,BECKETT CORPORATION LTD T/A TINAS CARS,SP0000729
WANDSWORTH COUNCIL,ASC,SOCIAL SERVICES,Revenue,HIRE,HIRE - TRANSPORT,501373,130220410,14-Oct-14,630.00,A STAR TRANSPORT LTD,SP0000866
WANDSWORTH COUNCIL,ASC,SOCIAL SERVICES,Revenue,HIRE,HIRE - TRANSPORT,501377,130220410,14-Oct-14,454.90,A STAR TRANSPORT LTD,SP0000866
WANDSWORTH COUNCIL,ASC,SOCIAL SERVICES,Revenue,HIRE,HIRE - TRANSPORT,501381,130220410,14-Oct-14,440.00,A STAR TRANSPORT LTD,SP0000866
WANDSWORTH COUNCIL,ASC,SOCIAL SERVICES,Revenue,HIRE,HIRE - TRANSPORT,501384,130220410,14-Oct-14,500.00,A STAR TRANSPORT LTD,SP0000866
WANDSWORTH COUNCIL,ASC,SOCIAL SERVICES,Revenue,HIRE,HIRE - TRANSPORT,501388,130220410,14-Oct-14,500.00,A STAR TRANSPORT LTD,SP0000866
WANDSWORTH COUNCIL,ASC,SOCIAL SERVICES,Revenue,HIRE,HIRE - TRANSPORT,501389,130220410,14-Oct-14,500.00,A STAR TRANSPORT LTD,SP0000866
WANDSWORTH COUNCIL,ASC,SOCIAL SERVICES,Revenue,HIRE,HIRE - TRANSPORT,501390,130220410,14-Oct-14,623.14,A STAR TRANSPORT LTD,SP0000866
WANDSWORTH COUNCIL,ASC,SOCIAL SERVICES,Revenue,HIRE,HIRE - TRANSPORT,501397,130220410,14-Oct-14,520.00,A STAR TRANSPORT LTD,SP0000866
WANDSWORTH COUNCIL,ASC,SOCIAL SERVICES,Revenue,HIRE,HIRE - TRANSPORT,501399,130220410,14-Oct-14,492.00,A STAR TRANSPORT LTD,SP0000866
WANDSWORTH COUNCIL,ASC,SOCIAL SERVICES,Revenue,HIRE,HIRE - TRANSPORT,501403,130220410,14-Oct-14,486.72,A STAR TRANSPORT LTD,SP0000866
WANDSWORTH COUNCIL,ASC,SOCIAL SERVICES,Revenue,HIRE,HIRE - TRANSPORT,501404,130220410,14-Oct-14,466.68,A STAR TRANSPORT LTD,SP0000866
WANDSWORTH COUNCIL,ASC,SOCIAL SERVICES,Revenue,HIRE,HIRE - TRANSPORT,501407,130220410,14-Oct-14,"1,160.00",A STAR TRANSPORT LTD,SP0000866
WANDSWORTH COUNCIL,ASC,SOCIAL SERVICES,Revenue,HIRE,HIRE - TRANSPORT,501413,130220410,14-Oct-14,620.00,A STAR TRANSPORT LTD,SP0000866
WANDSWORTH COUNCIL,ASC,SOCIAL SERVICES,Revenue,HIRE,HIRE - TRANSPORT,501421,130220410,14-Oct-14,444.00,A STAR TRANSPORT LTD,SP0000866
WANDSWORTH COUNCIL,ASC,SOCIAL SERVICES,Revenue,HIRE,HIRE - TRANSPORT,501424,130220410,14-Oct-14,808.00,A STAR TRANSPORT LTD,SP0000866
WANDSWORTH COUNCIL,ASC,SOCIAL SERVICES,Revenue,HIRE,HIRE - TRANSPORT,512579,130220410,23-Oct-14,588.00,A STAR TRANSPORT LTD,SP0000866
WANDSWORTH COUNCIL,ASC,SOCIAL SERVICES,Revenue,HIRE,HIRE - TRANSPORT,512586,130220410,23-Oct-14,440.00,A STAR TRANSPORT LTD,SP0000866
WANDSWORTH COUNCIL,ASC,SOCIAL SERVICES,Revenue,HIRE,HIRE - TRANSPORT,512589,130220410,23-Oct-14,500.00,A STAR TRANSPORT LTD,SP0000866
WANDSWORTH COUNCIL,ASC,SOCIAL SERVICES,Revenue,HIRE,HIRE - TRANSPORT,512592,130220410,23-Oct-14,500.00,A STAR TRANSPORT LTD,SP0000866
WANDSWORTH COUNCIL,ASC,SOCIAL SERVICES,Revenue,HIRE,HIRE - TRANSPORT,512593,130220410,23-Oct-14,500.00,A STAR TRANSPORT LTD,SP0000866
WANDSWORTH COUNCIL,ASC,SOCIAL SERVICES,Revenue,HIRE,HIRE - TRANSPORT,512594,130220410,23-Oct-14,532.00,A STAR TRANSPORT LTD,SP0000866
WANDSWORTH COUNCIL,ASC,SOCIAL SERVICES,Revenue,HIRE,HIRE - TRANSPORT,512601,130220410,23-Oct-14,520.00,A STAR TRANSPORT LTD,SP0000866
WANDSWORTH COUNCIL,ASC,SOCIAL SERVICES,Revenue,HIRE,HIRE - TRANSPORT,512603,130220410,23-Oct-14,492.00,A STAR TRANSPORT LTD,SP0000866
WANDSWORTH COUNCIL,ASC,SOCIAL SERVICES,Revenue,HIRE,HIRE - TRANSPORT,512606,130220410,23-Oct-14,516.70,A STAR TRANSPORT LTD,SP0000866
WANDSWORTH COUNCIL,ASC,SOCIAL SERVICES,Revenue,HIRE,HIRE - TRANSPORT,512607,130220410,23-Oct-14,516.60,A STAR TRANSPORT LTD,SP0000866
WANDSWORTH COUNCIL,ASC,SOCIAL SERVICES,Revenue,HIRE,HIRE - TRANSPORT,512610,130220410,23-Oct-14,"1,160.00",A STAR TRANSPORT LTD,SP0000866
WANDSWORTH COUNCIL,ASC,SOCIAL SERVICES,Revenue,HIRE,HIRE - TRANSPORT,512622,130220410,23-Oct-14,444.00,A STAR TRANSPORT LTD,SP0000866
WANDSWORTH COUNCIL,ASC,SOCIAL SERVICES,Revenue,HIRE,NEW TRANSPORT CONTRACT,497113,130220430,02-Oct-14,"1,030.10",BECKETT CORPORATION LTD T/A TINAS CARS,SP0000729
WANDSWORTH COUNCIL,ASC,SOCIAL SERVICES,Revenue,HIRE,NEW TRANSPORT CONTRACT,516044,130220430,30-Oct-14,"1,286.05",BECKETT CORPORATION LTD T/A TINAS CARS,SP0000729
WANDSWORTH COUNCIL,ASC,SOCIAL SERVICES,Revenue,HIRE,NEW TRANSPORT CONTRACT,516047,130220430,30-Oct-14,289.60,BECKETT CORPORATION LTD T/A TINAS CARS,SP0000729
WANDSWORTH COUNCIL,ASC,SOCIAL SERVICES,Revenue,SERVICES,TRAVEL BUDDY SCHEME,512569,130234970,23-Oct-14,48.00,ASIAN ELDERS SUPPORT SCHEME,SP0000190
WANDSWORTH COUNCIL,ASC,SOCIAL SERVICES,Revenue,SERVICES,TRAVEL BUDDY SCHEME,499159,130234970,06-Oct-14,573.84,HARINGEY ASSOCIATION FOR INDEPENDENT LIV,SP0000222
WANDSWORTH COUNCIL,ASC,SOCIAL SERVICES,Revenue,SERVICES,TRAVEL BUDDY SCHEME,499163,130234970,06-Oct-14,692.56,HARINGEY ASSOCIATION FOR INDEPENDENT LIV,SP0000222
WANDSWORTH COUNCIL,ASC,SOCIAL SERVICES,Revenue,SERVICES,TRAVEL BUDDY SCHEME,499164,130234970,06-Oct-14,728.18,HARINGEY ASSOCIATION FOR INDEPENDENT LIV,SP0000222
WANDSWORTH COUNCIL,ASC,SOCIAL SERVICES,Revenue,SERVICES,TRAVEL BUDDY SCHEME,499175,130234970,06-Oct-14,506.56,HARINGEY ASSOCIATION FOR INDEPENDENT LIV,SP0000222
WANDSWORTH COUNCIL,ASC,SOCIAL SERVICES,Revenue,SERVICES,TRAVEL BUDDY SCHEME,499178,130234970,06-Oct-14,680.69,HARINGEY ASSOCIATION FOR INDEPENDENT LIV,SP0000222
WANDSWORTH COUNCIL,ASC,SOCIAL SERVICES,Revenue,SERVICES,TRAVEL BUDDY SCHEME,499182,130234970,06-Oct-14,601.54,HARINGEY ASSOCIATION FOR INDEPENDENT LIV,SP0000222
WANDSWORTH COUNCIL,ASC,SOCIAL SERVICES,Revenue,SERVICES,TRAVEL BUDDY SCHEME,499186,130234970,06-Oct-14,601.54,HARINGEY ASSOCIATION FOR INDEPENDENT LIV,SP0000222
WANDSWORTH COUNCIL,ASC,SOCIAL SERVICES,Revenue,SERVICES,TRAVEL BUDDY SCHEME,499211,130234970,06-Oct-14,506.56,HARINGEY ASSOCIATION FOR INDEPENDENT LIV,SP0000222
WANDSWORTH COUNCIL,ASC,SOCIAL SERVICES,Revenue,SERVICES,TRAVEL BUDDY SCHEME,499214,130234970,06-Oct-14,617.37,HARINGEY ASSOCIATION FOR INDEPENDENT LIV,SP0000222
WANDSWORTH COUNCIL,ASC,SOCIAL SERVICES,Revenue,SERVICES,TRAVEL BUDDY SCHEME,499216,130234970,06-Oct-14,617.39,HARINGEY ASSOCIATION FOR INDEPENDENT LIV,SP0000222
WANDSWORTH COUNCIL,ASC,SOCIAL SERVICES,Revenue,SERVICES,TRAVEL BUDDY SCHEME,499218,130234970,06-Oct-14,633.20,HARINGEY ASSOCIATION FOR INDEPENDENT LIV,SP0000222
WANDSWORTH COUNCIL,ASC,SOCIAL SERVICES,Revenue,SERVICES,TRAVEL BUDDY SCHEME,499219,130234970,06-Oct-14,854.82,HARINGEY ASSOCIATION FOR INDEPENDENT LIV,SP0000222
WANDSWORTH COUNCIL,ASC,SOCIAL SERVICES,Revenue,SERVICES,TRAVEL BUDDY SCHEME,499223,130234970,06-Oct-14,506.56,HARINGEY ASSOCIATION FOR INDEPENDENT LIV,SP0000222
WANDSWORTH COUNCIL,ASC,SOCIAL SERVICES,Revenue,SERVICES,TRAVEL BUDDY SCHEME,499228,130234970,06-Oct-14,795.46,HARINGEY ASSOCIATION FOR INDEPENDENT LIV,SP0000222
WANDSWORTH COUNCIL,ASC,SOCIAL SERVICES,Revenue,SERVICES,TRAVEL BUDDY SCHEME,499230,130234970,06-Oct-14,617.37,HARINGEY ASSOCIATION FOR INDEPENDENT LIV,SP0000222
WANDSWORTH COUNCIL,ASC,SOCIAL SERVICES,Revenue,SERVICES,TRAVEL BUDDY SCHEME,499237,130234970,06-Oct-14,526.35,HARINGEY ASSOCIATION FOR INDEPENDENT LIV,SP0000222
WANDSWORTH COUNCIL,ASC,SOCIAL SERVICES,Revenue,SERVICES,TRAVEL BUDDY SCHEME,499238,130234970,06-Oct-14,688.61,HARINGEY ASSOCIATION FOR INDEPENDENT LIV,SP0000222
WANDSWORTH COUNCIL,ASC,SOCIAL SERVICES,Revenue,SERVICES,TRAVEL BUDDY SCHEME,497035,130234970,02-Oct-14,546.05,SOUTHSIDE PARTNERSHIP,SP0000692
WANDSWORTH COUNCIL,ASC,SOCIAL SERVICES,Revenue,SERVICES,TRAVEL BUDDY SCHEME,512267,130234970,23-Oct-14,673.73,SOUTHSIDE PARTNERSHIP,SP0000692
WANDSWORTH COUNCIL,ASC,SOCIAL SERVICES,Revenue,SERVICES,TRAVEL BUDDY SCHEME,512268,130234970,23-Oct-14,706.33,SOUTHSIDE PARTNERSHIP,SP0000692
WANDSWORTH COUNCIL,ASC,SOCIAL SERVICES,Revenue,SERVICES,TRAVEL BUDDY SCHEME,512269,130234970,23-Oct-14,643.31,SOUTHSIDE PARTNERSHIP,SP0000692
WANDSWORTH COUNCIL,ASC,SOCIAL SERVICES,Revenue,SERVICES,TRAVEL BUDDY SCHEME,512270,130234970,23-Oct-14,662.69,SOUTHSIDE PARTNERSHIP,SP0000692
WANDSWORTH COUNCIL,ASC,SOCIAL SERVICES,Revenue,SERVICES,TRAVEL BUDDY SCHEME,512271,130234970,23-Oct-14,539.26,SOUTHSIDE PARTNERSHIP,SP0000692
WANDSWORTH COUNCIL,ASC,SOCIAL SERVICES,Revenue,SERVICES,TRAVEL BUDDY SCHEME,512272,130234970,23-Oct-14,748.44,SOUTHSIDE PARTNERSHIP,SP0000692
WANDSWORTH COUNCIL,ASC,SOCIAL SERVICES,Revenue,HEALTH,EXT RES S28A 100% OLD LONGSTAY,515352,130241010,29-Oct-14,"3,037.03",PARKGATE MANOR,SP0000521
WANDSWORTH COUNCIL,ASC,SOCIAL SERVICES,Revenue,HEALTH,EXTERNAL RESIDENTIAL CARE S28A,518144,130241080,31-Oct-14,"7,215.87",PROGRESS HOUSING LULWORTH,SP0000921
WANDSWORTH COUNCIL,ASC,SOCIAL SERVICES,Revenue,HEALTH,EXT RES S28A OLD LONG STAY,518120,130241110,31-Oct-14,"2,975.96",ELEANOR NURSING & SOCIAL CARE,SP0000110
WANDSWORTH COUNCIL,ASC,SOCIAL SERVICES,Revenue,HEALTH,EXT RES S28A OLD LONG STAY,513634,130241110,27-Oct-14,"2,690.16",ASHTON CARE,SP0000695
WANDSWORTH COUNCIL,ASC,SOCIAL SERVICES,Revenue,HEALTH,EXT RES S28A OLD LONG STAY,502307,130241110,15-Oct-14,"4,351.72",ANTHONY TOBY HOMES TRUST,SP0000755
WANDSWORTH COUNCIL,ASC,SOCIAL SERVICES,Revenue,OTHER AGENCIES,ENABLERS/EDUCATION FEES,503965,130243280,16-Oct-14,"19,666.67",THE MOUNT CAMPHILL COMMUNITY,SP0001422
WANDSWORTH COUNCIL,ASC,SOCIAL SERVICES,Revenue,OTHER AGENCIES,EXTERNAL LODGINGS,504046,130243320,16-Oct-14,"1,050.00",M RAZA T/A CLOCK HOUSE HOTEL,SP0001280
WANDSWORTH COUNCIL,ASC,SOCIAL SERVICES,Revenue,OTHER AGENCIES,EXTERNAL OUTREACH,504447,130243330,17-Oct-14,806.84,RAINBOW MEDICAL SERVICES,SP0000037
WANDSWORTH COUNCIL,ASC,SOCIAL SERVICES,Revenue,OTHER AGENCIES,EXTERNAL OUTREACH,508063,130243330,24-Oct-14,850.00,PROTOCOL EDUCATION  LTD,SP0000171
WANDSWORTH COUNCIL,ASC,SOCIAL SERVICES,Revenue,OTHER AGENCIES,EXTERNAL OUTREACH,508064,130243330,24-Oct-14,748.00,PROTOCOL EDUCATION  LTD,SP0000171
WANDSWORTH COUNCIL,ASC,SOCIAL SERVICES,Revenue,OTHER AGENCIES,EXTERNAL OUTREACH,512577,130243330,23-Oct-14,425.00,PROTOCOL EDUCATION  LTD,SP0000171
WANDSWORTH COUNCIL,ASC,SOCIAL SERVICES,Revenue,OTHER AGENCIES,EXTERNAL OUTREACH,516036,130243330,30-Oct-14,850.00,PROTOCOL EDUCATION  LTD,SP0000171
WANDSWORTH COUNCIL,ASC,SOCIAL SERVICES,Revenue,OTHER AGENCIES,EXTERNAL OUTREACH,516037,130243330,30-Oct-14,425.00,PROTOCOL EDUCATION  LTD,SP0000171
WANDSWORTH COUNCIL,ASC,SOCIAL SERVICES,Revenue,OTHER AGENCIES,EXTERNAL OUTREACH,515612,130243330,29-Oct-14,506.56,HARINGEY ASSOCIATION FOR INDEPENDENT LIV,SP0000222
WANDSWORTH COUNCIL,ASC,SOCIAL SERVICES,Revenue,OTHER AGENCIES,EXTERNAL OUTREACH,515615,130243330,29-Oct-14,628.00,HARINGEY ASSOCIATION FOR INDEPENDENT LIV,SP0000222
WANDSWORTH COUNCIL,ASC,SOCIAL SERVICES,Revenue,OTHER AGENCIES,EXTERNAL OUTREACH,497096,130243330,02-Oct-14,"2,185.32",C M CARE LTD,SP0000455
WANDSWORTH COUNCIL,ASC,SOCIAL SERVICES,Revenue,OTHER AGENCIES,EXTERNAL OUTREACH,497098,130243330,02-Oct-14,936.00,C M CARE LTD,SP0000455
WANDSWORTH COUNCIL,ASC,SOCIAL SERVICES,Revenue,OTHER AGENCIES,EXTERNAL OUTREACH,497099,130243330,02-Oct-14,"1,287.20",C M CARE LTD,SP0000455
WANDSWORTH COUNCIL,ASC,SOCIAL SERVICES,Revenue,OTHER AGENCIES,EXTERNAL OUTREACH,497101,130243330,02-Oct-14,576.00,C M CARE LTD,SP0000455
WANDSWORTH COUNCIL,ASC,SOCIAL SERVICES,Revenue,OTHER AGENCIES,EXTERNAL OUTREACH,497102,130243330,02-Oct-14,"1,540.00",C M CARE LTD,SP0000455
WANDSWORTH COUNCIL,ASC,SOCIAL SERVICES,Revenue,OTHER AGENCIES,EXTERNAL OUTREACH,504292,130243330,16-Oct-14,"2,233.28",GENERATE OPPORTUNITIES LTD,SP0000503
WANDSWORTH COUNCIL,ASC,SOCIAL SERVICES,Revenue,OTHER AGENCIES,EXTERNAL OUTREACH,504308,130243330,16-Oct-14,638.08,GENERATE OPPORTUNITIES LTD,SP0000503
WANDSWORTH COUNCIL,ASC,SOCIAL SERVICES,Revenue,OTHER AGENCIES,EXTERNAL OUTREACH,504310,130243330,16-Oct-14,735.52,GENERATE OPPORTUNITIES LTD,SP0000503
WANDSWORTH COUNCIL,ASC,SOCIAL SERVICES,Revenue,OTHER AGENCIES,EXTERNAL OUTREACH,504314,130243330,16-Oct-14,797.60,GENERATE OPPORTUNITIES LTD,SP0000503
WANDSWORTH COUNCIL,ASC,SOCIAL SERVICES,Revenue,OTHER AGENCIES,EXTERNAL OUTREACH,504321,130243330,16-Oct-14,717.84,GENERATE OPPORTUNITIES LTD,SP0000503
WANDSWORTH COUNCIL,ASC,SOCIAL SERVICES,Revenue,OTHER AGENCIES,EXTERNAL OUTREACH,504324,130243330,16-Oct-14,239.28,GENERATE OPPORTUNITIES LTD,SP0000503
WANDSWORTH COUNCIL,ASC,SOCIAL SERVICES,Revenue,OTHER AGENCIES,EXTERNAL OUTREACH,504325,130243330,16-Oct-14,797.60,GENERATE OPPORTUNITIES LTD,SP0000503
WANDSWORTH COUNCIL,ASC,SOCIAL SERVICES,Revenue,OTHER AGENCIES,EXTERNAL OUTREACH,504330,130243330,16-Oct-14,638.08,GENERATE OPPORTUNITIES LTD,SP0000503
WANDSWORTH COUNCIL,ASC,SOCIAL SERVICES,Revenue,OTHER AGENCIES,EXTERNAL OUTREACH,504331,130243330,16-Oct-14,797.60,GENERATE OPPORTUNITIES LTD,SP0000503
WANDSWORTH COUNCIL,ASC,SOCIAL SERVICES,Revenue,OTHER AGENCIES,EXTERNAL OUTREACH,504335,130243330,16-Oct-14,199.40,GENERATE OPPORTUNITIES LTD,SP0000503
WANDSWORTH COUNCIL,ASC,SOCIAL SERVICES,Revenue,OTHER AGENCIES,EXTERNAL OUTREACH,504347,130243330,16-Oct-14,"2,475.00",GENERATE OPPORTUNITIES LTD,SP0000503
WANDSWORTH COUNCIL,ASC,SOCIAL SERVICES,Revenue,OTHER AGENCIES,EXTERNAL OUTREACH,513313,130243330,24-Oct-14,322.24,GENERATE OPPORTUNITIES LTD,SP0000503
WANDSWORTH COUNCIL,ASC,SOCIAL SERVICES,Revenue,OTHER AGENCIES,EXTERNAL OUTREACH,504363,130243330,16-Oct-14,630.72,METROPOLITAN HOUSING TRUST,SP0000626
WANDSWORTH COUNCIL,ASC,SOCIAL SERVICES,Revenue,OTHER AGENCIES,EXTERNAL OUTREACH,504366,130243330,16-Oct-14,981.12,METROPOLITAN HOUSING TRUST,SP0000626
WANDSWORTH COUNCIL,ASC,SOCIAL SERVICES,Revenue,OTHER AGENCIES,EXTERNAL OUTREACH,504367,130243330,16-Oct-14,981.12,METROPOLITAN HOUSING TRUST,SP0000626
WANDSWORTH COUNCIL,ASC,SOCIAL SERVICES,Revenue,OTHER AGENCIES,EXTERNAL OUTREACH,504368,130243330,16-Oct-14,630.72,METROPOLITAN HOUSING TRUST,SP0000626
WANDSWORTH COUNCIL,ASC,SOCIAL SERVICES,Revenue,OTHER AGENCIES,EXTERNAL OUTREACH,504431,130243330,16-Oct-14,981.12,METROPOLITAN HOUSING TRUST,SP0000626
WANDSWORTH COUNCIL,ASC,SOCIAL SERVICES,Revenue,OTHER AGENCIES,EXTERNAL OUTREACH,504432,130243330,16-Oct-14,630.72,METROPOLITAN HOUSING TRUST,SP0000626
WANDSWORTH COUNCIL,ASC,SOCIAL SERVICES,Revenue,OTHER AGENCIES,EXTERNAL OUTREACH,504137,130243330,16-Oct-14,"2,526.72",SHAFTESBURY HOMES AND ARETHUSA,SP0000836
WANDSWORTH COUNCIL,ASC,SOCIAL SERVICES,Revenue,OTHER AGENCIES,EXTERNAL OUTREACH,513395,130243330,24-Oct-14,600.00,ACT TOO LTD,SP0000855
WANDSWORTH COUNCIL,ASC,SOCIAL SERVICES,Revenue,OTHER AGENCIES,EXTERNAL OUTREACH,504063,130243330,16-Oct-14,331.20,THE BRANDON TRUST,SP0005337
WANDSWORTH COUNCIL,ASC,SOCIAL SERVICES,Revenue,OTHER AGENCIES,EXTERNAL OUTREACH,504079,130243330,16-Oct-14,631.60,THE BRANDON TRUST,SP0005337
WANDSWORTH COUNCIL,ASC,SOCIAL SERVICES,Revenue,OTHER AGENCIES,EXTERNAL OUTREACH,504399,130243330,16-Oct-14,694.76,THE BRANDON TRUST,SP0005337
WANDSWORTH COUNCIL,ASC,SOCIAL SERVICES,Revenue,OTHER AGENCIES,EXTERNAL OUTREACH,504400,130243330,16-Oct-14,947.40,THE BRANDON TRUST,SP0005337
WANDSWORTH COUNCIL,ASC,SOCIAL SERVICES,Revenue,OTHER AGENCIES,EXTERNAL OUTREACH,504407,130243330,16-Oct-14,757.92,THE BRANDON TRUST,SP0005337
WANDSWORTH COUNCIL,ASC,SOCIAL SERVICES,Revenue,OTHER AGENCIES,EXTERNAL OUTREACH,504408,130243330,16-Oct-14,568.44,THE BRANDON TRUST,SP0005337
WANDSWORTH COUNCIL,ASC,SOCIAL SERVICES,Revenue,OTHER AGENCIES,EXTERNAL OUTREACH,504409,130243330,16-Oct-14,757.92,THE BRANDON TRUST,SP0005337
WANDSWORTH COUNCIL,ASC,SOCIAL SERVICES,Revenue,OTHER AGENCIES,EXTERNAL OUTREACH,504410,130243330,16-Oct-14,252.64,THE BRANDON TRUST,SP0005337
WANDSWORTH COUNCIL,ASC,SOCIAL SERVICES,Revenue,OTHER AGENCIES,EXTERNAL OUTREACH,504417,130243330,16-Oct-14,947.40,THE BRANDON TRUST,SP0005337
WANDSWORTH COUNCIL,ASC,SOCIAL SERVICES,Revenue,OTHER AGENCIES,EXTERNAL OUTREACH,504419,130243330,16-Oct-14,"1,170.80",THE BRANDON TRUST,SP0005337
WANDSWORTH COUNCIL,ASC,SOCIAL SERVICES,Revenue,OTHER AGENCIES,EXTERNAL OUTREACH,504136,130243330,16-Oct-14,"3,360.00",RELIABLE PERSONNEL LTD,SP0005657
WANDSWORTH COUNCIL,ASC,SOCIAL SERVICES,Revenue,PRIVATE,EXTERNAL DAYCARE,518271,130245290,31-Oct-14,"1,107.68",COUNTRY CARE,SP0000090
WANDSWORTH COUNCIL,ASC,SOCIAL SERVICES,Revenue,PRIVATE,EXTERNAL DAYCARE,501276,130245290,14-Oct-14,"2,830.88",THE CAMPHILL VILLAGE TRUST,SP0000145
WANDSWORTH COUNCIL,ASC,SOCIAL SERVICES,Revenue,PRIVATE,EXTERNAL DAYCARE,512460,130245290,23-Oct-14,"1,213.76",RESIDENTIAL CARE SERVICES T/A FRANKLYN L,SP0000147
WANDSWORTH COUNCIL,ASC,SOCIAL SERVICES,Revenue,PRIVATE,EXTERNAL DAYCARE,507338,130245290,21-Oct-14,125.80,THE CHESTNUTS,SP0000182
WANDSWORTH COUNCIL,ASC,SOCIAL SERVICES,Revenue,PRIVATE,EXTERNAL DAYCARE,507472,130245290,21-Oct-14,644.00,THE CHESTNUTS,SP0000182
WANDSWORTH COUNCIL,ASC,SOCIAL SERVICES,Revenue,PRIVATE,EXTERNAL DAYCARE,507470,130245290,21-Oct-14,878.48,ORCHARD VALE TRUST,SP0000214
WANDSWORTH COUNCIL,ASC,SOCIAL SERVICES,Revenue,PRIVATE,EXTERNAL DAYCARE,504028,130245290,16-Oct-14,"1,250.00",ST MARYS RESIDENTIAL HOME,SP0000215
WANDSWORTH COUNCIL,ASC,SOCIAL SERVICES,Revenue,PRIVATE,EXTERNAL DAYCARE,504029,130245290,16-Oct-14,"1,000.00",ST MARYS RESIDENTIAL HOME,SP0000215
WANDSWORTH COUNCIL,ASC,SOCIAL SERVICES,Revenue,PRIVATE,EXTERNAL DAYCARE,504031,130245290,16-Oct-14,"1,250.00",ST MARYS RESIDENTIAL HOME,SP0000215
WANDSWORTH COUNCIL,ASC,SOCIAL SERVICES,Revenue,PRIVATE,EXTERNAL DAYCARE,504032,130245290,16-Oct-14,"1,000.00",ST MARYS RESIDENTIAL HOME,SP0000215
WANDSWORTH COUNCIL,ASC,SOCIAL SERVICES,Revenue,PRIVATE,EXTERNAL DAYCARE,504033,130245290,16-Oct-14,"1,000.00",ST MARYS RESIDENTIAL HOME,SP0000215
WANDSWORTH COUNCIL,ASC,SOCIAL SERVICES,Revenue,PRIVATE,EXTERNAL DAYCARE,504034,130245290,16-Oct-14,"1,000.00",ST MARYS RESIDENTIAL HOME,SP0000215
WANDSWORTH COUNCIL,ASC,SOCIAL SERVICES,Revenue,PRIVATE,EXTERNAL DAYCARE,508294,130245290,21-Oct-14,"1,736.84",ST MARYS RESIDENTIAL HOME,SP0000215
WANDSWORTH COUNCIL,ASC,SOCIAL SERVICES,Revenue,PRIVATE,EXTERNAL DAYCARE,508295,130245290,21-Oct-14,708.52,ST MARYS RESIDENTIAL HOME,SP0000215
WANDSWORTH COUNCIL,ASC,SOCIAL SERVICES,Revenue,PRIVATE,EXTERNAL DAYCARE,508299,130245290,21-Oct-14,956.80,ST MARYS RESIDENTIAL HOME,SP0000215
WANDSWORTH COUNCIL,ASC,SOCIAL SERVICES,Revenue,PRIVATE,EXTERNAL DAYCARE,508300,130245290,21-Oct-14,534.28,ST MARYS RESIDENTIAL HOME,SP0000215
WANDSWORTH COUNCIL,ASC,SOCIAL SERVICES,Revenue,PRIVATE,EXTERNAL DAYCARE,515564,130245290,29-Oct-14,516.50,ST MARYS RESIDENTIAL HOME,SP0000215
WANDSWORTH COUNCIL,ASC,SOCIAL SERVICES,Revenue,PRIVATE,EXTERNAL DAYCARE,515565,130245290,29-Oct-14,708.52,ST MARYS RESIDENTIAL HOME,SP0000215
WANDSWORTH COUNCIL,ASC,SOCIAL SERVICES,Revenue,PRIVATE,EXTERNAL DAYCARE,515569,130245290,29-Oct-14,956.80,ST MARYS RESIDENTIAL HOME,SP0000215
WANDSWORTH COUNCIL,ASC,SOCIAL SERVICES,Revenue,PRIVATE,EXTERNAL DAYCARE,515571,130245290,29-Oct-14,534.28,ST MARYS RESIDENTIAL HOME,SP0000215
WANDSWORTH COUNCIL,ASC,SOCIAL SERVICES,Revenue,PRIVATE,EXTERNAL DAYCARE,501277,130245290,14-Oct-14,"3,762.60",NAS SERVICES LIMITED,SP0000217
WANDSWORTH COUNCIL,ASC,SOCIAL SERVICES,Revenue,PRIVATE,EXTERNAL DAYCARE,501278,130245290,14-Oct-14,"1,575.80",NAS SERVICES LIMITED,SP0000217
WANDSWORTH COUNCIL,ASC,SOCIAL SERVICES,Revenue,PRIVATE,EXTERNAL DAYCARE,501279,130245290,14-Oct-14,"3,700.40",NAS SERVICES LIMITED,SP0000217
WANDSWORTH COUNCIL,ASC,SOCIAL SERVICES,Revenue,PRIVATE,EXTERNAL DAYCARE,501280,130245290,14-Oct-14,"2,303.20",NAS SERVICES LIMITED,SP0000217
WANDSWORTH COUNCIL,ASC,SOCIAL SERVICES,Revenue,PRIVATE,EXTERNAL DAYCARE,504019,130245290,16-Oct-14,"1,575.80",NAS SERVICES LIMITED,SP0000217
WANDSWORTH COUNCIL,ASC,SOCIAL SERVICES,Revenue,PRIVATE,EXTERNAL DAYCARE,504020,130245290,16-Oct-14,"3,700.40",NAS SERVICES LIMITED,SP0000217
WANDSWORTH COUNCIL,ASC,SOCIAL SERVICES,Revenue,PRIVATE,EXTERNAL DAYCARE,504021,130245290,16-Oct-14,"3,762.60",NAS SERVICES LIMITED,SP0000217
WANDSWORTH COUNCIL,ASC,SOCIAL SERVICES,Revenue,PRIVATE,EXTERNAL DAYCARE,504022,130245290,16-Oct-14,"2,303.20",NAS SERVICES LIMITED,SP0000217
WANDSWORTH COUNCIL,ASC,SOCIAL SERVICES,Revenue,PRIVATE,EXTERNAL DAYCARE,504027,130245290,16-Oct-14,"2,022.04",NAS SERVICES LIMITED,SP0000217
WANDSWORTH COUNCIL,ASC,SOCIAL SERVICES,Revenue,PRIVATE,EXTERNAL DAYCARE,515562,130245290,29-Oct-14,"2,022.04",NAS SERVICES LIMITED,SP0000217
WANDSWORTH COUNCIL,ASC,SOCIAL SERVICES,Revenue,PRIVATE,EXTERNAL DAYCARE,515563,130245290,29-Oct-14,"2,194.40",NAS SERVICES LIMITED,SP0000217
WANDSWORTH COUNCIL,ASC,SOCIAL SERVICES,Revenue,PRIVATE,EXTERNAL DAYCARE,515595,130245290,29-Oct-14,"3,762.60",NAS SERVICES LIMITED,SP0000217
WANDSWORTH COUNCIL,ASC,SOCIAL SERVICES,Revenue,PRIVATE,EXTERNAL DAYCARE,515596,130245290,29-Oct-14,"1,575.80",NAS SERVICES LIMITED,SP0000217
WANDSWORTH COUNCIL,ASC,SOCIAL SERVICES,Revenue,PRIVATE,EXTERNAL DAYCARE,515597,130245290,29-Oct-14,"3,700.40",NAS SERVICES LIMITED,SP0000217
WANDSWORTH COUNCIL,ASC,SOCIAL SERVICES,Revenue,PRIVATE,EXTERNAL DAYCARE,515598,130245290,29-Oct-14,"2,194.40",NAS SERVICES LIMITED,SP0000217
WANDSWORTH COUNCIL,ASC,SOCIAL SERVICES,Revenue,PRIVATE,EXTERNAL DAYCARE,515602,130245290,29-Oct-14,864.80,NAS SERVICES LIMITED,SP0000217
WANDSWORTH COUNCIL,ASC,SOCIAL SERVICES,Revenue,PRIVATE,EXTERNAL DAYCARE,516034,130245290,30-Oct-14,864.80,NAS SERVICES LIMITED,SP0000217
WANDSWORTH COUNCIL,ASC,SOCIAL SERVICES,Revenue,PRIVATE,EXTERNAL DAYCARE,513370,130245290,24-Oct-14,546.00,PARCHMENT TRUST LTD,SP0000255
WANDSWORTH COUNCIL,ASC,SOCIAL SERVICES,Revenue,PRIVATE,EXTERNAL DAYCARE,497085,130245290,02-Oct-14,806.04,CRAEGMOOR FACILITIES CO LTD,SP0000306
WANDSWORTH COUNCIL,ASC,SOCIAL SERVICES,Revenue,PRIVATE,EXTERNAL DAYCARE,507471,130245290,21-Oct-14,806.04,CRAEGMOOR FACILITIES CO LTD,SP0000306
WANDSWORTH COUNCIL,ASC,SOCIAL SERVICES,Revenue,PRIVATE,EXTERNAL DAYCARE,501283,130245290,14-Oct-14,706.08,SHARE COMMUNITY,SP0000329
WANDSWORTH COUNCIL,ASC,SOCIAL SERVICES,Revenue,PRIVATE,EXTERNAL DAYCARE,501285,130245290,14-Oct-14,941.44,SHARE COMMUNITY,SP0000329
WANDSWORTH COUNCIL,ASC,SOCIAL SERVICES,Revenue,PRIVATE,EXTERNAL DAYCARE,501286,130245290,14-Oct-14,706.08,SHARE COMMUNITY,SP0000329
WANDSWORTH COUNCIL,ASC,SOCIAL SERVICES,Revenue,PRIVATE,EXTERNAL DAYCARE,501287,130245290,14-Oct-14,706.08,SHARE COMMUNITY,SP0000329
WANDSWORTH COUNCIL,ASC,SOCIAL SERVICES,Revenue,PRIVATE,EXTERNAL DAYCARE,501288,130245290,14-Oct-14,706.08,SHARE COMMUNITY,SP0000329
WANDSWORTH COUNCIL,ASC,SOCIAL SERVICES,Revenue,PRIVATE,EXTERNAL DAYCARE,501289,130245290,14-Oct-14,706.08,SHARE COMMUNITY,SP0000329
WANDSWORTH COUNCIL,ASC,SOCIAL SERVICES,Revenue,PRIVATE,EXTERNAL DAYCARE,501291,130245290,14-Oct-14,706.08,SHARE COMMUNITY,SP0000329
WANDSWORTH COUNCIL,ASC,SOCIAL SERVICES,Revenue,PRIVATE,EXTERNAL DAYCARE,501292,130245290,14-Oct-14,941.44,SHARE COMMUNITY,SP0000329
WANDSWORTH COUNCIL,ASC,SOCIAL SERVICES,Revenue,PRIVATE,EXTERNAL DAYCARE,501294,130245290,14-Oct-14,941.44,SHARE COMMUNITY,SP0000329
WANDSWORTH COUNCIL,ASC,SOCIAL SERVICES,Revenue,PRIVATE,EXTERNAL DAYCARE,501295,130245290,14-Oct-14,706.08,SHARE COMMUNITY,SP0000329
WANDSWORTH COUNCIL,ASC,SOCIAL SERVICES,Revenue,PRIVATE,EXTERNAL DAYCARE,501297,130245290,14-Oct-14,706.08,SHARE COMMUNITY,SP0000329
WANDSWORTH COUNCIL,ASC,SOCIAL SERVICES,Revenue,PRIVATE,EXTERNAL DAYCARE,501299,130245290,14-Oct-14,706.08,SHARE COMMUNITY,SP0000329
WANDSWORTH COUNCIL,ASC,SOCIAL SERVICES,Revenue,PRIVATE,EXTERNAL DAYCARE,501304,130245290,14-Oct-14,706.08,SHARE COMMUNITY,SP0000329
WANDSWORTH COUNCIL,ASC,SOCIAL SERVICES,Revenue,PRIVATE,EXTERNAL DAYCARE,501306,130245290,14-Oct-14,"1,176.80",SHARE COMMUNITY,SP0000329
WANDSWORTH COUNCIL,ASC,SOCIAL SERVICES,Revenue,PRIVATE,EXTERNAL DAYCARE,501307,130245290,14-Oct-14,"1,176.80",SHARE COMMUNITY,SP0000329
WANDSWORTH COUNCIL,ASC,SOCIAL SERVICES,Revenue,PRIVATE,EXTERNAL DAYCARE,501308,130245290,14-Oct-14,706.08,SHARE COMMUNITY,SP0000329
WANDSWORTH COUNCIL,ASC,SOCIAL SERVICES,Revenue,PRIVATE,EXTERNAL DAYCARE,501309,130245290,14-Oct-14,588.40,SHARE COMMUNITY,SP0000329
WANDSWORTH COUNCIL,ASC,SOCIAL SERVICES,Revenue,PRIVATE,EXTERNAL DAYCARE,501310,130245290,14-Oct-14,706.08,SHARE COMMUNITY,SP0000329
WANDSWORTH COUNCIL,ASC,SOCIAL SERVICES,Revenue,PRIVATE,EXTERNAL DAYCARE,501311,130245290,14-Oct-14,941.44,SHARE COMMUNITY,SP0000329
WANDSWORTH COUNCIL,ASC,SOCIAL SERVICES,Revenue,PRIVATE,EXTERNAL DAYCARE,501314,130245290,14-Oct-14,706.08,SHARE COMMUNITY,SP0000329
WANDSWORTH COUNCIL,ASC,SOCIAL SERVICES,Revenue,PRIVATE,EXTERNAL DAYCARE,501316,130245290,14-Oct-14,588.40,SHARE COMMUNITY,SP0000329
WANDSWORTH COUNCIL,ASC,SOCIAL SERVICES,Revenue,PRIVATE,EXTERNAL DAYCARE,501317,130245290,14-Oct-14,706.08,SHARE COMMUNITY,SP0000329
WANDSWORTH COUNCIL,ASC,SOCIAL SERVICES,Revenue,PRIVATE,EXTERNAL DAYCARE,501318,130245290,14-Oct-14,706.08,SHARE COMMUNITY,SP0000329
WANDSWORTH COUNCIL,ASC,SOCIAL SERVICES,Revenue,PRIVATE,EXTERNAL DAYCARE,501322,130245290,14-Oct-14,706.08,SHARE COMMUNITY,SP0000329
WANDSWORTH COUNCIL,ASC,SOCIAL SERVICES,Revenue,PRIVATE,EXTERNAL DAYCARE,501323,130245290,14-Oct-14,"1,176.80",SHARE COMMUNITY,SP0000329
WANDSWORTH COUNCIL,ASC,SOCIAL SERVICES,Revenue,PRIVATE,EXTERNAL DAYCARE,501329,130245290,14-Oct-14,706.08,SHARE COMMUNITY,SP0000329
WANDSWORTH COUNCIL,ASC,SOCIAL SERVICES,Revenue,PRIVATE,EXTERNAL DAYCARE,501330,130245290,14-Oct-14,706.08,SHARE COMMUNITY,SP0000329
WANDSWORTH COUNCIL,ASC,SOCIAL SERVICES,Revenue,PRIVATE,EXTERNAL DAYCARE,501334,130245290,14-Oct-14,706.08,SHARE COMMUNITY,SP0000329
WANDSWORTH COUNCIL,ASC,SOCIAL SERVICES,Revenue,PRIVATE,EXTERNAL DAYCARE,501336,130245290,14-Oct-14,706.08,SHARE COMMUNITY,SP0000329
WANDSWORTH COUNCIL,ASC,SOCIAL SERVICES,Revenue,PRIVATE,EXTERNAL DAYCARE,515594,130245290,29-Oct-14,"1,119.64",DOLPHIN HOMES LTD,SP0000331
WANDSWORTH COUNCIL,ASC,SOCIAL SERVICES,Revenue,PRIVATE,EXTERNAL DAYCARE,504024,130245290,16-Oct-14,"2,000.16",NORWOOD SCHOOLS LTD,SP0000332
WANDSWORTH COUNCIL,ASC,SOCIAL SERVICES,Revenue,PRIVATE,EXTERNAL DAYCARE,504025,130245290,16-Oct-14,"2,055.64",NORWOOD SCHOOLS LTD,SP0000332
WANDSWORTH COUNCIL,ASC,SOCIAL SERVICES,Revenue,PRIVATE,EXTERNAL DAYCARE,513364,130245290,24-Oct-14,"2,000.16",NORWOOD SCHOOLS LTD,SP0000332
WANDSWORTH COUNCIL,ASC,SOCIAL SERVICES,Revenue,PRIVATE,EXTERNAL DAYCARE,513365,130245290,24-Oct-14,"2,055.64",NORWOOD SCHOOLS LTD,SP0000332
WANDSWORTH COUNCIL,ASC,SOCIAL SERVICES,Revenue,PRIVATE,EXTERNAL DAYCARE,504285,130245290,16-Oct-14,980.00,THE MANOR,SP0000340
WANDSWORTH COUNCIL,ASC,SOCIAL SERVICES,Revenue,PRIVATE,EXTERNAL DAYCARE,504041,130245290,16-Oct-14,"1,057.00",ST DAVIDS CARE IN THE COMMUNITY,SP0000379
WANDSWORTH COUNCIL,ASC,SOCIAL SERVICES,Revenue,PRIVATE,EXTERNAL DAYCARE,504042,130245290,16-Oct-14,"1,057.00",ST DAVIDS CARE IN THE COMMUNITY,SP0000379
WANDSWORTH COUNCIL,ASC,SOCIAL SERVICES,Revenue,PRIVATE,EXTERNAL DAYCARE,504043,130245290,16-Oct-14,"1,057.00",ST DAVIDS CARE IN THE COMMUNITY,SP0000379
WANDSWORTH COUNCIL,ASC,SOCIAL SERVICES,Revenue,PRIVATE,EXTERNAL DAYCARE,508305,130245290,21-Oct-14,760.00,WANDSWORTH BENGALI WELFARE ASSOCIATION,SP0000479
WANDSWORTH COUNCIL,ASC,SOCIAL SERVICES,Revenue,PRIVATE,EXTERNAL DAYCARE,507467,130245290,21-Oct-14,768.78,CHOICES,SP0000486
WANDSWORTH COUNCIL,ASC,SOCIAL SERVICES,Revenue,PRIVATE,EXTERNAL DAYCARE,504297,130245290,16-Oct-14,576.00,GENERATE OPPORTUNITIES LTD,SP0000503
WANDSWORTH COUNCIL,ASC,SOCIAL SERVICES,Revenue,PRIVATE,EXTERNAL DAYCARE,504306,130245290,16-Oct-14,560.00,GENERATE OPPORTUNITIES LTD,SP0000503
WANDSWORTH COUNCIL,ASC,SOCIAL SERVICES,Revenue,PRIVATE,EXTERNAL DAYCARE,504307,130245290,16-Oct-14,576.00,GENERATE OPPORTUNITIES LTD,SP0000503
WANDSWORTH COUNCIL,ASC,SOCIAL SERVICES,Revenue,PRIVATE,EXTERNAL DAYCARE,504311,130245290,16-Oct-14,"1,100.00",GENERATE OPPORTUNITIES LTD,SP0000503
WANDSWORTH COUNCIL,ASC,SOCIAL SERVICES,Revenue,PRIVATE,EXTERNAL DAYCARE,504317,130245290,16-Oct-14,576.00,GENERATE OPPORTUNITIES LTD,SP0000503
WANDSWORTH COUNCIL,ASC,SOCIAL SERVICES,Revenue,PRIVATE,EXTERNAL DAYCARE,504319,130245290,16-Oct-14,640.00,GENERATE OPPORTUNITIES LTD,SP0000503
WANDSWORTH COUNCIL,ASC,SOCIAL SERVICES,Revenue,PRIVATE,EXTERNAL DAYCARE,504324,130245290,16-Oct-14,560.00,GENERATE OPPORTUNITIES LTD,SP0000503
WANDSWORTH COUNCIL,ASC,SOCIAL SERVICES,Revenue,PRIVATE,EXTERNAL DAYCARE,504325,130245290,16-Oct-14,320.00,GENERATE OPPORTUNITIES LTD,SP0000503
WANDSWORTH COUNCIL,ASC,SOCIAL SERVICES,Revenue,PRIVATE,EXTERNAL DAYCARE,504326,130245290,16-Oct-14,576.00,GENERATE OPPORTUNITIES LTD,SP0000503
WANDSWORTH COUNCIL,ASC,SOCIAL SERVICES,Revenue,PRIVATE,EXTERNAL DAYCARE,504328,130245290,16-Oct-14,800.00,GENERATE OPPORTUNITIES LTD,SP0000503
WANDSWORTH COUNCIL,ASC,SOCIAL SERVICES,Revenue,PRIVATE,EXTERNAL DAYCARE,504335,130245290,16-Oct-14,576.00,GENERATE OPPORTUNITIES LTD,SP0000503
WANDSWORTH COUNCIL,ASC,SOCIAL SERVICES,Revenue,PRIVATE,EXTERNAL DAYCARE,513313,130245290,24-Oct-14,280.00,GENERATE OPPORTUNITIES LTD,SP0000503
WANDSWORTH COUNCIL,ASC,SOCIAL SERVICES,Revenue,PRIVATE,EXTERNAL DAYCARE,501265,130245290,14-Oct-14,892.50,DORSET SCOPE,SP0000591
WANDSWORTH COUNCIL,ASC,SOCIAL SERVICES,Revenue,PRIVATE,EXTERNAL DAYCARE,504017,130245290,16-Oct-14,602.56,HIGH HURLANDS HOMES,SP0000668
WANDSWORTH COUNCIL,ASC,SOCIAL SERVICES,Revenue,PRIVATE,EXTERNAL DAYCARE,507468,130245290,21-Oct-14,632.96,CREST COOPERATIVE LTD,SP0000683
WANDSWORTH COUNCIL,ASC,SOCIAL SERVICES,Revenue,PRIVATE,EXTERNAL DAYCARE,504038,130245290,16-Oct-14,"3,900.00",WORCESTERSHIRE COUNTY COUNCIL,SP0000700
WANDSWORTH COUNCIL,ASC,SOCIAL SERVICES,Revenue,PRIVATE,EXTERNAL DAYCARE,518266,130245290,31-Oct-14,"1,215.55",THE MANOR HOUSE,SP0000728
WANDSWORTH COUNCIL,ASC,SOCIAL SERVICES,Revenue,PRIVATE,EXTERNAL DAYCARE,501274,130245290,14-Oct-14,"1,204.06",ANTHONY TOBY HOMES TRUST,SP0000755
WANDSWORTH COUNCIL,ASC,SOCIAL SERVICES,Revenue,PRIVATE,EXTERNAL DAYCARE,498995,130245290,06-Oct-14,527.36,UNITED RESPONSE,SP0000797
WANDSWORTH COUNCIL,ASC,SOCIAL SERVICES,Revenue,PRIVATE,EXTERNAL DAYCARE,498996,130245290,06-Oct-14,527.36,UNITED RESPONSE,SP0000797
WANDSWORTH COUNCIL,ASC,SOCIAL SERVICES,Revenue,PRIVATE,EXTERNAL DAYCARE,504023,130245290,16-Oct-14,540.00,PROSPECTS,SP0000800
WANDSWORTH COUNCIL,ASC,SOCIAL SERVICES,Revenue,PRIVATE,EXTERNAL DAYCARE,515601,130245290,29-Oct-14,515.52,MENCAP OPEN DOOR,SP0000832
WANDSWORTH COUNCIL,ASC,SOCIAL SERVICES,Revenue,PRIVATE,EXTERNAL DAYCARE,516062,130245290,30-Oct-14,504.80,MENCAP OPEN DOOR,SP0000832
WANDSWORTH COUNCIL,ASC,SOCIAL SERVICES,Revenue,PRIVATE,EXTERNAL DAYCARE,504044,130245290,16-Oct-14,"1,586.84",STALLCOMBE HOUSE,SP0000843
WANDSWORTH COUNCIL,ASC,SOCIAL SERVICES,Revenue,PRIVATE,EXTERNAL DAYCARE,504026,130245290,16-Oct-14,814.03,SCOPE,SP0000852
WANDSWORTH COUNCIL,ASC,SOCIAL SERVICES,Revenue,PRIVATE,EXTERNAL DAYCARE,504052,130245290,16-Oct-14,833.52,SCOPE,SP0000852
WANDSWORTH COUNCIL,ASC,SOCIAL SERVICES,Revenue,PRIVATE,EXTERNAL DAYCARE,513376,130245290,24-Oct-14,833.52,SCOPE,SP0000852
WANDSWORTH COUNCIL,ASC,SOCIAL SERVICES,Revenue,PRIVATE,EXTERNAL DAYCARE,512465,130245290,23-Oct-14,738.72,ACT TOO LTD,SP0000855
WANDSWORTH COUNCIL,ASC,SOCIAL SERVICES,Revenue,PRIVATE,EXTERNAL DAYCARE,512473,130245290,23-Oct-14,923.40,ACT TOO LTD,SP0000855
WANDSWORTH COUNCIL,ASC,SOCIAL SERVICES,Revenue,PRIVATE,EXTERNAL DAYCARE,512476,130245290,23-Oct-14,738.72,ACT TOO LTD,SP0000855
WANDSWORTH COUNCIL,ASC,SOCIAL SERVICES,Revenue,PRIVATE,EXTERNAL DAYCARE,512478,130245290,23-Oct-14,554.04,ACT TOO LTD,SP0000855
WANDSWORTH COUNCIL,ASC,SOCIAL SERVICES,Revenue,PRIVATE,EXTERNAL DAYCARE,512481,130245290,23-Oct-14,554.04,ACT TOO LTD,SP0000855
WANDSWORTH COUNCIL,ASC,SOCIAL SERVICES,Revenue,PRIVATE,EXTERNAL DAYCARE,512482,130245290,23-Oct-14,554.04,ACT TOO LTD,SP0000855
WANDSWORTH COUNCIL,ASC,SOCIAL SERVICES,Revenue,PRIVATE,EXTERNAL DAYCARE,512483,130245290,23-Oct-14,554.04,ACT TOO LTD,SP0000855
WANDSWORTH COUNCIL,ASC,SOCIAL SERVICES,Revenue,PRIVATE,EXTERNAL DAYCARE,512484,130245290,23-Oct-14,554.04,ACT TOO LTD,SP0000855
WANDSWORTH COUNCIL,ASC,SOCIAL SERVICES,Revenue,PRIVATE,EXTERNAL DAYCARE,512485,130245290,23-Oct-14,"1,108.08",ACT TOO LTD,SP0000855
WANDSWORTH COUNCIL,ASC,SOCIAL SERVICES,Revenue,PRIVATE,EXTERNAL DAYCARE,512487,130245290,23-Oct-14,738.12,ACT TOO LTD,SP0000855
WANDSWORTH COUNCIL,ASC,SOCIAL SERVICES,Revenue,PRIVATE,EXTERNAL DAYCARE,512492,130245290,23-Oct-14,554.04,ACT TOO LTD,SP0000855
WANDSWORTH COUNCIL,ASC,SOCIAL SERVICES,Revenue,PRIVATE,EXTERNAL DAYCARE,513935,130245290,27-Oct-14,554.04,ACT TOO LTD,SP0000855
WANDSWORTH COUNCIL,ASC,SOCIAL SERVICES,Revenue,PRIVATE,EXTERNAL DAYCARE,513937,130245290,27-Oct-14,554.04,ACT TOO LTD,SP0000855
WANDSWORTH COUNCIL,ASC,SOCIAL SERVICES,Revenue,PRIVATE,EXTERNAL DAYCARE,513938,130245290,27-Oct-14,554.04,ACT TOO LTD,SP0000855
WANDSWORTH COUNCIL,ASC,SOCIAL SERVICES,Revenue,PRIVATE,EXTERNAL DAYCARE,513940,130245290,27-Oct-14,554.04,ACT TOO LTD,SP0000855
WANDSWORTH COUNCIL,ASC,SOCIAL SERVICES,Revenue,PRIVATE,EXTERNAL DAYCARE,513943,130245290,27-Oct-14,923.40,ACT TOO LTD,SP0000855
WANDSWORTH COUNCIL,ASC,SOCIAL SERVICES,Revenue,PRIVATE,EXTERNAL DAYCARE,513944,130245290,27-Oct-14,554.04,ACT TOO LTD,SP0000855
WANDSWORTH COUNCIL,ASC,SOCIAL SERVICES,Revenue,PRIVATE,EXTERNAL DAYCARE,513946,130245290,27-Oct-14,554.04,ACT TOO LTD,SP0000855
WANDSWORTH COUNCIL,ASC,SOCIAL SERVICES,Revenue,PRIVATE,EXTERNAL DAYCARE,513949,130245290,27-Oct-14,923.40,ACT TOO LTD,SP0000855
WANDSWORTH COUNCIL,ASC,SOCIAL SERVICES,Revenue,PRIVATE,EXTERNAL DAYCARE,513950,130245290,27-Oct-14,554.04,ACT TOO LTD,SP0000855
WANDSWORTH COUNCIL,ASC,SOCIAL SERVICES,Revenue,PRIVATE,EXTERNAL DAYCARE,513951,130245290,27-Oct-14,554.04,ACT TOO LTD,SP0000855
WANDSWORTH COUNCIL,ASC,SOCIAL SERVICES,Revenue,PRIVATE,EXTERNAL DAYCARE,513952,130245290,27-Oct-14,554.04,ACT TOO LTD,SP0000855
WANDSWORTH COUNCIL,ASC,SOCIAL SERVICES,Revenue,PRIVATE,EXTERNAL DAYCARE,513954,130245290,27-Oct-14,923.40,ACT TOO LTD,SP0000855
WANDSWORTH COUNCIL,ASC,SOCIAL SERVICES,Revenue,PRIVATE,EXTERNAL DAYCARE,513955,130245290,27-Oct-14,554.04,ACT TOO LTD,SP0000855
WANDSWORTH COUNCIL,ASC,SOCIAL SERVICES,Revenue,PRIVATE,EXTERNAL DAYCARE,513956,130245290,27-Oct-14,"1,108.08",ACT TOO LTD,SP0000855
WANDSWORTH COUNCIL,ASC,SOCIAL SERVICES,Revenue,PRIVATE,EXTERNAL DAYCARE,513957,130245290,27-Oct-14,738.72,ACT TOO LTD,SP0000855
WANDSWORTH COUNCIL,ASC,SOCIAL SERVICES,Revenue,PRIVATE,EXTERNAL DAYCARE,513961,130245290,27-Oct-14,554.04,ACT TOO LTD,SP0000855
WANDSWORTH COUNCIL,ASC,SOCIAL SERVICES,Revenue,PRIVATE,EXTERNAL DAYCARE,513964,130245290,27-Oct-14,554.04,ACT TOO LTD,SP0000855
WANDSWORTH COUNCIL,ASC,SOCIAL SERVICES,Revenue,PRIVATE,EXTERNAL DAYCARE,513970,130245290,27-Oct-14,738.72,ACT TOO LTD,SP0000855
WANDSWORTH COUNCIL,ASC,SOCIAL SERVICES,Revenue,PRIVATE,EXTERNAL DAYCARE,513973,130245290,27-Oct-14,554.04,ACT TOO LTD,SP0000855
WANDSWORTH COUNCIL,ASC,SOCIAL SERVICES,Revenue,PRIVATE,EXTERNAL DAYCARE,504039,130245290,16-Oct-14,"1,416.24",WINSLOW COURT,SP0000886
WANDSWORTH COUNCIL,ASC,SOCIAL SERVICES,Revenue,PRIVATE,EXTERNAL DAYCARE,504040,130245290,16-Oct-14,"1,416.24",WINSLOW COURT,SP0000886
WANDSWORTH COUNCIL,ASC,SOCIAL SERVICES,Revenue,PRIVATE,EXTERNAL DAYCARE,513930,130245290,27-Oct-14,797.47,ORIONE CARE,SP0000961
WANDSWORTH COUNCIL,ASC,SOCIAL SERVICES,Revenue,PRIVATE,EXTERNAL DAYCARE,513932,130245290,27-Oct-14,609.83,ORIONE CARE,SP0000961
WANDSWORTH COUNCIL,ASC,SOCIAL SERVICES,Revenue,PRIVATE,EXTERNAL DAYCARE,503978,130245290,16-Oct-14,900.00,RIDGEWOOD CARE SERVICES LTD,SP0000969
WANDSWORTH COUNCIL,ASC,SOCIAL SERVICES,Revenue,PRIVATE,EXTERNAL DAYCARE,503979,130245290,16-Oct-14,300.00,RIDGEWOOD CARE SERVICES LTD,SP0000969
WANDSWORTH COUNCIL,ASC,SOCIAL SERVICES,Revenue,PRIVATE,EXTERNAL DAYCARE,512457,130245290,23-Oct-14,"1,138.40",RIDGEWOOD CARE SERVICES LTD,SP0000969
WANDSWORTH COUNCIL,ASC,ENVIRONMENT & COMMUNITY,Revenue,PRIVATE,EXTERNAL DAYCARE,507116,130245290,20-Oct-14,"27,736.77",LEONARD CHESHIRE,SP0000976
WANDSWORTH COUNCIL,ASC,SOCIAL SERVICES,Revenue,PRIVATE,EXTERNAL DAYCARE,513361,130245290,24-Oct-14,"1,044.40",SCOPE,SP0000991
WANDSWORTH COUNCIL,ASC,SOCIAL SERVICES,Revenue,PRIVATE,EXTERNAL DAYCARE,513362,130245290,24-Oct-14,746.00,SCOPE,SP0000991
WANDSWORTH COUNCIL,ASC,SOCIAL SERVICES,Revenue,PRIVATE,EXTERNAL DAYCARE,507466,130245290,21-Oct-14,"2,149.38",ROYAL BOROUGH OF WINDSOR AND MAIDENHEAD,SP0001087
WANDSWORTH COUNCIL,ASC,SOCIAL SERVICES,Revenue,PRIVATE,EXTERNAL DAYCARE,518138,130245290,31-Oct-14,"1,551.24",LONDON CARE PARTNERSHIP LTD,SP0001138
WANDSWORTH COUNCIL,ASC,SOCIAL SERVICES,Revenue,PRIVATE,EXTERNAL DAYCARE,508325,130245290,21-Oct-14,807.30,HARROW MENCAP,SP0001347
WANDSWORTH COUNCIL,ASC,SOCIAL SERVICES,Revenue,PRIVATE,EXTERNAL DAYCARE,499158,130245290,06-Oct-14,531.00,WORKSHOP 305,SP0001403
WANDSWORTH COUNCIL,ASC,SOCIAL SERVICES,Revenue,PRIVATE,EXTERNAL DAYCARE,512501,130245290,23-Oct-14,552.00,WORKSHOP 305,SP0001403
WANDSWORTH COUNCIL,ASC,SOCIAL SERVICES,Revenue,PRIVATE,EXTERNAL DAYCARE,512502,130245290,23-Oct-14,828.00,WORKSHOP 305,SP0001403
WANDSWORTH COUNCIL,ASC,SOCIAL SERVICES,Revenue,PRIVATE,EXTERNAL DAYCARE,512509,130245290,23-Oct-14,944.00,WORKSHOP 305,SP0001403
WANDSWORTH COUNCIL,ASC,SOCIAL SERVICES,Revenue,PRIVATE,EXTERNAL DAYCARE,512513,130245290,23-Oct-14,708.00,WORKSHOP 305,SP0001403
WANDSWORTH COUNCIL,ASC,SOCIAL SERVICES,Revenue,PRIVATE,EXTERNAL DAYCARE,512521,130245290,23-Oct-14,828.00,WORKSHOP 305,SP0001403
WANDSWORTH COUNCIL,ASC,SOCIAL SERVICES,Revenue,PRIVATE,EXTERNAL DAYCARE,512522,130245290,23-Oct-14,708.00,WORKSHOP 305,SP0001403
WANDSWORTH COUNCIL,ASC,SOCIAL SERVICES,Revenue,PRIVATE,EXTERNAL DAYCARE,512528,130245290,23-Oct-14,552.00,WORKSHOP 305,SP0001403
WANDSWORTH COUNCIL,ASC,SOCIAL SERVICES,Revenue,PRIVATE,EXTERNAL DAYCARE,512530,130245290,23-Oct-14,708.00,WORKSHOP 305,SP0001403
WANDSWORTH COUNCIL,ASC,SOCIAL SERVICES,Revenue,PRIVATE,EXTERNAL DAYCARE,512533,130245290,23-Oct-14,552.00,WORKSHOP 305,SP0001403
WANDSWORTH COUNCIL,ASC,SOCIAL SERVICES,Revenue,PRIVATE,EXTERNAL DAYCARE,512540,130245290,23-Oct-14,944.00,WORKSHOP 305,SP0001403
WANDSWORTH COUNCIL,ASC,SOCIAL SERVICES,Revenue,PRIVATE,EXTERNAL DAYCARE,508326,130245290,21-Oct-14,520.00,THE CAMDEN SOCIETY,SP0001674
WANDSWORTH COUNCIL,ASC,SOCIAL SERVICES,Revenue,PRIVATE,EXTERNAL DAYCARE,508327,130245290,21-Oct-14,520.00,THE CAMDEN SOCIETY,SP0001674
WANDSWORTH COUNCIL,ASC,SOCIAL SERVICES,Revenue,PRIVATE,EXTERNAL DAYCARE,508328,130245290,21-Oct-14,520.00,THE CAMDEN SOCIETY,SP0001674
WANDSWORTH COUNCIL,ASC,SOCIAL SERVICES,Revenue,PRIVATE,EXTERNAL DAYCARE,508329,130245290,21-Oct-14,520.00,THE CAMDEN SOCIETY,SP0001674
WANDSWORTH COUNCIL,ASC,SOCIAL SERVICES,Revenue,PRIVATE,EXTERNAL DAYCARE,508330,130245290,21-Oct-14,520.00,THE CAMDEN SOCIETY,SP0001674
WANDSWORTH COUNCIL,ASC,SOCIAL SERVICES,Revenue,PRIVATE,EXTERNAL DAYCARE,508331,130245290,21-Oct-14,520.00,THE CAMDEN SOCIETY,SP0001674
WANDSWORTH COUNCIL,ASC,SOCIAL SERVICES,Revenue,PRIVATE,EXTERNAL HOMECARE,504231,130245300,16-Oct-14,456.32,RAINBOW MEDICAL SERVICES,SP0000037
WANDSWORTH COUNCIL,ASC,SOCIAL SERVICES,Revenue,PRIVATE,EXTERNAL HOMECARE,511540,130245300,23-Oct-14,937.32,RAINBOW MEDICAL SERVICES,SP0000037
WANDSWORTH COUNCIL,ASC,SOCIAL SERVICES,Revenue,PRIVATE,EXTERNAL HOMECARE,511540,130245300,23-Oct-14,6.68,RAINBOW MEDICAL SERVICES,SP0000037
WANDSWORTH COUNCIL,ASC,SOCIAL SERVICES,Revenue,PRIVATE,EXTERNAL HOMECARE,499063,130245300,06-Oct-14,737.27,ASIAN ELDERS SUPPORT SCHEME,SP0000190
WANDSWORTH COUNCIL,ASC,SOCIAL SERVICES,Revenue,PRIVATE,EXTERNAL HOMECARE,513714,130245300,27-Oct-14,551.69,ASIAN ELDERS SUPPORT SCHEME,SP0000190
WANDSWORTH COUNCIL,ASC,SOCIAL SERVICES,Revenue,PRIVATE,EXTERNAL HOMECARE,513716,130245300,27-Oct-14,737.27,ASIAN ELDERS SUPPORT SCHEME,SP0000190
WANDSWORTH COUNCIL,ASC,SOCIAL SERVICES,Revenue,PRIVATE,EXTERNAL HOMECARE,513717,130245300,27-Oct-14,744.58,ASIAN ELDERS SUPPORT SCHEME,SP0000190
WANDSWORTH COUNCIL,ASC,SOCIAL SERVICES,Revenue,PRIVATE,EXTERNAL HOMECARE,513720,130245300,27-Oct-14,696.34,ASIAN ELDERS SUPPORT SCHEME,SP0000190
WANDSWORTH COUNCIL,ASC,SOCIAL SERVICES,Revenue,PRIVATE,EXTERNAL HOMECARE,513722,130245300,27-Oct-14,735.59,ASIAN ELDERS SUPPORT SCHEME,SP0000190
WANDSWORTH COUNCIL,ASC,SOCIAL SERVICES,Revenue,PRIVATE,EXTERNAL HOMECARE,513724,130245300,27-Oct-14,740.08,ASIAN ELDERS SUPPORT SCHEME,SP0000190
WANDSWORTH COUNCIL,ASC,SOCIAL SERVICES,Revenue,PRIVATE,EXTERNAL HOMECARE,501258,130245300,14-Oct-14,635.88,PLAN PERSONNEL,SP0000359
WANDSWORTH COUNCIL,ASC,SOCIAL SERVICES,Revenue,PRIVATE,EXTERNAL HOMECARE,507426,130245300,21-Oct-14,752.72,MUSHKIL AASAAN LTD,SP0000978
WANDSWORTH COUNCIL,ASC,SOCIAL SERVICES,Revenue,PRIVATE,EXTERNAL HOMECARE,508276,130245300,21-Oct-14,661.52,MUSHKIL AASAAN LTD,SP0000978
WANDSWORTH COUNCIL,ASC,SOCIAL SERVICES,Revenue,PRIVATE,EXTERNAL HOMECARE,513734,130245300,27-Oct-14,777.96,MUSHKIL AASAAN LTD,SP0000978
WANDSWORTH COUNCIL,ASC,SOCIAL SERVICES,Revenue,PRIVATE,EXTERNAL HOMECARE,515463,130245300,29-Oct-14,629.91,LONDON CARE PLC,SP0001035
WANDSWORTH COUNCIL,ASC,SOCIAL SERVICES,Revenue,PRIVATE,EXTERNAL HOMECARE,515553,130245300,29-Oct-14,621.90,LONDON CARE PLC,SP0001035
WANDSWORTH COUNCIL,ASC,SOCIAL SERVICES,Revenue,PRIVATE,EXTERNAL HOMECARE,518185,130245300,31-Oct-14,"1,485.60",HFH HOMECARE,SP0001058
WANDSWORTH COUNCIL,ASC,SOCIAL SERVICES,Revenue,PRIVATE,EXTERNAL HOMECARE,499056,130245300,06-Oct-14,571.07,SOMA HEALTHCARE LTD,SP0001116
WANDSWORTH COUNCIL,ASC,SOCIAL SERVICES,Revenue,PRIVATE,EXTERNAL HOMECARE,512448,130245300,23-Oct-14,648.98,SOMA HEALTHCARE LTD,SP0001116
WANDSWORTH COUNCIL,ASC,SOCIAL SERVICES,Revenue,PRIVATE,EXTERNAL HOMECARE,507405,130245300,21-Oct-14,"2,265.02",MEARS CARE LTD,SP0001491
WANDSWORTH COUNCIL,ASC,SOCIAL SERVICES,Revenue,PRIVATE,EXTERNAL HOMECARE,504239,130245300,16-Oct-14,"5,838.92",INDEPENDENCE HOMES LTD,SP0004378
WANDSWORTH COUNCIL,ASC,SOCIAL SERVICES,Revenue,PRIVATE,EXTERNAL HOMECARE,504240,130245300,16-Oct-14,"5,745.60",INDEPENDENCE HOMES LTD,SP0004378
WANDSWORTH COUNCIL,ASC,SOCIAL SERVICES,Revenue,PRIVATE,EXTERNAL HOMECARE,508272,130245300,21-Oct-14,"2,693.33",CHRISTIES CARE LTD,SP0005440
WANDSWORTH COUNCIL,ASC,SOCIAL SERVICES,Revenue,PRIVATE,EXTERNAL HOMECARE,512578,130245300,23-Oct-14,"4,480.00",HFH HEALTHCARE,SP0005937
WANDSWORTH COUNCIL,ASC,SOCIAL SERVICES,Revenue,PRIVATE,EXTERNAL NURSING CARE,502314,130245310,15-Oct-14,"5,975.84",WINGHAM COURT,SP0000025
WANDSWORTH COUNCIL,ASC,SOCIAL SERVICES,Revenue,PRIVATE,EXTERNAL NURSING CARE,507740,130245310,21-Oct-14,516.53,GEORGE POTTER CARE HOME LTD,SP0000276
WANDSWORTH COUNCIL,ASC,SOCIAL SERVICES,Revenue,PRIVATE,EXTERNAL NURSING CARE,518157,130245310,31-Oct-14,"4,915.41",RONALD GIBSON HOUSE,SP0000302
WANDSWORTH COUNCIL,ASC,SOCIAL SERVICES,Revenue,PRIVATE,EXTERNAL NURSING CARE,508183,130245310,21-Oct-14,"3,129.56",ROSEDENE NURSING HOME,SP0000316
WANDSWORTH COUNCIL,ASC,SOCIAL SERVICES,Revenue,PRIVATE,EXTERNAL NURSING CARE,512259,130245310,23-Oct-14,"3,065.88",YEW TREE NURSING HOME,SP0000454
WANDSWORTH COUNCIL,ASC,SOCIAL SERVICES,Revenue,PRIVATE,EXTERNAL NURSING CARE,503946,130245310,16-Oct-14,"5,382.08",HIGH HURLANDS HOMES,SP0000668
WANDSWORTH COUNCIL,ASC,SOCIAL SERVICES,Revenue,PRIVATE,EXTERNAL NURSING CARE,507942,130245310,21-Oct-14,"2,787.60",TRINITY COURT NURSING HOME,SP0001001
WANDSWORTH COUNCIL,ASC,SOCIAL SERVICES,Revenue,PRIVATE,EXTERNAL NURSING CARE,497019,130245310,02-Oct-14,"3,383.70",CARE UK COMMUNITY PARTNERSHIP,SP0001022
WANDSWORTH COUNCIL,ASC,SOCIAL SERVICES,Revenue,PRIVATE,EXTERNAL NURSING CARE,507983,130245310,21-Oct-14,"1,624.18",YORK COURT CARE HOME,SP0006091
WANDSWORTH COUNCIL,ASC,SOCIAL SERVICES,Revenue,PRIVATE,EXTERNAL NURSING CARE,508009,130245310,21-Oct-14,"2,675.12",YORK COURT CARE HOME,SP0006091
WANDSWORTH COUNCIL,ASC,SOCIAL SERVICES,Revenue,PRIVATE,EXTERNAL RESIDENTIAL CARE,507806,130245330,21-Oct-14,"2,618.36",THE LYLE PARK TRUST,SP0000070
WANDSWORTH COUNCIL,ASC,SOCIAL SERVICES,Revenue,PRIVATE,EXTERNAL RESIDENTIAL CARE,498966,130245330,06-Oct-14,"5,632.12",CMG HOMES LTD,SP0000075
WANDSWORTH COUNCIL,ASC,SOCIAL SERVICES,Revenue,PRIVATE,EXTERNAL RESIDENTIAL CARE,498970,130245330,06-Oct-14,"3,911.48",CMG HOMES LTD,SP0000075
WANDSWORTH COUNCIL,ASC,SOCIAL SERVICES,Revenue,PRIVATE,EXTERNAL RESIDENTIAL CARE,498971,130245330,06-Oct-14,"6,007.12",CMG HOMES LTD,SP0000075
WANDSWORTH COUNCIL,ASC,SOCIAL SERVICES,Revenue,PRIVATE,EXTERNAL RESIDENTIAL CARE,498972,130245330,06-Oct-14,"5,553.00",CMG HOMES LTD,SP0000075
WANDSWORTH COUNCIL,ASC,SOCIAL SERVICES,Revenue,PRIVATE,EXTERNAL RESIDENTIAL CARE,498973,130245330,06-Oct-14,"3,862.12",CMG HOMES LTD,SP0000075
WANDSWORTH COUNCIL,ASC,SOCIAL SERVICES,Revenue,PRIVATE,EXTERNAL RESIDENTIAL CARE,498974,130245330,06-Oct-14,"4,372.00",CMG HOMES LTD,SP0000075
WANDSWORTH COUNCIL,ASC,SOCIAL SERVICES,Revenue,PRIVATE,EXTERNAL RESIDENTIAL CARE,498975,130245330,06-Oct-14,"8,061.00",CMG HOMES LTD,SP0000075
WANDSWORTH COUNCIL,ASC,SOCIAL SERVICES,Revenue,PRIVATE,EXTERNAL RESIDENTIAL CARE,498976,130245330,06-Oct-14,"4,866.36",CMG HOMES LTD,SP0000075
WANDSWORTH COUNCIL,ASC,SOCIAL SERVICES,Revenue,PRIVATE,EXTERNAL RESIDENTIAL CARE,498977,130245330,06-Oct-14,"4,646.00",CMG HOMES LTD,SP0000075
WANDSWORTH COUNCIL,ASC,SOCIAL SERVICES,Revenue,PRIVATE,EXTERNAL RESIDENTIAL CARE,498980,130245330,06-Oct-14,"7,123.64",CMG HOMES LTD,SP0000075
WANDSWORTH COUNCIL,ASC,SOCIAL SERVICES,Revenue,PRIVATE,EXTERNAL RESIDENTIAL CARE,498993,130245330,06-Oct-14,"4,415.60",CMG HOMES LTD,SP0000075
WANDSWORTH COUNCIL,ASC,SOCIAL SERVICES,Revenue,PRIVATE,EXTERNAL RESIDENTIAL CARE,507296,130245330,21-Oct-14,"6,000.00",NATIONAL SOCIETY FOR EPILEPSY,SP0000120
WANDSWORTH COUNCIL,ASC,SOCIAL SERVICES,Revenue,PRIVATE,EXTERNAL RESIDENTIAL CARE,507652,130245330,21-Oct-14,"2,162.32",SANCTUARY CARE LTD,SP0000121
WANDSWORTH COUNCIL,ASC,SOCIAL SERVICES,Revenue,PRIVATE,EXTERNAL RESIDENTIAL CARE,515351,130245330,29-Oct-14,"5,025.36",IN CHORUS LTD,SP0000129
WANDSWORTH COUNCIL,ASC,SOCIAL SERVICES,Revenue,PRIVATE,EXTERNAL RESIDENTIAL CARE,518136,130245330,31-Oct-14,"3,975.09",CENTRUST CARE HOMES LTD,SP0000141
WANDSWORTH COUNCIL,ASC,SOCIAL SERVICES,Revenue,PRIVATE,EXTERNAL RESIDENTIAL CARE,518169,130245330,31-Oct-14,"4,191.16",FRANCES TAYLOR FOUNDATION,SP0000142
WANDSWORTH COUNCIL,ASC,SOCIAL SERVICES,Revenue,PRIVATE,EXTERNAL RESIDENTIAL CARE,518170,130245330,31-Oct-14,"4,835.92",FRANCES TAYLOR FOUNDATION,SP0000142
WANDSWORTH COUNCIL,ASC,SOCIAL SERVICES,Revenue,PRIVATE,EXTERNAL RESIDENTIAL CARE,518171,130245330,31-Oct-14,"4,338.81",FRANCES TAYLOR FOUNDATION,SP0000142
WANDSWORTH COUNCIL,ASC,SOCIAL SERVICES,Revenue,PRIVATE,EXTERNAL RESIDENTIAL CARE,518172,130245330,31-Oct-14,"4,259.13",FRANCES TAYLOR FOUNDATION,SP0000142
WANDSWORTH COUNCIL,ASC,SOCIAL SERVICES,Revenue,PRIVATE,EXTERNAL RESIDENTIAL CARE,503947,130245330,16-Oct-14,"4,309.49",RESIDENTIAL CARE SERVICES T/A FRANKLYN L,SP0000147
WANDSWORTH COUNCIL,ASC,SOCIAL SERVICES,Revenue,PRIVATE,EXTERNAL RESIDENTIAL CARE,507338,130245330,21-Oct-14,"4,593.96",THE CHESTNUTS,SP0000182
WANDSWORTH COUNCIL,ASC,SOCIAL SERVICES,Revenue,PRIVATE,EXTERNAL RESIDENTIAL CARE,507339,130245330,21-Oct-14,"5,555.16",THE CHESTNUTS,SP0000182
WANDSWORTH COUNCIL,ASC,SOCIAL SERVICES,Revenue,PRIVATE,EXTERNAL RESIDENTIAL CARE,507322,130245330,21-Oct-14,"1,647.40",ORCHARD VALE TRUST,SP0000214
WANDSWORTH COUNCIL,ASC,SOCIAL SERVICES,Revenue,PRIVATE,EXTERNAL RESIDENTIAL CARE,515353,130245330,29-Oct-14,"3,961.80",ST MARYS RESIDENTIAL HOME,SP0000215
WANDSWORTH COUNCIL,ASC,SOCIAL SERVICES,Revenue,PRIVATE,EXTERNAL RESIDENTIAL CARE,515354,130245330,29-Oct-14,"3,582.72",ST MARYS RESIDENTIAL HOME,SP0000215
WANDSWORTH COUNCIL,ASC,SOCIAL SERVICES,Revenue,PRIVATE,EXTERNAL RESIDENTIAL CARE,515355,130245330,29-Oct-14,"3,898.74",ST MARYS RESIDENTIAL HOME,SP0000215
WANDSWORTH COUNCIL,ASC,SOCIAL SERVICES,Revenue,PRIVATE,EXTERNAL RESIDENTIAL CARE,515356,130245330,29-Oct-14,"5,127.49",ST MARYS RESIDENTIAL HOME,SP0000215
WANDSWORTH COUNCIL,ASC,SOCIAL SERVICES,Revenue,PRIVATE,EXTERNAL RESIDENTIAL CARE,515357,130245330,29-Oct-14,"3,569.83",ST MARYS RESIDENTIAL HOME,SP0000215
WANDSWORTH COUNCIL,ASC,SOCIAL SERVICES,Revenue,PRIVATE,EXTERNAL RESIDENTIAL CARE,515358,130245330,29-Oct-14,"3,711.64",ST MARYS RESIDENTIAL HOME,SP0000215
WANDSWORTH COUNCIL,ASC,SOCIAL SERVICES,Revenue,PRIVATE,EXTERNAL RESIDENTIAL CARE,515359,130245330,29-Oct-14,"3,134.19",ST MARYS RESIDENTIAL HOME,SP0000215
WANDSWORTH COUNCIL,ASC,SOCIAL SERVICES,Revenue,PRIVATE,EXTERNAL RESIDENTIAL CARE,515360,130245330,29-Oct-14,"5,041.36",ST MARYS RESIDENTIAL HOME,SP0000215
WANDSWORTH COUNCIL,ASC,SOCIAL SERVICES,Revenue,PRIVATE,EXTERNAL RESIDENTIAL CARE,515361,130245330,29-Oct-14,"3,619.79",ST MARYS RESIDENTIAL HOME,SP0000215
WANDSWORTH COUNCIL,ASC,SOCIAL SERVICES,Revenue,PRIVATE,EXTERNAL RESIDENTIAL CARE,515362,130245330,29-Oct-14,"3,582.71",ST MARYS RESIDENTIAL HOME,SP0000215
WANDSWORTH COUNCIL,ASC,SOCIAL SERVICES,Revenue,PRIVATE,EXTERNAL RESIDENTIAL CARE,515363,130245330,29-Oct-14,"3,269.48",ST MARYS RESIDENTIAL HOME,SP0000215
WANDSWORTH COUNCIL,ASC,SOCIAL SERVICES,Revenue,PRIVATE,EXTERNAL RESIDENTIAL CARE,515364,130245330,29-Oct-14,"2,313.49",ST MARYS RESIDENTIAL HOME,SP0000215
WANDSWORTH COUNCIL,ASC,SOCIAL SERVICES,Revenue,PRIVATE,EXTERNAL RESIDENTIAL CARE,515365,130245330,29-Oct-14,"2,313.49",ST MARYS RESIDENTIAL HOME,SP0000215
WANDSWORTH COUNCIL,ASC,SOCIAL SERVICES,Revenue,PRIVATE,EXTERNAL RESIDENTIAL CARE,515366,130245330,29-Oct-14,"3,101.12",ST MARYS RESIDENTIAL HOME,SP0000215
WANDSWORTH COUNCIL,ASC,SOCIAL SERVICES,Revenue,PRIVATE,EXTERNAL RESIDENTIAL CARE,515367,130245330,29-Oct-14,"3,723.12",ST MARYS RESIDENTIAL HOME,SP0000215
WANDSWORTH COUNCIL,ASC,SOCIAL SERVICES,Revenue,PRIVATE,EXTERNAL RESIDENTIAL CARE,502320,130245330,15-Oct-14,"5,487.72",NAS SERVICES LIMITED,SP0000217
WANDSWORTH COUNCIL,ASC,SOCIAL SERVICES,Revenue,PRIVATE,EXTERNAL RESIDENTIAL CARE,502681,130245330,21-Oct-14,"8,645.88",NAS SERVICES LIMITED,SP0000217
WANDSWORTH COUNCIL,ASC,SOCIAL SERVICES,Revenue,PRIVATE,EXTERNAL RESIDENTIAL CARE,503955,130245330,16-Oct-14,"5,487.72",NAS SERVICES LIMITED,SP0000217
WANDSWORTH COUNCIL,ASC,SOCIAL SERVICES,Revenue,PRIVATE,EXTERNAL RESIDENTIAL CARE,503956,130245330,16-Oct-14,"8,645.88",NAS SERVICES LIMITED,SP0000217
WANDSWORTH COUNCIL,ASC,SOCIAL SERVICES,Revenue,PRIVATE,EXTERNAL RESIDENTIAL CARE,503960,130245330,16-Oct-14,"3,370.92",NAS SERVICES LIMITED,SP0000217
WANDSWORTH COUNCIL,ASC,SOCIAL SERVICES,Revenue,PRIVATE,EXTERNAL RESIDENTIAL CARE,515337,130245330,29-Oct-14,"3,370.92",NAS SERVICES LIMITED,SP0000217
WANDSWORTH COUNCIL,ASC,SOCIAL SERVICES,Revenue,PRIVATE,EXTERNAL RESIDENTIAL CARE,515373,130245330,29-Oct-14,"5,487.72",NAS SERVICES LIMITED,SP0000217
WANDSWORTH COUNCIL,ASC,SOCIAL SERVICES,Revenue,PRIVATE,EXTERNAL RESIDENTIAL CARE,515621,130245330,30-Oct-14,"8,645.88",NAS SERVICES LIMITED,SP0000217
WANDSWORTH COUNCIL,ASC,SOCIAL SERVICES,Revenue,PRIVATE,EXTERNAL RESIDENTIAL CARE,512263,130245330,23-Oct-14,"8,720.00",SPRING LAKE,SP0000223
WANDSWORTH COUNCIL,ASC,SOCIAL SERVICES,Revenue,PRIVATE,EXTERNAL RESIDENTIAL CARE,512264,130245330,23-Oct-14,"7,600.00",SPRING LAKE,SP0000223
WANDSWORTH COUNCIL,ASC,SOCIAL SERVICES,Revenue,PRIVATE,EXTERNAL RESIDENTIAL CARE,512265,130245330,23-Oct-14,"8,720.00",SPRING LAKE,SP0000223
WANDSWORTH COUNCIL,ASC,SOCIAL SERVICES,Revenue,PRIVATE,EXTERNAL RESIDENTIAL CARE,512266,130245330,23-Oct-14,"7,600.00",SPRING LAKE,SP0000223
WANDSWORTH COUNCIL,ASC,SOCIAL SERVICES,Revenue,PRIVATE,EXTERNAL RESIDENTIAL CARE,503945,130245330,16-Oct-14,"3,724.72",HAYDON PARK LODGE LTD,SP0000231
WANDSWORTH COUNCIL,ASC,SOCIAL SERVICES,Revenue,PRIVATE,EXTERNAL RESIDENTIAL CARE,518119,130245330,31-Oct-14,"8,046.59",BROOKDALE CARE,SP0000282
WANDSWORTH COUNCIL,ASC,SOCIAL SERVICES,Revenue,PRIVATE,EXTERNAL RESIDENTIAL CARE,497007,130245330,02-Oct-14,"3,029.72",CRAEGMOOR FACILITIES CO LTD,SP0000306
WANDSWORTH COUNCIL,ASC,SOCIAL SERVICES,Revenue,PRIVATE,EXTERNAL RESIDENTIAL CARE,507336,130245330,21-Oct-14,"3,029.72",CRAEGMOOR FACILITIES CO LTD,SP0000306
WANDSWORTH COUNCIL,ASC,SOCIAL SERVICES,Revenue,PRIVATE,EXTERNAL RESIDENTIAL CARE,515368,130245330,29-Oct-14,"5,476.26",DOLPHIN HOMES LTD,SP0000331
WANDSWORTH COUNCIL,ASC,SOCIAL SERVICES,Revenue,PRIVATE,EXTERNAL RESIDENTIAL CARE,515369,130245330,29-Oct-14,"4,311.17",DOLPHIN HOMES LTD,SP0000331
WANDSWORTH COUNCIL,ASC,SOCIAL SERVICES,Revenue,PRIVATE,EXTERNAL RESIDENTIAL CARE,503958,130245330,16-Oct-14,"6,154.44",NORWOOD SCHOOLS LTD,SP0000332
WANDSWORTH COUNCIL,ASC,SOCIAL SERVICES,Revenue,PRIVATE,EXTERNAL RESIDENTIAL CARE,503959,130245330,16-Oct-14,"6,409.80",NORWOOD SCHOOLS LTD,SP0000332
WANDSWORTH COUNCIL,ASC,SOCIAL SERVICES,Revenue,PRIVATE,EXTERNAL RESIDENTIAL CARE,513670,130245330,27-Oct-14,"6,154.44",NORWOOD SCHOOLS LTD,SP0000332
WANDSWORTH COUNCIL,ASC,SOCIAL SERVICES,Revenue,PRIVATE,EXTERNAL RESIDENTIAL CARE,513671,130245330,27-Oct-14,"6,409.80",NORWOOD SCHOOLS LTD,SP0000332
WANDSWORTH COUNCIL,ASC,SOCIAL SERVICES,Revenue,PRIVATE,EXTERNAL RESIDENTIAL CARE,518147,130245330,31-Oct-14,"2,409.63",THE MANOR,SP0000340
WANDSWORTH COUNCIL,ASC,SOCIAL SERVICES,Revenue,PRIVATE,EXTERNAL RESIDENTIAL CARE,503940,130245330,16-Oct-14,"3,107.14",HEYWOODS GRANGE LTD,SP0000361
WANDSWORTH COUNCIL,ASC,SOCIAL SERVICES,Revenue,PRIVATE,EXTERNAL RESIDENTIAL CARE,498991,130245330,06-Oct-14,"3,135.60",POTENSIAL LTD,SP0000395
WANDSWORTH COUNCIL,ASC,SOCIAL SERVICES,Revenue,PRIVATE,EXTERNAL RESIDENTIAL CARE,518128,130245330,31-Oct-14,"3,135.60",POTENSIAL LTD,SP0000395
WANDSWORTH COUNCIL,ASC,SOCIAL SERVICES,Revenue,PRIVATE,EXTERNAL RESIDENTIAL CARE,513639,130245330,27-Oct-14,"4,150.04",KENILWORTH RESIDENTIAL HOME,SP0000432
WANDSWORTH COUNCIL,ASC,SOCIAL SERVICES,Revenue,PRIVATE,EXTERNAL RESIDENTIAL CARE,513640,130245330,27-Oct-14,"3,976.83",KENILWORTH RESIDENTIAL HOME,SP0000432
WANDSWORTH COUNCIL,ASC,SOCIAL SERVICES,Revenue,PRIVATE,EXTERNAL RESIDENTIAL CARE,508378,130245330,21-Oct-14,"11,725.71",MACINTYRE CARE,SP0000473
WANDSWORTH COUNCIL,ASC,SOCIAL SERVICES,Revenue,PRIVATE,EXTERNAL RESIDENTIAL CARE,503970,130245330,16-Oct-14,"8,982.39",SURREY & BORDERS PARTNERSHIP NHS TRUST,SP0000501
WANDSWORTH COUNCIL,ASC,SOCIAL SERVICES,Revenue,PRIVATE,EXTERNAL RESIDENTIAL CARE,503971,130245330,16-Oct-14,"5,622.80",SURREY & BORDERS PARTNERSHIP NHS TRUST,SP0000501
WANDSWORTH COUNCIL,ASC,SOCIAL SERVICES,Revenue,PRIVATE,EXTERNAL RESIDENTIAL CARE,507327,130245330,21-Oct-14,"7,717.76",LORING HALL LIMITED,SP0000511
WANDSWORTH COUNCIL,ASC,SOCIAL SERVICES,Revenue,PRIVATE,EXTERNAL RESIDENTIAL CARE,502304,130245330,15-Oct-14,"7,291.54",SEEABILITY,SP0000572
WANDSWORTH COUNCIL,ASC,SOCIAL SERVICES,Revenue,PRIVATE,EXTERNAL RESIDENTIAL CARE,498979,130245330,06-Oct-14,"5,408.14",THE COMMUNITY CARE COMPANY UK LTD,SP0000576
WANDSWORTH COUNCIL,ASC,SOCIAL SERVICES,Revenue,PRIVATE,EXTERNAL RESIDENTIAL CARE,504209,130245330,16-Oct-14,"10,129.89",EVERGREEN PARTNERSHIP,SP0000597
WANDSWORTH COUNCIL,ASC,SOCIAL SERVICES,Revenue,PRIVATE,EXTERNAL RESIDENTIAL CARE,507328,130245330,21-Oct-14,"9,757.11",EVERGREEN PARTNERSHIP,SP0000597
WANDSWORTH COUNCIL,ASC,SOCIAL SERVICES,Revenue,PRIVATE,EXTERNAL RESIDENTIAL CARE,512199,130245330,23-Oct-14,"4,792.20",LAETUS LODGE,SP0000600
WANDSWORTH COUNCIL,ASC,SOCIAL SERVICES,Revenue,PRIVATE,EXTERNAL RESIDENTIAL CARE,512200,130245330,23-Oct-14,"6,096.48",LAETUS LODGE,SP0000600
WANDSWORTH COUNCIL,ASC,SOCIAL SERVICES,Revenue,PRIVATE,EXTERNAL RESIDENTIAL CARE,512201,130245330,23-Oct-14,"3,759.76",LAETUS LODGE,SP0000600
WANDSWORTH COUNCIL,ASC,SOCIAL SERVICES,Revenue,PRIVATE,EXTERNAL RESIDENTIAL CARE,512202,130245330,23-Oct-14,"6,193.48",LAETUS LODGE,SP0000600
WANDSWORTH COUNCIL,ASC,SOCIAL SERVICES,Revenue,PRIVATE,EXTERNAL RESIDENTIAL CARE,512203,130245330,23-Oct-14,"2,542.48",LAETUS LODGE,SP0000600
WANDSWORTH COUNCIL,ASC,SOCIAL SERVICES,Revenue,PRIVATE,EXTERNAL RESIDENTIAL CARE,512204,130245330,23-Oct-14,"3,669.12",LAETUS LODGE,SP0000600
WANDSWORTH COUNCIL,ASC,SOCIAL SERVICES,Revenue,PRIVATE,EXTERNAL RESIDENTIAL CARE,512205,130245330,23-Oct-14,"3,759.76",LAETUS LODGE,SP0000600
WANDSWORTH COUNCIL,ASC,SOCIAL SERVICES,Revenue,PRIVATE,EXTERNAL RESIDENTIAL CARE,512206,130245330,23-Oct-14,"5,240.56",LAETUS LODGE,SP0000600
WANDSWORTH COUNCIL,ASC,SOCIAL SERVICES,Revenue,PRIVATE,EXTERNAL RESIDENTIAL CARE,518134,130245330,31-Oct-14,"3,454.38",MENCAP,SP0000604
WANDSWORTH COUNCIL,ASC,SOCIAL SERVICES,Revenue,PRIVATE,EXTERNAL RESIDENTIAL CARE,518135,130245330,31-Oct-14,"3,454.38",MENCAP,SP0000604
WANDSWORTH COUNCIL,ASC,SOCIAL SERVICES,Revenue,PRIVATE,EXTERNAL RESIDENTIAL CARE,518152,130245330,31-Oct-14,"2,391.84",MENCAP,SP0000604
WANDSWORTH COUNCIL,ASC,SOCIAL SERVICES,Revenue,PRIVATE,EXTERNAL RESIDENTIAL CARE,518161,130245330,31-Oct-14,"8,026.83",HEALTHLINC INDIVIDUAL CARE,SP0000617
WANDSWORTH COUNCIL,ASC,SOCIAL SERVICES,Revenue,PRIVATE,EXTERNAL RESIDENTIAL CARE,503961,130245330,16-Oct-14,"2,395.60",LIVABILITY,SP0000669
WANDSWORTH COUNCIL,ASC,SOCIAL SERVICES,Revenue,PRIVATE,EXTERNAL RESIDENTIAL CARE,512193,130245330,23-Oct-14,"11,322.96",LOVING CARE LTD,SP0000670
WANDSWORTH COUNCIL,ASC,SOCIAL SERVICES,Revenue,PRIVATE,EXTERNAL RESIDENTIAL CARE,512194,130245330,23-Oct-14,"11,475.84",LOVING CARE LTD,SP0000670
WANDSWORTH COUNCIL,ASC,SOCIAL SERVICES,Revenue,PRIVATE,EXTERNAL RESIDENTIAL CARE,512195,130245330,23-Oct-14,"11,017.24",LOVING CARE LTD,SP0000670
WANDSWORTH COUNCIL,ASC,SOCIAL SERVICES,Revenue,PRIVATE,EXTERNAL RESIDENTIAL CARE,512196,130245330,23-Oct-14,"11,471.68",LOVING CARE LTD,SP0000670
WANDSWORTH COUNCIL,ASC,SOCIAL SERVICES,Revenue,PRIVATE,EXTERNAL RESIDENTIAL CARE,512197,130245330,23-Oct-14,"11,475.88",LOVING CARE LTD,SP0000670
WANDSWORTH COUNCIL,ASC,SOCIAL SERVICES,Revenue,PRIVATE,EXTERNAL RESIDENTIAL CARE,512198,130245330,23-Oct-14,"11,170.12",LOVING CARE LTD,SP0000670
WANDSWORTH COUNCIL,ASC,SOCIAL SERVICES,Revenue,PRIVATE,EXTERNAL RESIDENTIAL CARE,513642,130245330,27-Oct-14,"11,282.12",LOVING CARE LTD,SP0000670
WANDSWORTH COUNCIL,ASC,SOCIAL SERVICES,Revenue,PRIVATE,EXTERNAL RESIDENTIAL CARE,518146,130245330,31-Oct-14,"3,099.04",THE MANOR HOUSE,SP0000728
WANDSWORTH COUNCIL,ASC,SOCIAL SERVICES,Revenue,PRIVATE,EXTERNAL RESIDENTIAL CARE,502271,130245330,15-Oct-14,"8,300.05",RALEIGH HOUSE LTD,SP0000760
WANDSWORTH COUNCIL,ASC,SOCIAL SERVICES,Revenue,PRIVATE,EXTERNAL RESIDENTIAL CARE,502272,130245330,15-Oct-14,"7,512.90",RALEIGH HOUSE LTD,SP0000760
WANDSWORTH COUNCIL,ASC,SOCIAL SERVICES,Revenue,PRIVATE,EXTERNAL RESIDENTIAL CARE,508193,130245330,21-Oct-14,"3,806.64",GLENCARE GROUP,SP0000791
WANDSWORTH COUNCIL,ASC,SOCIAL SERVICES,Revenue,PRIVATE,EXTERNAL RESIDENTIAL CARE,508194,130245330,21-Oct-14,"3,806.64",GLENCARE GROUP,SP0000791
WANDSWORTH COUNCIL,ASC,SOCIAL SERVICES,Revenue,PRIVATE,EXTERNAL RESIDENTIAL CARE,512256,130245330,23-Oct-14,"6,108.00",GLENCARE GROUP,SP0000791
WANDSWORTH COUNCIL,ASC,SOCIAL SERVICES,Revenue,PRIVATE,EXTERNAL RESIDENTIAL CARE,504204,130245330,16-Oct-14,"2,267.32",FREEWAYS TRUST LTD,SP0000793
WANDSWORTH COUNCIL,ASC,SOCIAL SERVICES,Revenue,PRIVATE,EXTERNAL RESIDENTIAL CARE,498968,130245330,06-Oct-14,"3,140.56",UNITED RESPONSE,SP0000797
WANDSWORTH COUNCIL,ASC,SOCIAL SERVICES,Revenue,PRIVATE,EXTERNAL RESIDENTIAL CARE,498969,130245330,06-Oct-14,"3,140.56",UNITED RESPONSE,SP0000797
WANDSWORTH COUNCIL,ASC,SOCIAL SERVICES,Revenue,PRIVATE,EXTERNAL RESIDENTIAL CARE,503957,130245330,16-Oct-14,"3,151.20",PROSPECTS,SP0000800
WANDSWORTH COUNCIL,ASC,SOCIAL SERVICES,Revenue,PRIVATE,EXTERNAL RESIDENTIAL CARE,496992,130245330,02-Oct-14,"6,108.81",WESSEX AUTISTIC SOCIETY,SP0000805
WANDSWORTH COUNCIL,ASC,SOCIAL SERVICES,Revenue,PRIVATE,EXTERNAL RESIDENTIAL CARE,515350,130245330,29-Oct-14,"8,051.15",FIRCROFT,SP0000840
WANDSWORTH COUNCIL,ASC,SOCIAL SERVICES,Revenue,PRIVATE,EXTERNAL RESIDENTIAL CARE,513666,130245330,27-Oct-14,"4,197.68",ROYAL MENCAP SOCIETY,SP0000842
WANDSWORTH COUNCIL,ASC,SOCIAL SERVICES,Revenue,PRIVATE,EXTERNAL RESIDENTIAL CARE,513667,130245330,27-Oct-14,"5,840.68",ROYAL MENCAP SOCIETY,SP0000842
WANDSWORTH COUNCIL,ASC,SOCIAL SERVICES,Revenue,PRIVATE,EXTERNAL RESIDENTIAL CARE,503968,130245330,16-Oct-14,"3,150.25",STALLCOMBE HOUSE,SP0000843
WANDSWORTH COUNCIL,ASC,SOCIAL SERVICES,Revenue,PRIVATE,EXTERNAL RESIDENTIAL CARE,513644,130245330,27-Oct-14,"2,302.33",SCOPE,SP0000852
WANDSWORTH COUNCIL,ASC,SOCIAL SERVICES,Revenue,PRIVATE,EXTERNAL RESIDENTIAL CARE,513645,130245330,27-Oct-14,"2,771.20",SCOPE,SP0000852
WANDSWORTH COUNCIL,ASC,SOCIAL SERVICES,Revenue,PRIVATE,EXTERNAL RESIDENTIAL CARE,518158,130245330,31-Oct-14,"2,618.37",SCOPE,SP0000852
WANDSWORTH COUNCIL,ASC,SOCIAL SERVICES,Revenue,PRIVATE,EXTERNAL RESIDENTIAL CARE,518159,130245330,31-Oct-14,"2,763.53",SCOPE,SP0000852
WANDSWORTH COUNCIL,ASC,SOCIAL SERVICES,Revenue,PRIVATE,EXTERNAL RESIDENTIAL CARE,507315,130245330,21-Oct-14,"4,328.40",229 MITCHAM LANE LTD,SP0000884
WANDSWORTH COUNCIL,ASC,SOCIAL SERVICES,Revenue,PRIVATE,EXTERNAL RESIDENTIAL CARE,507316,130245330,21-Oct-14,"5,068.71",229 MITCHAM LANE LTD,SP0000884
WANDSWORTH COUNCIL,ASC,SOCIAL SERVICES,Revenue,PRIVATE,EXTERNAL RESIDENTIAL CARE,503949,130245330,16-Oct-14,"3,957.32",THE LEO TRUST,SP0000908
WANDSWORTH COUNCIL,ASC,SOCIAL SERVICES,Revenue,PRIVATE,EXTERNAL RESIDENTIAL CARE,518123,130245330,31-Oct-14,"7,271.56",CORICH COMMUNITY CARE LTD,SP0000915
WANDSWORTH COUNCIL,ASC,SOCIAL SERVICES,Revenue,PRIVATE,EXTERNAL RESIDENTIAL CARE,512240,130245330,23-Oct-14,"1,418.40",REDACTED PERSONAL DATA,SP0000931
WANDSWORTH COUNCIL,ASC,SOCIAL SERVICES,Revenue,PRIVATE,EXTERNAL RESIDENTIAL CARE,512210,130245330,23-Oct-14,"8,456.27",PROGRESS HOUSING MARLOW,SP0000952
WANDSWORTH COUNCIL,ASC,SOCIAL SERVICES,Revenue,PRIVATE,EXTERNAL RESIDENTIAL CARE,518155,130245330,31-Oct-14,"8,456.28",PROGRESS HOUSING MARLOW,SP0000952
WANDSWORTH COUNCIL,ASC,SOCIAL SERVICES,Revenue,PRIVATE,EXTERNAL RESIDENTIAL CARE,508209,130245330,21-Oct-14,"2,930.00",MISSION CARE,SP0000958
WANDSWORTH COUNCIL,ASC,SOCIAL SERVICES,Revenue,PRIVATE,EXTERNAL RESIDENTIAL CARE,503975,130245330,16-Oct-14,"3,548.76",RIDGEWOOD CARE SERVICES LTD,SP0000969
WANDSWORTH COUNCIL,ASC,SOCIAL SERVICES,Revenue,PRIVATE,EXTERNAL RESIDENTIAL CARE,503978,130245330,16-Oct-14,"2,459.36",RIDGEWOOD CARE SERVICES LTD,SP0000969
WANDSWORTH COUNCIL,ASC,SOCIAL SERVICES,Revenue,PRIVATE,EXTERNAL RESIDENTIAL CARE,503979,130245330,16-Oct-14,876.00,RIDGEWOOD CARE SERVICES LTD,SP0000969
WANDSWORTH COUNCIL,ASC,SOCIAL SERVICES,Revenue,PRIVATE,EXTERNAL RESIDENTIAL CARE,512258,130245330,23-Oct-14,"6,493.16",RIDGEWOOD CARE SERVICES LTD,SP0000969
WANDSWORTH COUNCIL,ASC,SOCIAL SERVICES,Revenue,PRIVATE,EXTERNAL RESIDENTIAL CARE,503939,130245330,16-Oct-14,"6,119.91",LEONARD CHESHIRE,SP0000976
WANDSWORTH COUNCIL,ASC,SOCIAL SERVICES,Revenue,PRIVATE,EXTERNAL RESIDENTIAL CARE,503963,130245330,16-Oct-14,"4,167.12",LEONARD CHESHIRE,SP0000976
WANDSWORTH COUNCIL,ASC,SOCIAL SERVICES,Revenue,PRIVATE,EXTERNAL RESIDENTIAL CARE,503977,130245330,16-Oct-14,"4,494.72",LEONARD CHESHIRE,SP0000976
WANDSWORTH COUNCIL,ASC,SOCIAL SERVICES,Revenue,PRIVATE,EXTERNAL RESIDENTIAL CARE,513641,130245330,27-Oct-14,"4,613.60",LOTUS CARE HOME LTD,SP0001006
WANDSWORTH COUNCIL,ASC,SOCIAL SERVICES,Revenue,PRIVATE,EXTERNAL RESIDENTIAL CARE,503969,130245330,16-Oct-14,"5,020.50",M JINGREE T/A SUNLIGHT HOUSE,SP0001024
WANDSWORTH COUNCIL,ASC,SOCIAL SERVICES,Revenue,PRIVATE,EXTERNAL RESIDENTIAL CARE,513635,130245330,27-Oct-14,"6,609.55",CARE UK LEARNING DISABILITIES SERVICES L,SP0001039
WANDSWORTH COUNCIL,ASC,SOCIAL SERVICES,Revenue,PRIVATE,EXTERNAL RESIDENTIAL CARE,507332,130245330,21-Oct-14,"2,743.88",THE HOME FARM TRUST LTD,SP0001048
WANDSWORTH COUNCIL,ASC,SOCIAL SERVICES,Revenue,PRIVATE,EXTERNAL RESIDENTIAL CARE,507333,130245330,21-Oct-14,"2,323.00",THE HOME FARM TRUST LTD,SP0001048
WANDSWORTH COUNCIL,ASC,SOCIAL SERVICES,Revenue,PRIVATE,EXTERNAL RESIDENTIAL CARE,507334,130245330,21-Oct-14,"2,457.40",THE HOME FARM TRUST LTD,SP0001048
WANDSWORTH COUNCIL,ASC,SOCIAL SERVICES,Revenue,PRIVATE,EXTERNAL RESIDENTIAL CARE,513665,130245330,27-Oct-14,"3,708.20",THE HOME FARM TRUST LTD,SP0001048
WANDSWORTH COUNCIL,ASC,SOCIAL SERVICES,Revenue,PRIVATE,EXTERNAL RESIDENTIAL CARE,512253,130245330,23-Oct-14,"2,323.33",SAXON COURT,SP0001100
WANDSWORTH COUNCIL,ASC,SOCIAL SERVICES,Revenue,PRIVATE,EXTERNAL RESIDENTIAL CARE,512254,130245330,23-Oct-14,"2,323.33",SAXON COURT,SP0001100
WANDSWORTH COUNCIL,ASC,SOCIAL SERVICES,Revenue,PRIVATE,EXTERNAL RESIDENTIAL CARE,512255,130245330,23-Oct-14,"2,248.39",SAXON COURT,SP0001100
WANDSWORTH COUNCIL,ASC,SOCIAL SERVICES,Revenue,PRIVATE,EXTERNAL RESIDENTIAL CARE,512207,130245330,23-Oct-14,"7,395.80",TOTTERDOWN,SP0001113
WANDSWORTH COUNCIL,ASC,SOCIAL SERVICES,Revenue,PRIVATE,EXTERNAL RESIDENTIAL CARE,512208,130245330,23-Oct-14,"3,671.24",TOTTERDOWN,SP0001113
WANDSWORTH COUNCIL,ASC,SOCIAL SERVICES,Revenue,PRIVATE,EXTERNAL RESIDENTIAL CARE,518173,130245330,31-Oct-14,"6,186.63",SUSSEX HEALTH CARE,SP0001115
WANDSWORTH COUNCIL,ASC,SOCIAL SERVICES,Revenue,PRIVATE,EXTERNAL RESIDENTIAL CARE,518138,130245330,31-Oct-14,"6,916.64",LONDON CARE PARTNERSHIP LTD,SP0001138
WANDSWORTH COUNCIL,ASC,SOCIAL SERVICES,Revenue,PRIVATE,EXTERNAL RESIDENTIAL CARE,518139,130245330,31-Oct-14,"8,835.00",LONDON CARE PARTNERSHIP LTD,SP0001138
WANDSWORTH COUNCIL,ASC,SOCIAL SERVICES,Revenue,PRIVATE,EXTERNAL RESIDENTIAL CARE,518140,130245330,31-Oct-14,"8,192.87",LONDON CARE PARTNERSHIP LTD,SP0001138
WANDSWORTH COUNCIL,ASC,SOCIAL SERVICES,Revenue,PRIVATE,EXTERNAL RESIDENTIAL CARE,518141,130245330,31-Oct-14,"8,303.57",LONDON CARE PARTNERSHIP LTD,SP0001138
WANDSWORTH COUNCIL,ASC,SOCIAL SERVICES,Revenue,PRIVATE,EXTERNAL RESIDENTIAL CARE,518142,130245330,31-Oct-14,"8,303.58",LONDON CARE PARTNERSHIP LTD,SP0001138
WANDSWORTH COUNCIL,ASC,SOCIAL SERVICES,Revenue,PRIVATE,EXTERNAL RESIDENTIAL CARE,518143,130245330,31-Oct-14,"8,525.01",LONDON CARE PARTNERSHIP LTD,SP0001138
WANDSWORTH COUNCIL,ASC,SOCIAL SERVICES,Revenue,PRIVATE,EXTERNAL RESIDENTIAL CARE,503944,130245330,16-Oct-14,"6,628.16",CHOICE CARE GROUP,SP0001367
WANDSWORTH COUNCIL,ASC,SOCIAL SERVICES,Revenue,PRIVATE,EXTERNAL RESIDENTIAL CARE,518137,130245330,31-Oct-14,"6,679.27",HOME FROM HOME CARE LIMITED,SP0001373
WANDSWORTH COUNCIL,ASC,SOCIAL SERVICES,Revenue,PRIVATE,EXTERNAL RESIDENTIAL CARE,513669,130245330,27-Oct-14,"4,967.48",LARKFIELD HALL LTD T/A PEPENBURY,SP0001378
WANDSWORTH COUNCIL,ASC,SOCIAL SERVICES,Revenue,PRIVATE,EXTERNAL RESIDENTIAL CARE,507357,130245330,21-Oct-14,"6,800.00",MIGHOUSE RESIDENTIAL CARE HOME LTD,SP0001402
WANDSWORTH COUNCIL,ASC,SOCIAL SERVICES,Revenue,PRIVATE,EXTERNAL RESIDENTIAL CARE,507358,130245330,21-Oct-14,"6,800.00",MIGHOUSE RESIDENTIAL CARE HOME LTD,SP0001402
WANDSWORTH COUNCIL,ASC,SOCIAL SERVICES,Revenue,PRIVATE,EXTERNAL RESIDENTIAL CARE,518160,130245330,31-Oct-14,"8,784.70",ROOKERY HOVE PRIORY,SP0001498
WANDSWORTH COUNCIL,ASC,SOCIAL SERVICES,Revenue,PRIVATE,EXTERNAL RESIDENTIAL CARE,503953,130245330,16-Oct-14,"7,523.88",MCCH SOCIETY LIMITED,SP0001531
WANDSWORTH COUNCIL,ASC,SOCIAL SERVICES,Revenue,PRIVATE,EXTERNAL RESIDENTIAL CARE,503954,130245330,16-Oct-14,"7,523.88",MCCH SOCIETY LIMITED,SP0001531
WANDSWORTH COUNCIL,ASC,SOCIAL SERVICES,Revenue,PRIVATE,EXTERNAL RESIDENTIAL CARE,518151,130245330,31-Oct-14,"4,383.39",NUTLEY HALL LTD,SP0001581
WANDSWORTH COUNCIL,ASC,SOCIAL SERVICES,Revenue,PRIVATE,EXTERNAL RESIDENTIAL CARE,518163,130245330,31-Oct-14,"3,900.77",CRAEGMOOR OLD RECTORY BREDE PRIORY,SP0001621
WANDSWORTH COUNCIL,ASC,SOCIAL SERVICES,Revenue,PRIVATE,EXTERNAL RESIDENTIAL CARE,507335,130245330,21-Oct-14,"8,192.86",CONDOVER COLLEGE LTD,SP0001641
WANDSWORTH COUNCIL,ASC,SOCIAL SERVICES,Revenue,PRIVATE,EXTERNAL RESIDENTIAL CARE,512227,130245330,23-Oct-14,"28,350.16",ACH OF LONDON LLP,SP0001688
WANDSWORTH COUNCIL,ASC,SOCIAL SERVICES,Revenue,PRIVATE,EXTERNAL RESIDENTIAL CARE,518117,130245330,31-Oct-14,"5,095.92",ACH OF LONDON LLP,SP0001688
WANDSWORTH COUNCIL,ASC,SOCIAL SERVICES,Revenue,PRIVATE,EXTERNAL RESIDENTIAL CARE,502303,130245330,15-Oct-14,"10,219.46",SALISBURY AUTISTIC CARE,SP0001691
WANDSWORTH COUNCIL,ASC,SOCIAL SERVICES,Revenue,PRIVATE,EXTERNAL RESIDENTIAL CARE,503966,130245330,16-Oct-14,"9,889.80",SALISBURY AUTISTIC CARE,SP0001691
WANDSWORTH COUNCIL,ASC,SOCIAL SERVICES,Revenue,PRIVATE,EXTERNAL RESIDENTIAL CARE,512260,130245330,23-Oct-14,"11,057.48",KISIMUL GROUP LTD,SP0002487
WANDSWORTH COUNCIL,ASC,SOCIAL SERVICES,Revenue,PRIVATE,EXTERNAL RESIDENTIAL CARE,504205,130245330,16-Oct-14,"6,408.96",THE BRANDON TRUST,SP0005337
WANDSWORTH COUNCIL,ASC,SOCIAL SERVICES,Revenue,PRIVATE,EXTERNAL RESIDENTIAL CARE,502269,130245330,15-Oct-14,"2,755.56",HASTINGS & BEXHILL MENCAP SOCIETY,SP0005380
WANDSWORTH COUNCIL,ASC,SOCIAL SERVICES,Revenue,PRIVATE,EXTERNAL RESIDENTIAL CARE,512239,130245330,23-Oct-14,"2,755.56",HASTINGS & BEXHILL MENCAP SOCIETY,SP0005380
WANDSWORTH COUNCIL,ASC,SOCIAL SERVICES,Revenue,PRIVATE,EXTERNAL RESIDENTIAL CARE,503943,130245330,16-Oct-14,"7,285.71",LD CARE,SP0005447
WANDSWORTH COUNCIL,ASC,SOCIAL SERVICES,Revenue,PRIVATE,EXTERNAL RESIDENTIAL CARE,518121,130245330,31-Oct-14,"3,469.00",CSS LTD T/A  THF CARE ESTATES LTD,SP0005682
WANDSWORTH COUNCIL,ASC,SOCIAL SERVICES,Revenue,PRIVATE,EXTERNAL RESIDENTIAL CARE,512261,130245330,23-Oct-14,"7,501.72",NORCREST (2000) HOME LTD,SP0008343
WANDSWORTH COUNCIL,ASC,SOCIAL SERVICES,Revenue,PRIVATE,EXTERNAL RESIDENTIAL CARE,512262,130245330,23-Oct-14,"7,501.72",NORCREST (2000) HOME LTD,SP0008343
WANDSWORTH COUNCIL,ASC,SOCIAL SERVICES,Revenue,PRIVATE,RESPITE CARE AT HOME -VOUCHERS,504232,130245510,16-Oct-14,730.64,RAINBOW MEDICAL SERVICES,SP0000037
WANDSWORTH COUNCIL,ASC,SOCIAL SERVICES,Revenue,PRIVATE,ONE TO ONE CARE,504371,130246220,16-Oct-14,762.00,RAINBOW MEDICAL SERVICES,SP0000037
WANDSWORTH COUNCIL,ASC,SOCIAL SERVICES,Revenue,PRIVATE,ONE TO ONE CARE,504372,130246220,16-Oct-14,"2,133.60",RAINBOW MEDICAL SERVICES,SP0000037
WANDSWORTH COUNCIL,ASC,SOCIAL SERVICES,Revenue,PRIVATE,ONE TO ONE CARE,504373,130246220,16-Oct-14,"1,930.68",RAINBOW MEDICAL SERVICES,SP0000037
WANDSWORTH COUNCIL,ASC,SOCIAL SERVICES,Revenue,PRIVATE,ONE TO ONE CARE,507525,130246220,21-Oct-14,"1,477.40",RAINBOW MEDICAL SERVICES,SP0000037
WANDSWORTH COUNCIL,ASC,SOCIAL SERVICES,Revenue,PRIVATE,ONE TO ONE CARE,518274,130246220,31-Oct-14,979.69,FRANCES TAYLOR FOUNDATION,SP0000142
WANDSWORTH COUNCIL,ASC,SOCIAL SERVICES,Revenue,PRIVATE,ONE TO ONE CARE,507529,130246220,21-Oct-14,720.00,THE CHESTNUTS,SP0000182
WANDSWORTH COUNCIL,ASC,SOCIAL SERVICES,Revenue,PRIVATE,ONE TO ONE CARE,516030,130246220,30-Oct-14,693.78,ST MARYS RESIDENTIAL HOME,SP0000215
WANDSWORTH COUNCIL,ASC,SOCIAL SERVICES,Revenue,PRIVATE,ONE TO ONE CARE,516031,130246220,30-Oct-14,648.83,ST MARYS RESIDENTIAL HOME,SP0000215
WANDSWORTH COUNCIL,ASC,SOCIAL SERVICES,Revenue,PRIVATE,ONE TO ONE CARE,501340,130246220,14-Oct-14,"1,028.57",VOYAGE CARE LTD,SP0000366
WANDSWORTH COUNCIL,ASC,SOCIAL SERVICES,Revenue,PRIVATE,ONE TO ONE CARE,518268,130246220,31-Oct-14,"1,152.89",THE COMMUNITY CARE COMPANY UK LTD,SP0000576
WANDSWORTH COUNCIL,ASC,SOCIAL SERVICES,Revenue,PRIVATE,ONE TO ONE CARE,518269,130246220,31-Oct-14,"1,314.80",THE COMMUNITY CARE COMPANY UK LTD,SP0000576
WANDSWORTH COUNCIL,ASC,SOCIAL SERVICES,Revenue,PRIVATE,ONE TO ONE CARE,501350,130246220,14-Oct-14,688.39,MEDACS HOMECARE,SP0000829
WANDSWORTH COUNCIL,ASC,SOCIAL SERVICES,Revenue,PRIVATE,ONE TO ONE CARE,501354,130246220,14-Oct-14,973.82,MEDACS HOMECARE,SP0000829
WANDSWORTH COUNCIL,ASC,SOCIAL SERVICES,Revenue,PRIVATE,ONE TO ONE CARE,501362,130246220,14-Oct-14,520.49,MEDACS HOMECARE,SP0000829
WANDSWORTH COUNCIL,ASC,SOCIAL SERVICES,Revenue,PRIVATE,ONE TO ONE CARE,501438,130246220,14-Oct-14,873.08,MEDACS HOMECARE,SP0000829
WANDSWORTH COUNCIL,ASC,SOCIAL SERVICES,Revenue,PRIVATE,ONE TO ONE CARE,518124,130246220,31-Oct-14,"1,600.44",CORICH COMMUNITY CARE LTD,SP0000915
WANDSWORTH COUNCIL,ASC,SOCIAL SERVICES,Revenue,PRIVATE,ONE TO ONE CARE,504047,130246220,16-Oct-14,900.00,HILL PARK AUTISTIC TRUST,SP0000926
WANDSWORTH COUNCIL,ASC,SOCIAL SERVICES,Revenue,PRIVATE,ONE TO ONE CARE,518272,130246220,31-Oct-14,"2,884.77",DOWNING (CHERTSEY ROAD) LTD,SP0000959
WANDSWORTH COUNCIL,ASC,SOCIAL SERVICES,Revenue,PRIVATE,ONE TO ONE CARE,512543,130246220,23-Oct-14,"1,597.44",TOTTERDOWN,SP0001113
WANDSWORTH COUNCIL,ASC,SOCIAL SERVICES,Revenue,PRIVATE,ONE TO ONE CARE,508354,130246220,21-Oct-14,177.00,FRONTIER SUPPORT SERVICES LTD,SP0001132
WANDSWORTH COUNCIL,ASC,SOCIAL SERVICES,Revenue,PRIVATE,ONE TO ONE CARE,518273,130246220,31-Oct-14,716.24,FRONTIER SUPPORT SERVICES LTD,SP0001132
WANDSWORTH COUNCIL,ASC,SOCIAL SERVICES,Revenue,PRIVATE,ONE TO ONE CARE,513421,130246220,24-Oct-14,802.08,LARKFIELD HALL LTD T/A PEPENBURY,SP0001378
WANDSWORTH COUNCIL,ASC,SOCIAL SERVICES,Revenue,PRIVATE,ONE TO ONE CARE,504439,130246220,16-Oct-14,"3,214.29",CRAEGMOOR OLD RECTORY BREDE PRIORY,SP0001621
WANDSWORTH COUNCIL,ASC,SOCIAL SERVICES,Revenue,PRIVATE,ONE TO ONE CARE,518275,130246220,31-Oct-14,"3,321.43",CRAEGMOOR OLD RECTORY BREDE PRIORY,SP0001621
WANDSWORTH COUNCIL,ASC,SOCIAL SERVICES,Revenue,PRIVATE,ONE TO ONE CARE,518267,130246220,31-Oct-14,"2,018.10",ACH OF LONDON LLP,SP0001688
WANDSWORTH COUNCIL,ASC,SOCIAL SERVICES,Revenue,PRIVATE,ONE TO ONE CARE,504062,130246220,16-Oct-14,324.00,THE BRANDON TRUST,SP0005337
WANDSWORTH COUNCIL,ASC,SOCIAL SERVICES,Revenue,PRIVATE,ONE TO ONE CARE,504099,130246220,16-Oct-14,"1,800.69",THE BRANDON TRUST,SP0005337
WANDSWORTH COUNCIL,ASC,SOCIAL SERVICES,Revenue,PRIVATE,ONE TO ONE CARE,504125,130246220,16-Oct-14,"1,987.20",THE BRANDON TRUST,SP0005337
WANDSWORTH COUNCIL,ASC,SOCIAL SERVICES,Revenue,PRIVATE,ONE TO ONE CARE,504126,130246220,16-Oct-14,"1,312.00",THE BRANDON TRUST,SP0005337
WANDSWORTH COUNCIL,ASC,SOCIAL SERVICES,Revenue,PRIVATE,ONE TO ONE CARE,504129,130246220,16-Oct-14,"2,450.88",THE BRANDON TRUST,SP0005337
WANDSWORTH COUNCIL,ASC,SOCIAL SERVICES,Revenue,PRIVATE,ONE TO ONE CARE,504381,130246220,16-Oct-14,600.04,THE BRANDON TRUST,SP0005337
WANDSWORTH COUNCIL,ASC,SOCIAL SERVICES,Revenue,PRIVATE,ONE TO ONE CARE,504392,130246220,16-Oct-14,331.20,THE BRANDON TRUST,SP0005337
WANDSWORTH COUNCIL,ASC,SOCIAL SERVICES,Revenue,PRIVATE,ONE TO ONE CARE,504394,130246220,16-Oct-14,331.20,THE BRANDON TRUST,SP0005337
WANDSWORTH COUNCIL,ASC,SOCIAL SERVICES,Revenue,VOL ASS,SUPPORTED HOUSING PROGRAMME,20294679,130248030,23-Oct-14,"1,119.72",GOLDEN LANE HOUSING LTD,2003592
WANDSWORTH COUNCIL,ASC,SOCIAL SERVICES,Revenue,VOL ASS,SUPPORTED HOUSING PROGRAMME,20294680,130248030,23-Oct-14,"1,119.72",GOLDEN LANE HOUSING LTD,2003592
WANDSWORTH COUNCIL,ASC,SOCIAL SERVICES,Revenue,VOL ASS,SUPPORTED HOUSING PROGRAMME,20294681,130248030,23-Oct-14,"1,119.72",GOLDEN LANE HOUSING LTD,2003592
WANDSWORTH COUNCIL,ASC,SOCIAL SERVICES,Revenue,VOL ASS,SUPPORTED HOUSING PROGRAMME,20294682,130248030,23-Oct-14,"1,119.72",GOLDEN LANE HOUSING LTD,2003592
WANDSWORTH COUNCIL,ASC,SOCIAL SERVICES,Revenue,VOL ASS,SUPPORTED HOUSING PROGRAMME,20294683,130248030,23-Oct-14,"1,119.72",GOLDEN LANE HOUSING LTD,2003592
WANDSWORTH COUNCIL,ASC,SOCIAL SERVICES,Revenue,VOL ASS,SUPPORTED HOUSING PROGRAMME,20294684,130248030,23-Oct-14,"1,119.72",GOLDEN LANE HOUSING LTD,2003592
WANDSWORTH COUNCIL,ASC,SOCIAL SERVICES,Revenue,VOL ASS,SUPPORTED HOUSING PROGRAMME,20294685,130248030,23-Oct-14,"1,119.72",GOLDEN LANE HOUSING LTD,2003592
WANDSWORTH COUNCIL,ASC,SOCIAL SERVICES,Revenue,VOL ASS,SUPPORTED HOUSING PROGRAMME,498978,130248030,06-Oct-14,"4,120.24",CMG HOMES LTD,SP0000075
WANDSWORTH COUNCIL,ASC,SOCIAL SERVICES,Revenue,VOL ASS,SUPPORTED HOUSING PROGRAMME,501349,130248030,14-Oct-14,"3,152.76",THE CAMPHILL VILLAGE TRUST,SP0000145
WANDSWORTH COUNCIL,ASC,SOCIAL SERVICES,Revenue,VOL ASS,SUPPORTED HOUSING PROGRAMME,515377,130248030,29-Oct-14,833.06,HARINGEY ASSOCIATION FOR INDEPENDENT LIV,SP0000222
WANDSWORTH COUNCIL,ASC,SOCIAL SERVICES,Revenue,VOL ASS,SUPPORTED HOUSING PROGRAMME,515379,130248030,29-Oct-14,"3,247.28",HARINGEY ASSOCIATION FOR INDEPENDENT LIV,SP0000222
WANDSWORTH COUNCIL,ASC,SOCIAL SERVICES,Revenue,VOL ASS,SUPPORTED HOUSING PROGRAMME,515380,130248030,29-Oct-14,"1,521.52",HARINGEY ASSOCIATION FOR INDEPENDENT LIV,SP0000222
WANDSWORTH COUNCIL,ASC,SOCIAL SERVICES,Revenue,VOL ASS,SUPPORTED HOUSING PROGRAMME,497104,130248030,02-Oct-14,"5,543.72",NORWOOD SCHOOLS LTD,SP0000332
WANDSWORTH COUNCIL,ASC,SOCIAL SERVICES,Revenue,VOL ASS,SUPPORTED HOUSING PROGRAMME,504051,130248030,16-Oct-14,"5,543.72",NORWOOD SCHOOLS LTD,SP0000332
WANDSWORTH COUNCIL,ASC,SOCIAL SERVICES,Revenue,VOL ASS,SUPPORTED HOUSING PROGRAMME,513414,130248030,24-Oct-14,"5,543.72",NORWOOD SCHOOLS LTD,SP0000332
WANDSWORTH COUNCIL,ASC,SOCIAL SERVICES,Revenue,VOL ASS,SUPPORTED HOUSING PROGRAMME,508258,130248030,21-Oct-14,"6,244.61",LIFEWAYS COMMUNITY CARE LTD,SP0000364
WANDSWORTH COUNCIL,ASC,SOCIAL SERVICES,Revenue,VOL ASS,SUPPORTED HOUSING PROGRAMME,512418,130248030,23-Oct-14,"7,336.00",LIFEWAYS COMMUNITY CARE LTD,SP0000364
WANDSWORTH COUNCIL,ASC,SOCIAL SERVICES,Revenue,VOL ASS,SUPPORTED HOUSING PROGRAMME,516067,130248030,30-Oct-14,"3,292.68",LIFEWAYS COMMUNITY CARE LTD,SP0000364
WANDSWORTH COUNCIL,ASC,SOCIAL SERVICES,Revenue,VOL ASS,SUPPORTED HOUSING PROGRAMME,516068,130248030,30-Oct-14,"2,210.76",LIFEWAYS COMMUNITY CARE LTD,SP0000364
WANDSWORTH COUNCIL,ASC,SOCIAL SERVICES,Revenue,VOL ASS,SUPPORTED HOUSING PROGRAMME,516069,130248030,30-Oct-14,"1,850.12",LIFEWAYS COMMUNITY CARE LTD,SP0000364
WANDSWORTH COUNCIL,ASC,SOCIAL SERVICES,Revenue,VOL ASS,SUPPORTED HOUSING PROGRAMME,516070,130248030,30-Oct-14,"1,901.64",LIFEWAYS COMMUNITY CARE LTD,SP0000364
WANDSWORTH COUNCIL,ASC,SOCIAL SERVICES,Revenue,VOL ASS,SUPPORTED HOUSING PROGRAMME,516071,130248030,30-Oct-14,"1,695.56",LIFEWAYS COMMUNITY CARE LTD,SP0000364
WANDSWORTH COUNCIL,ASC,SOCIAL SERVICES,Revenue,VOL ASS,SUPPORTED HOUSING PROGRAMME,516072,130248030,30-Oct-14,"2,932.04",LIFEWAYS COMMUNITY CARE LTD,SP0000364
WANDSWORTH COUNCIL,ASC,SOCIAL SERVICES,Revenue,VOL ASS,SUPPORTED HOUSING PROGRAMME,516073,130248030,30-Oct-14,"1,953.16",LIFEWAYS COMMUNITY CARE LTD,SP0000364
WANDSWORTH COUNCIL,ASC,SOCIAL SERVICES,Revenue,VOL ASS,SUPPORTED HOUSING PROGRAMME,516074,130248030,30-Oct-14,"1,695.56",LIFEWAYS COMMUNITY CARE LTD,SP0000364
WANDSWORTH COUNCIL,ASC,SOCIAL SERVICES,Revenue,VOL ASS,SUPPORTED HOUSING PROGRAMME,516075,130248030,30-Oct-14,"1,901.64",LIFEWAYS COMMUNITY CARE LTD,SP0000364
WANDSWORTH COUNCIL,ASC,SOCIAL SERVICES,Revenue,VOL ASS,SUPPORTED HOUSING PROGRAMME,516076,130248030,30-Oct-14,"2,056.20",LIFEWAYS COMMUNITY CARE LTD,SP0000364
WANDSWORTH COUNCIL,ASC,SOCIAL SERVICES,Revenue,VOL ASS,SUPPORTED HOUSING PROGRAMME,516077,130248030,30-Oct-14,"1,489.48",LIFEWAYS COMMUNITY CARE LTD,SP0000364
WANDSWORTH COUNCIL,ASC,SOCIAL SERVICES,Revenue,VOL ASS,SUPPORTED HOUSING PROGRAMME,516078,130248030,30-Oct-14,"1,644.04",LIFEWAYS COMMUNITY CARE LTD,SP0000364
WANDSWORTH COUNCIL,ASC,SOCIAL SERVICES,Revenue,VOL ASS,SUPPORTED HOUSING PROGRAMME,516079,130248030,30-Oct-14,"2,725.96",LIFEWAYS COMMUNITY CARE LTD,SP0000364
WANDSWORTH COUNCIL,ASC,SOCIAL SERVICES,Revenue,VOL ASS,SUPPORTED HOUSING PROGRAMME,516080,130248030,30-Oct-14,"1,015.28",LIFEWAYS COMMUNITY CARE LTD,SP0000364
WANDSWORTH COUNCIL,ASC,SOCIAL SERVICES,Revenue,VOL ASS,SUPPORTED HOUSING PROGRAMME,516084,130248030,30-Oct-14,"3,335.96",LIFEWAYS COMMUNITY CARE LTD,SP0000364
WANDSWORTH COUNCIL,ASC,SOCIAL SERVICES,Revenue,VOL ASS,SUPPORTED HOUSING PROGRAMME,516085,130248030,30-Oct-14,"2,603.48",LIFEWAYS COMMUNITY CARE LTD,SP0000364
WANDSWORTH COUNCIL,ASC,SOCIAL SERVICES,Revenue,VOL ASS,SUPPORTED HOUSING PROGRAMME,516086,130248030,30-Oct-14,"2,551.16",LIFEWAYS COMMUNITY CARE LTD,SP0000364
WANDSWORTH COUNCIL,ASC,SOCIAL SERVICES,Revenue,VOL ASS,SUPPORTED HOUSING PROGRAMME,516087,130248030,30-Oct-14,"3,335.96",LIFEWAYS COMMUNITY CARE LTD,SP0000364
WANDSWORTH COUNCIL,ASC,SOCIAL SERVICES,Revenue,VOL ASS,SUPPORTED HOUSING PROGRAMME,516088,130248030,30-Oct-14,"2,603.48",LIFEWAYS COMMUNITY CARE LTD,SP0000364
WANDSWORTH COUNCIL,ASC,SOCIAL SERVICES,Revenue,VOL ASS,SUPPORTED HOUSING PROGRAMME,516089,130248030,30-Oct-14,"2,969.72",LIFEWAYS COMMUNITY CARE LTD,SP0000364
WANDSWORTH COUNCIL,ASC,SOCIAL SERVICES,Revenue,VOL ASS,SUPPORTED HOUSING PROGRAMME,516090,130248030,30-Oct-14,"2,341.88",LIFEWAYS COMMUNITY CARE LTD,SP0000364
WANDSWORTH COUNCIL,ASC,SOCIAL SERVICES,Revenue,VOL ASS,SUPPORTED HOUSING PROGRAMME,516091,130248030,30-Oct-14,"2,551.16",LIFEWAYS COMMUNITY CARE LTD,SP0000364
WANDSWORTH COUNCIL,ASC,SOCIAL SERVICES,Revenue,VOL ASS,SUPPORTED HOUSING PROGRAMME,516092,130248030,30-Oct-14,"1,292.80",LIFEWAYS COMMUNITY CARE LTD,SP0000364
WANDSWORTH COUNCIL,ASC,SOCIAL SERVICES,Revenue,VOL ASS,SUPPORTED HOUSING PROGRAMME,516093,130248030,30-Oct-14,"1,975.56",LIFEWAYS COMMUNITY CARE LTD,SP0000364
WANDSWORTH COUNCIL,ASC,SOCIAL SERVICES,Revenue,VOL ASS,SUPPORTED HOUSING PROGRAMME,516094,130248030,30-Oct-14,"2,025.24",LIFEWAYS COMMUNITY CARE LTD,SP0000364
WANDSWORTH COUNCIL,ASC,SOCIAL SERVICES,Revenue,VOL ASS,SUPPORTED HOUSING PROGRAMME,516095,130248030,30-Oct-14,"2,025.24",LIFEWAYS COMMUNITY CARE LTD,SP0000364
WANDSWORTH COUNCIL,ASC,SOCIAL SERVICES,Revenue,VOL ASS,SUPPORTED HOUSING PROGRAMME,516096,130248030,30-Oct-14,"2,025.24",LIFEWAYS COMMUNITY CARE LTD,SP0000364
WANDSWORTH COUNCIL,ASC,SOCIAL SERVICES,Revenue,VOL ASS,SUPPORTED HOUSING PROGRAMME,516097,130248030,30-Oct-14,"2,244.28",LIFEWAYS COMMUNITY CARE LTD,SP0000364
WANDSWORTH COUNCIL,ASC,SOCIAL SERVICES,Revenue,VOL ASS,SUPPORTED HOUSING PROGRAMME,516098,130248030,30-Oct-14,"2,518.08",LIFEWAYS COMMUNITY CARE LTD,SP0000364
WANDSWORTH COUNCIL,ASC,SOCIAL SERVICES,Revenue,VOL ASS,SUPPORTED HOUSING PROGRAMME,516099,130248030,30-Oct-14,"2,025.24",LIFEWAYS COMMUNITY CARE LTD,SP0000364
WANDSWORTH COUNCIL,ASC,SOCIAL SERVICES,Revenue,VOL ASS,SUPPORTED HOUSING PROGRAMME,516100,130248030,30-Oct-14,"2,244.28",LIFEWAYS COMMUNITY CARE LTD,SP0000364
WANDSWORTH COUNCIL,ASC,SOCIAL SERVICES,Revenue,VOL ASS,SUPPORTED HOUSING PROGRAMME,516101,130248030,30-Oct-14,"2,056.72",LIFEWAYS COMMUNITY CARE LTD,SP0000364
WANDSWORTH COUNCIL,ASC,SOCIAL SERVICES,Revenue,VOL ASS,SUPPORTED HOUSING PROGRAMME,516102,130248030,30-Oct-14,"2,187.52",LIFEWAYS COMMUNITY CARE LTD,SP0000364
WANDSWORTH COUNCIL,ASC,SOCIAL SERVICES,Revenue,VOL ASS,SUPPORTED HOUSING PROGRAMME,516103,130248030,30-Oct-14,"2,501.44",LIFEWAYS COMMUNITY CARE LTD,SP0000364
WANDSWORTH COUNCIL,ASC,SOCIAL SERVICES,Revenue,VOL ASS,SUPPORTED HOUSING PROGRAMME,498988,130248030,06-Oct-14,"7,972.24",CHOICE SUPPORT,SP0000398
WANDSWORTH COUNCIL,ASC,SOCIAL SERVICES,Revenue,VOL ASS,SUPPORTED HOUSING PROGRAMME,498989,130248030,06-Oct-14,"9,574.36",CHOICE SUPPORT,SP0000398
WANDSWORTH COUNCIL,ASC,SOCIAL SERVICES,Revenue,VOL ASS,SUPPORTED HOUSING PROGRAMME,499195,130248030,06-Oct-14,"8,080.68",CHOICE SUPPORT,SP0000398
WANDSWORTH COUNCIL,ASC,SOCIAL SERVICES,Revenue,VOL ASS,SUPPORTED HOUSING PROGRAMME,497100,130248030,02-Oct-14,"1,964.20",C M CARE LTD,SP0000455
WANDSWORTH COUNCIL,ASC,SOCIAL SERVICES,Revenue,VOL ASS,SUPPORTED HOUSING PROGRAMME,513415,130248030,24-Oct-14,"2,491.28",ROYAL MENCAP SOCIETY,SP0000842
WANDSWORTH COUNCIL,ASC,SOCIAL SERVICES,Revenue,VOL ASS,SUPPORTED HOUSING PROGRAMME,513416,130248030,24-Oct-14,"5,105.32",ROYAL MENCAP SOCIETY,SP0000842
WANDSWORTH COUNCIL,ASC,SOCIAL SERVICES,Revenue,VOL ASS,SUPPORTED HOUSING PROGRAMME,513417,130248030,24-Oct-14,"2,441.20",ROYAL MENCAP SOCIETY,SP0000842
WANDSWORTH COUNCIL,ASC,SOCIAL SERVICES,Revenue,VOL ASS,SUPPORTED HOUSING PROGRAMME,513418,130248030,24-Oct-14,"5,204.28",ROYAL MENCAP SOCIETY,SP0000842
WANDSWORTH COUNCIL,ASC,SOCIAL SERVICES,Revenue,VOL ASS,SUPPORTED HOUSING PROGRAMME,513419,130248030,24-Oct-14,"2,251.52",ROYAL MENCAP SOCIETY,SP0000842
WANDSWORTH COUNCIL,ASC,SOCIAL SERVICES,Revenue,VOL ASS,SUPPORTED HOUSING PROGRAMME,513422,130248030,24-Oct-14,"1,748.04",ROYAL MENCAP SOCIETY,SP0000842
WANDSWORTH COUNCIL,ASC,SOCIAL SERVICES,Revenue,VOL ASS,SUPPORTED HOUSING PROGRAMME,513423,130248030,24-Oct-14,"3,246.40",ROYAL MENCAP SOCIETY,SP0000842
WANDSWORTH COUNCIL,ASC,SOCIAL SERVICES,Revenue,VOL ASS,SUPPORTED HOUSING PROGRAMME,513424,130248030,24-Oct-14,897.32,ROYAL MENCAP SOCIETY,SP0000842
WANDSWORTH COUNCIL,ASC,SOCIAL SERVICES,Revenue,VOL ASS,SUPPORTED HOUSING PROGRAMME,515617,130248030,29-Oct-14,"8,571.78",ROYAL MENCAP SOCIETY,SP0000842
WANDSWORTH COUNCIL,ASC,SOCIAL SERVICES,Revenue,VOL ASS,SUPPORTED HOUSING PROGRAMME,501343,130248030,14-Oct-14,560.00,ACT TOO LTD,SP0000855
WANDSWORTH COUNCIL,ASC,SOCIAL SERVICES,Revenue,VOL ASS,SUPPORTED HOUSING PROGRAMME,501344,130248030,14-Oct-14,675.00,ACT TOO LTD,SP0000855
WANDSWORTH COUNCIL,ASC,SOCIAL SERVICES,Revenue,VOL ASS,SUPPORTED HOUSING PROGRAMME,513386,130248030,24-Oct-14,"1,080.00",ACT TOO LTD,SP0000855
WANDSWORTH COUNCIL,ASC,SOCIAL SERVICES,Revenue,VOL ASS,SUPPORTED HOUSING PROGRAMME,513388,130248030,24-Oct-14,"1,440.00",ACT TOO LTD,SP0000855
WANDSWORTH COUNCIL,ASC,SOCIAL SERVICES,Revenue,VOL ASS,SUPPORTED HOUSING PROGRAMME,513390,130248030,24-Oct-14,"1,440.00",ACT TOO LTD,SP0000855
WANDSWORTH COUNCIL,ASC,SOCIAL SERVICES,Revenue,VOL ASS,SUPPORTED HOUSING PROGRAMME,513394,130248030,24-Oct-14,"11,760.00",ACT TOO LTD,SP0000855
WANDSWORTH COUNCIL,ASC,SOCIAL SERVICES,Revenue,VOL ASS,SUPPORTED HOUSING PROGRAMME,513396,130248030,24-Oct-14,"1,260.00",ACT TOO LTD,SP0000855
WANDSWORTH COUNCIL,ASC,SOCIAL SERVICES,Revenue,VOL ASS,SUPPORTED HOUSING PROGRAMME,513397,130248030,24-Oct-14,"1,440.00",ACT TOO LTD,SP0000855
WANDSWORTH COUNCIL,ASC,SOCIAL SERVICES,Revenue,VOL ASS,SUPPORTED HOUSING PROGRAMME,513398,130248030,24-Oct-14,"1,320.00",ACT TOO LTD,SP0000855
WANDSWORTH COUNCIL,ASC,SOCIAL SERVICES,Revenue,VOL ASS,SUPPORTED HOUSING PROGRAMME,513399,130248030,24-Oct-14,"1,140.00",ACT TOO LTD,SP0000855
WANDSWORTH COUNCIL,ASC,SOCIAL SERVICES,Revenue,VOL ASS,SUPPORTED HOUSING PROGRAMME,513402,130248030,24-Oct-14,"1,350.00",ACT TOO LTD,SP0000855
WANDSWORTH COUNCIL,ASC,SOCIAL SERVICES,Revenue,VOL ASS,SUPPORTED HOUSING PROGRAMME,513403,130248030,24-Oct-14,600.00,ACT TOO LTD,SP0000855
WANDSWORTH COUNCIL,ASC,SOCIAL SERVICES,Revenue,VOL ASS,SUPPORTED HOUSING PROGRAMME,513409,130248030,24-Oct-14,700.00,ACT TOO LTD,SP0000855
WANDSWORTH COUNCIL,ASC,SOCIAL SERVICES,Revenue,VOL ASS,SUPPORTED HOUSING PROGRAMME,513412,130248030,24-Oct-14,"1,568.00",ACT TOO LTD,SP0000855
WANDSWORTH COUNCIL,ASC,SOCIAL SERVICES,Revenue,VOL ASS,SUPPORTED HOUSING PROGRAMME,508350,130248030,21-Oct-14,"1,685.92",FRONTIER SUPPORT SERVICES LTD,SP0001132
WANDSWORTH COUNCIL,ASC,SOCIAL SERVICES,Revenue,VOL ASS,SUPPORTED HOUSING PROGRAMME,508352,130248030,21-Oct-14,657.80,FRONTIER SUPPORT SERVICES LTD,SP0001132
WANDSWORTH COUNCIL,ASC,SOCIAL SERVICES,Revenue,VOL ASS,SUPPORTED HOUSING PROGRAMME,508353,130248030,21-Oct-14,"2,509.20",FRONTIER SUPPORT SERVICES LTD,SP0001132
WANDSWORTH COUNCIL,ASC,SOCIAL SERVICES,Revenue,VOL ASS,SUPPORTED HOUSING PROGRAMME,508354,130248030,21-Oct-14,"1,358.48",FRONTIER SUPPORT SERVICES LTD,SP0001132
WANDSWORTH COUNCIL,ASC,SOCIAL SERVICES,Revenue,VOL ASS,SUPPORTED HOUSING PROGRAMME,508356,130248030,21-Oct-14,"1,097.56",FRONTIER SUPPORT SERVICES LTD,SP0001132
WANDSWORTH COUNCIL,ASC,SOCIAL SERVICES,Revenue,VOL ASS,SUPPORTED HOUSING PROGRAMME,508357,130248030,21-Oct-14,"1,097.52",FRONTIER SUPPORT SERVICES LTD,SP0001132
WANDSWORTH COUNCIL,ASC,SOCIAL SERVICES,Revenue,VOL ASS,SUPPORTED HOUSING PROGRAMME,508358,130248030,21-Oct-14,"1,353.32",FRONTIER SUPPORT SERVICES LTD,SP0001132
WANDSWORTH COUNCIL,ASC,SOCIAL SERVICES,Revenue,VOL ASS,SUPPORTED HOUSING PROGRAMME,508359,130248030,21-Oct-14,"1,353.32",FRONTIER SUPPORT SERVICES LTD,SP0001132
WANDSWORTH COUNCIL,ASC,SOCIAL SERVICES,Revenue,VOL ASS,SUPPORTED HOUSING PROGRAMME,508360,130248030,21-Oct-14,"1,864.88",FRONTIER SUPPORT SERVICES LTD,SP0001132
WANDSWORTH COUNCIL,ASC,SOCIAL SERVICES,Revenue,VOL ASS,SUPPORTED HOUSING PROGRAMME,508361,130248030,21-Oct-14,"1,533.00",FRONTIER SUPPORT SERVICES LTD,SP0001132
WANDSWORTH COUNCIL,ASC,SOCIAL SERVICES,Revenue,VOL ASS,SUPPORTED HOUSING PROGRAMME,508362,130248030,21-Oct-14,"1,251.12",FRONTIER SUPPORT SERVICES LTD,SP0001132
WANDSWORTH COUNCIL,ASC,SOCIAL SERVICES,Revenue,VOL ASS,SUPPORTED HOUSING PROGRAMME,518273,130248030,31-Oct-14,"1,097.64",FRONTIER SUPPORT SERVICES LTD,SP0001132
WANDSWORTH COUNCIL,ASC,SOCIAL SERVICES,Revenue,VOL ASS,SUPPORTED HOUSING PROGRAMME,504055,130248030,16-Oct-14,"14,574.71",PRECIOUS HOMES LTD,SP0001459
WANDSWORTH COUNCIL,ASC,SOCIAL SERVICES,Revenue,VOL ASS,SUPPORTED HOUSING PROGRAMME,504056,130248030,16-Oct-14,"3,827.14",PRECIOUS HOMES LTD,SP0001459
WANDSWORTH COUNCIL,ASC,SOCIAL SERVICES,Revenue,VOL ASS,SUPPORTED HOUSING PROGRAMME,504098,130248030,16-Oct-14,"6,633.71",PRECIOUS HOMES LTD,SP0001459
WANDSWORTH COUNCIL,ASC,SOCIAL SERVICES,Revenue,VOL ASS,SUPPORTED HOUSING PROGRAMME,518290,130248030,31-Oct-14,"9,036.32",PRECIOUS HOMES LTD,SP0001459
WANDSWORTH COUNCIL,ASC,SOCIAL SERVICES,Revenue,VOL ASS,SUPPORTED HOUSING PROGRAMME,518291,130248030,31-Oct-14,"3,954.71",PRECIOUS HOMES LTD,SP0001459
WANDSWORTH COUNCIL,ASC,SOCIAL SERVICES,Revenue,VOL ASS,SUPPORTED HOUSING PROGRAMME,504138,130248030,16-Oct-14,"6,579.11",WELMEDE HOUSING ASSOCIATION LTD,SP0001717
WANDSWORTH COUNCIL,ASC,SOCIAL SERVICES,Revenue,VOL ASS,SUPPORTED HOUSING PROGRAMME,516028,130248030,30-Oct-14,"6,104.21",INDEPENDENCE HOMES LTD,SP0004378
WANDSWORTH COUNCIL,ASC,SOCIAL SERVICES,Revenue,VOL ASS,SUPPORTED HOUSING PROGRAMME,516029,130248030,30-Oct-14,"5,937.12",INDEPENDENCE HOMES LTD,SP0004378
WANDSWORTH COUNCIL,ASC,SOCIAL SERVICES,Revenue,VOL ASS,SUPPORTED HOUSING PROGRAMME,504057,130248030,16-Oct-14,"1,551.32",THE BRANDON TRUST,SP0005337
WANDSWORTH COUNCIL,ASC,SOCIAL SERVICES,Revenue,VOL ASS,SUPPORTED HOUSING PROGRAMME,504058,130248030,16-Oct-14,"1,504.84",THE BRANDON TRUST,SP0005337
WANDSWORTH COUNCIL,ASC,SOCIAL SERVICES,Revenue,VOL ASS,SUPPORTED HOUSING PROGRAMME,504059,130248030,16-Oct-14,"1,504.84",THE BRANDON TRUST,SP0005337
WANDSWORTH COUNCIL,ASC,SOCIAL SERVICES,Revenue,VOL ASS,SUPPORTED HOUSING PROGRAMME,504060,130248030,16-Oct-14,"1,936.52",THE BRANDON TRUST,SP0005337
WANDSWORTH COUNCIL,ASC,SOCIAL SERVICES,Revenue,VOL ASS,SUPPORTED HOUSING PROGRAMME,504061,130248030,16-Oct-14,"7,764.16",THE BRANDON TRUST,SP0005337
WANDSWORTH COUNCIL,ASC,SOCIAL SERVICES,Revenue,VOL ASS,SUPPORTED HOUSING PROGRAMME,504062,130248030,16-Oct-14,"2,327.04",THE BRANDON TRUST,SP0005337
WANDSWORTH COUNCIL,ASC,SOCIAL SERVICES,Revenue,VOL ASS,SUPPORTED HOUSING PROGRAMME,504063,130248030,16-Oct-14,"2,969.16",THE BRANDON TRUST,SP0005337
WANDSWORTH COUNCIL,ASC,SOCIAL SERVICES,Revenue,VOL ASS,SUPPORTED HOUSING PROGRAMME,504064,130248030,16-Oct-14,"2,979.92",THE BRANDON TRUST,SP0005337
WANDSWORTH COUNCIL,ASC,SOCIAL SERVICES,Revenue,VOL ASS,SUPPORTED HOUSING PROGRAMME,504065,130248030,16-Oct-14,"3,088.80",THE BRANDON TRUST,SP0005337
WANDSWORTH COUNCIL,ASC,SOCIAL SERVICES,Revenue,VOL ASS,SUPPORTED HOUSING PROGRAMME,504066,130248030,16-Oct-14,"2,758.28",THE BRANDON TRUST,SP0005337
WANDSWORTH COUNCIL,ASC,SOCIAL SERVICES,Revenue,VOL ASS,SUPPORTED HOUSING PROGRAMME,504067,130248030,16-Oct-14,"2,128.32",THE BRANDON TRUST,SP0005337
WANDSWORTH COUNCIL,ASC,SOCIAL SERVICES,Revenue,VOL ASS,SUPPORTED HOUSING PROGRAMME,504068,130248030,16-Oct-14,"6,198.76",THE BRANDON TRUST,SP0005337
WANDSWORTH COUNCIL,ASC,SOCIAL SERVICES,Revenue,VOL ASS,SUPPORTED HOUSING PROGRAMME,504069,130248030,16-Oct-14,"1,465.92",THE BRANDON TRUST,SP0005337
WANDSWORTH COUNCIL,ASC,SOCIAL SERVICES,Revenue,VOL ASS,SUPPORTED HOUSING PROGRAMME,504070,130248030,16-Oct-14,"1,548.72",THE BRANDON TRUST,SP0005337
WANDSWORTH COUNCIL,ASC,SOCIAL SERVICES,Revenue,VOL ASS,SUPPORTED HOUSING PROGRAMME,504071,130248030,16-Oct-14,"2,658.24",THE BRANDON TRUST,SP0005337
WANDSWORTH COUNCIL,ASC,SOCIAL SERVICES,Revenue,VOL ASS,SUPPORTED HOUSING PROGRAMME,504072,130248030,16-Oct-14,"2,592.60",THE BRANDON TRUST,SP0005337
WANDSWORTH COUNCIL,ASC,SOCIAL SERVICES,Revenue,VOL ASS,SUPPORTED HOUSING PROGRAMME,504073,130248030,16-Oct-14,"2,724.48",THE BRANDON TRUST,SP0005337
WANDSWORTH COUNCIL,ASC,SOCIAL SERVICES,Revenue,VOL ASS,SUPPORTED HOUSING PROGRAMME,504074,130248030,16-Oct-14,"3,564.56",THE BRANDON TRUST,SP0005337
WANDSWORTH COUNCIL,ASC,SOCIAL SERVICES,Revenue,VOL ASS,SUPPORTED HOUSING PROGRAMME,504075,130248030,16-Oct-14,"3,416.80",THE BRANDON TRUST,SP0005337
WANDSWORTH COUNCIL,ASC,SOCIAL SERVICES,Revenue,VOL ASS,SUPPORTED HOUSING PROGRAMME,504076,130248030,16-Oct-14,"2,848.72",THE BRANDON TRUST,SP0005337
WANDSWORTH COUNCIL,ASC,SOCIAL SERVICES,Revenue,VOL ASS,SUPPORTED HOUSING PROGRAMME,504077,130248030,16-Oct-14,"2,327.24",THE BRANDON TRUST,SP0005337
WANDSWORTH COUNCIL,ASC,SOCIAL SERVICES,Revenue,VOL ASS,SUPPORTED HOUSING PROGRAMME,504078,130248030,16-Oct-14,"2,327.24",THE BRANDON TRUST,SP0005337
WANDSWORTH COUNCIL,ASC,SOCIAL SERVICES,Revenue,VOL ASS,SUPPORTED HOUSING PROGRAMME,504100,130248030,16-Oct-14,"2,186.04",THE BRANDON TRUST,SP0005337
WANDSWORTH COUNCIL,ASC,SOCIAL SERVICES,Revenue,VOL ASS,SUPPORTED HOUSING PROGRAMME,504101,130248030,16-Oct-14,"1,125.08",THE BRANDON TRUST,SP0005337
WANDSWORTH COUNCIL,ASC,SOCIAL SERVICES,Revenue,VOL ASS,SUPPORTED HOUSING PROGRAMME,504102,130248030,16-Oct-14,"1,155.88",THE BRANDON TRUST,SP0005337
WANDSWORTH COUNCIL,ASC,SOCIAL SERVICES,Revenue,VOL ASS,SUPPORTED HOUSING PROGRAMME,504103,130248030,16-Oct-14,"1,854.72",THE BRANDON TRUST,SP0005337
WANDSWORTH COUNCIL,ASC,SOCIAL SERVICES,Revenue,VOL ASS,SUPPORTED HOUSING PROGRAMME,504104,130248030,16-Oct-14,"1,380.64",THE BRANDON TRUST,SP0005337
WANDSWORTH COUNCIL,ASC,SOCIAL SERVICES,Revenue,VOL ASS,SUPPORTED HOUSING PROGRAMME,504105,130248030,16-Oct-14,"1,466.16",THE BRANDON TRUST,SP0005337
WANDSWORTH COUNCIL,ASC,SOCIAL SERVICES,Revenue,VOL ASS,SUPPORTED HOUSING PROGRAMME,504106,130248030,16-Oct-14,"1,513.68",THE BRANDON TRUST,SP0005337
WANDSWORTH COUNCIL,ASC,SOCIAL SERVICES,Revenue,VOL ASS,SUPPORTED HOUSING PROGRAMME,504107,130248030,16-Oct-14,"2,856.96",THE BRANDON TRUST,SP0005337
WANDSWORTH COUNCIL,ASC,SOCIAL SERVICES,Revenue,VOL ASS,SUPPORTED HOUSING PROGRAMME,504108,130248030,16-Oct-14,"2,260.80",THE BRANDON TRUST,SP0005337
WANDSWORTH COUNCIL,ASC,SOCIAL SERVICES,Revenue,VOL ASS,SUPPORTED HOUSING PROGRAMME,504109,130248030,16-Oct-14,"3,453.12",THE BRANDON TRUST,SP0005337
WANDSWORTH COUNCIL,ASC,SOCIAL SERVICES,Revenue,VOL ASS,SUPPORTED HOUSING PROGRAMME,504110,130248030,16-Oct-14,"2,790.72",THE BRANDON TRUST,SP0005337
WANDSWORTH COUNCIL,ASC,SOCIAL SERVICES,Revenue,VOL ASS,SUPPORTED HOUSING PROGRAMME,504111,130248030,16-Oct-14,"1,886.40",THE BRANDON TRUST,SP0005337
WANDSWORTH COUNCIL,ASC,SOCIAL SERVICES,Revenue,VOL ASS,SUPPORTED HOUSING PROGRAMME,504112,130248030,16-Oct-14,"1,797.12",THE BRANDON TRUST,SP0005337
WANDSWORTH COUNCIL,ASC,SOCIAL SERVICES,Revenue,VOL ASS,SUPPORTED HOUSING PROGRAMME,504113,130248030,16-Oct-14,"2,062.08",THE BRANDON TRUST,SP0005337
WANDSWORTH COUNCIL,ASC,SOCIAL SERVICES,Revenue,VOL ASS,SUPPORTED HOUSING PROGRAMME,504114,130248030,16-Oct-14,"3,520.16",THE BRANDON TRUST,SP0005337
WANDSWORTH COUNCIL,ASC,SOCIAL SERVICES,Revenue,VOL ASS,SUPPORTED HOUSING PROGRAMME,504115,130248030,16-Oct-14,"2,525.76",THE BRANDON TRUST,SP0005337
WANDSWORTH COUNCIL,ASC,SOCIAL SERVICES,Revenue,VOL ASS,SUPPORTED HOUSING PROGRAMME,504116,130248030,16-Oct-14,"3,453.92",THE BRANDON TRUST,SP0005337
WANDSWORTH COUNCIL,ASC,SOCIAL SERVICES,Revenue,VOL ASS,SUPPORTED HOUSING PROGRAMME,504117,130248030,16-Oct-14,"1,929.60",THE BRANDON TRUST,SP0005337
WANDSWORTH COUNCIL,ASC,SOCIAL SERVICES,Revenue,VOL ASS,SUPPORTED HOUSING PROGRAMME,504118,130248030,16-Oct-14,"2,923.88",THE BRANDON TRUST,SP0005337
WANDSWORTH COUNCIL,ASC,SOCIAL SERVICES,Revenue,VOL ASS,SUPPORTED HOUSING PROGRAMME,504119,130248030,16-Oct-14,"4,687.20",THE BRANDON TRUST,SP0005337
WANDSWORTH COUNCIL,ASC,SOCIAL SERVICES,Revenue,VOL ASS,SUPPORTED HOUSING PROGRAMME,504120,130248030,16-Oct-14,"4,688.56",THE BRANDON TRUST,SP0005337
WANDSWORTH COUNCIL,ASC,SOCIAL SERVICES,Revenue,VOL ASS,SUPPORTED HOUSING PROGRAMME,504121,130248030,16-Oct-14,"3,320.64",THE BRANDON TRUST,SP0005337
WANDSWORTH COUNCIL,ASC,SOCIAL SERVICES,Revenue,VOL ASS,SUPPORTED HOUSING PROGRAMME,504122,130248030,16-Oct-14,"3,702.20",THE BRANDON TRUST,SP0005337
WANDSWORTH COUNCIL,ASC,SOCIAL SERVICES,Revenue,VOL ASS,SUPPORTED HOUSING PROGRAMME,504123,130248030,16-Oct-14,"3,718.08",THE BRANDON TRUST,SP0005337
WANDSWORTH COUNCIL,ASC,SOCIAL SERVICES,Revenue,VOL ASS,SUPPORTED HOUSING PROGRAMME,504124,130248030,16-Oct-14,"3,121.92",THE BRANDON TRUST,SP0005337
WANDSWORTH COUNCIL,ASC,SOCIAL SERVICES,Revenue,VOL ASS,SUPPORTED HOUSING PROGRAMME,504125,130248030,16-Oct-14,"5,688.08",THE BRANDON TRUST,SP0005337
WANDSWORTH COUNCIL,ASC,SOCIAL SERVICES,Revenue,VOL ASS,SUPPORTED HOUSING PROGRAMME,504126,130248030,16-Oct-14,"5,983.44",THE BRANDON TRUST,SP0005337
WANDSWORTH COUNCIL,ASC,SOCIAL SERVICES,Revenue,VOL ASS,SUPPORTED HOUSING PROGRAMME,504127,130248030,16-Oct-14,"4,827.60",THE BRANDON TRUST,SP0005337
WANDSWORTH COUNCIL,ASC,SOCIAL SERVICES,Revenue,VOL ASS,SUPPORTED HOUSING PROGRAMME,504128,130248030,16-Oct-14,"6,346.04",THE BRANDON TRUST,SP0005337
WANDSWORTH COUNCIL,ASC,SOCIAL SERVICES,Revenue,VOL ASS,SUPPORTED HOUSING PROGRAMME,504129,130248030,16-Oct-14,"3,324.96",THE BRANDON TRUST,SP0005337
WANDSWORTH COUNCIL,ASC,SOCIAL SERVICES,Revenue,VOL ASS,SUPPORTED HOUSING PROGRAMME,504130,130248030,16-Oct-14,"2,886.04",THE BRANDON TRUST,SP0005337
WANDSWORTH COUNCIL,ASC,SOCIAL SERVICES,Revenue,VOL ASS,SUPPORTED HOUSING PROGRAMME,504131,130248030,16-Oct-14,"1,163.52",THE BRANDON TRUST,SP0005337
WANDSWORTH COUNCIL,ASC,SOCIAL SERVICES,Revenue,VOL ASS,SUPPORTED HOUSING PROGRAMME,504132,130248030,16-Oct-14,"2,856.96",THE BRANDON TRUST,SP0005337
WANDSWORTH COUNCIL,ASC,SOCIAL SERVICES,Revenue,VOL ASS,SUPPORTED HOUSING PROGRAMME,504375,130248030,16-Oct-14,"1,465.92",THE BRANDON TRUST,SP0005337
WANDSWORTH COUNCIL,ASC,SOCIAL SERVICES,Revenue,VOL ASS,SUPPORTED HOUSING PROGRAMME,504386,130248030,16-Oct-14,"1,477.60",THE BRANDON TRUST,SP0005337
WANDSWORTH COUNCIL,ASC,SOCIAL SERVICES,Revenue,VOL ASS,SUPPORTED HOUSING PROGRAMME,504387,130248030,16-Oct-14,"1,674.84",THE BRANDON TRUST,SP0005337
WANDSWORTH COUNCIL,ASC,SOCIAL SERVICES,Revenue,VOL ASS,SUPPORTED HOUSING PROGRAMME,504388,130248030,16-Oct-14,"2,658.24",THE BRANDON TRUST,SP0005337
WANDSWORTH COUNCIL,ASC,SOCIAL SERVICES,Revenue,VOL ASS,SUPPORTED HOUSING PROGRAMME,504389,130248030,16-Oct-14,"2,405.96",THE BRANDON TRUST,SP0005337
WANDSWORTH COUNCIL,ASC,SOCIAL SERVICES,Revenue,VOL ASS,SUPPORTED HOUSING PROGRAMME,504392,130248030,16-Oct-14,"2,459.52",THE BRANDON TRUST,SP0005337
WANDSWORTH COUNCIL,ASC,SOCIAL SERVICES,Revenue,VOL ASS,SUPPORTED HOUSING PROGRAMME,504393,130248030,16-Oct-14,"3,883.68",THE BRANDON TRUST,SP0005337
WANDSWORTH COUNCIL,ASC,SOCIAL SERVICES,Revenue,VOL ASS,SUPPORTED HOUSING PROGRAMME,504394,130248030,16-Oct-14,"2,618.48",THE BRANDON TRUST,SP0005337
WANDSWORTH COUNCIL,ASC,SOCIAL SERVICES,Revenue,VOL ASS,SUPPORTED HOUSING PROGRAMME,504395,130248030,16-Oct-14,"1,730.88",THE BRANDON TRUST,SP0005337
WANDSWORTH COUNCIL,ASC,SOCIAL SERVICES,Revenue,VOL ASS,SUPPORTED HOUSING PROGRAMME,504405,130248030,16-Oct-14,"2,980.32",THE BRANDON TRUST,SP0005337
WANDSWORTH COUNCIL,ASC,SOCIAL SERVICES,Revenue,VOL ASS,SUPPORTED HOUSING PROGRAMME,504406,130248030,16-Oct-14,"1,513.68",THE BRANDON TRUST,SP0005337
WANDSWORTH COUNCIL,ASC,SOCIAL SERVICES,Revenue,VOL ASS,SUPPORTED HOUSING PROGRAMME,504410,130248030,16-Oct-14,"1,499.04",THE BRANDON TRUST,SP0005337
WANDSWORTH COUNCIL,ASC,SOCIAL SERVICES,Revenue,VOL ASS,SUPPORTED HOUSING PROGRAMME,504420,130248030,16-Oct-14,"1,034.48",THE BRANDON TRUST,SP0005337
WANDSWORTH COUNCIL,ASC,SOCIAL SERVICES,Revenue,VOL ASS,SUPPORTED HOUSING PROGRAMME,507518,130248030,21-Oct-14,556.32,THE BRANDON TRUST,SP0005337
WANDSWORTH COUNCIL,ASC,ENVIRONMENT & COMMUNITY,Revenue,VOL ASS,SUPPORTED HOUSING PROGRAMME,508153,130248030,21-Oct-14,"10,557.40",THE BRANDON TRUST,SP0005337
WANDSWORTH COUNCIL,ASC,ENVIRONMENT & COMMUNITY,Revenue,VOL ASS,SUPPORTED HOUSING PROGRAMME,508154,130248030,21-Oct-14,"10,557.40",THE BRANDON TRUST,SP0005337
WANDSWORTH COUNCIL,ASC,SOCIAL SERVICES,Revenue,VOL ASS,SUPPORTED HOUSING PROGRAMME,504134,130248030,16-Oct-14,"6,120.00",RELIABLE PERSONNEL LTD,SP0005657
WANDSWORTH COUNCIL,ASC,SOCIAL SERVICES,Revenue,VOL ASS,SUPPORTED HOUSING PROGRAMME,507511,130248030,21-Oct-14,"4,400.00",MORTON GARDENS,SP0008639
WANDSWORTH COUNCIL,ASC,SOCIAL SERVICES,Revenue,VOL ASS,SUPPORTED HOUSING PROGRAMME,513375,130248030,24-Oct-14,"4,400.00",MORTON GARDENS,SP0008639
WANDSWORTH COUNCIL,ASC,SOCIAL SERVICES,Revenue,DIRECT,DIRECT PAYMENTS,506313,130250380,16-Oct-14,838.12,VIBRANCE,SP0005489
WANDSWORTH COUNCIL,ASC,SOCIAL SERVICES,Revenue,CUSTOMER & CLIENT RECPTS - EXT,CL CONT EXT RESIDEN S28A 100%,518120,130280680,31-Oct-14,-495.80,ELEANOR NURSING & SOCIAL CARE,SP0000110
WANDSWORTH COUNCIL,ASC,SOCIAL SERVICES,Revenue,CUSTOMER & CLIENT RECPTS - EXT,CL CONT EXT RESIDEN S28A 100%,515364,130280680,29-Oct-14,-548.93,ST MARYS RESIDENTIAL HOME,SP0000215
WANDSWORTH COUNCIL,ASC,SOCIAL SERVICES,Revenue,CUSTOMER & CLIENT RECPTS - EXT,CL CONT EXT RESIDEN S28A 100%,515365,130280680,29-Oct-14,-548.93,ST MARYS RESIDENTIAL HOME,SP0000215
WANDSWORTH COUNCIL,ASC,SOCIAL SERVICES,Revenue,CUSTOMER & CLIENT RECPTS - EXT,CL CONT EXT RESIDEN S28A 100%,512198,130280680,23-Oct-14,-319.40,LOVING CARE LTD,SP0000670
WANDSWORTH COUNCIL,ASC,SOCIAL SERVICES,Revenue,CUSTOMER & CLIENT RECPTS - EXT,CL CONT EXT RESIDEN S28A 100%,513634,130280680,27-Oct-14,-495.80,ASHTON CARE,SP0000695
WANDSWORTH COUNCIL,ASC,SOCIAL SERVICES,Revenue,CUSTOMER & CLIENT RECPTS - EXT,CL CONT EXT RESIDEN S28A 100%,502271,130280680,15-Oct-14,-531.21,RALEIGH HOUSE LTD,SP0000760
WANDSWORTH COUNCIL,ASC,SOCIAL SERVICES,Revenue,CUSTOMER & CLIENT RECPTS - EXT,CL CONT EXT RESIDEN S28A 100%,513635,130280680,27-Oct-14,-548.93,CARE UK LEARNING DISABILITIES SERVICES L,SP0001039
WANDSWORTH COUNCIL,ASC,SOCIAL SERVICES,Revenue,CUSTOMER & CLIENT RECPTS - EXT,CL CONT EXTERNAL RESIDENT S28A,498972,130280710,06-Oct-14,-397.20,CMG HOMES LTD,SP0000075
WANDSWORTH COUNCIL,ASC,SOCIAL SERVICES,Revenue,CUSTOMER & CLIENT RECPTS - EXT,CL CONT EXTERNAL RESIDENT S28A,503970,130280710,16-Oct-14,-319.40,SURREY & BORDERS PARTNERSHIP NHS TRUST,SP0000501
WANDSWORTH COUNCIL,ASC,SOCIAL SERVICES,Revenue,CUSTOMER & CLIENT RECPTS - EXT,CL CONT EXTERNAL RESIDENT S28A,515352,130280710,29-Oct-14,-353.63,PARKGATE MANOR,SP0000521
WANDSWORTH COUNCIL,ASC,SOCIAL SERVICES,Revenue,CUSTOMER & CLIENT RECPTS - EXT,CL CONT EXTERNAL RESIDENT S28A,512210,130280710,23-Oct-14,-353.62,PROGRESS HOUSING MARLOW,SP0000952
WANDSWORTH COUNCIL,ASC,SOCIAL SERVICES,Revenue,CUSTOMER & CLIENT RECPTS - EXT,CL CONT EXTERNAL RESIDENT S28A,518155,130280710,31-Oct-14,-353.63,PROGRESS HOUSING MARLOW,SP0000952
WANDSWORTH COUNCIL,ASC,SOCIAL SERVICES,Revenue,CUSTOMER & CLIENT RECPTS - EXT,CL CONT EXTERNAL RESIDENTIAL,507806,130280720,21-Oct-14,-980.40,THE LYLE PARK TRUST,SP0000070
WANDSWORTH COUNCIL,ASC,SOCIAL SERVICES,Revenue,CUSTOMER & CLIENT RECPTS - EXT,CL CONT EXTERNAL RESIDENTIAL,498966,130280720,06-Oct-14,-319.40,CMG HOMES LTD,SP0000075
WANDSWORTH COUNCIL,ASC,SOCIAL SERVICES,Revenue,CUSTOMER & CLIENT RECPTS - EXT,CL CONT EXTERNAL RESIDENTIAL,498970,130280720,06-Oct-14,-335.00,CMG HOMES LTD,SP0000075
WANDSWORTH COUNCIL,ASC,SOCIAL SERVICES,Revenue,CUSTOMER & CLIENT RECPTS - EXT,CL CONT EXTERNAL RESIDENTIAL,498974,130280720,06-Oct-14,-259.20,CMG HOMES LTD,SP0000075
WANDSWORTH COUNCIL,ASC,SOCIAL SERVICES,Revenue,CUSTOMER & CLIENT RECPTS - EXT,CL CONT EXTERNAL RESIDENTIAL,498975,130280720,06-Oct-14,-319.40,CMG HOMES LTD,SP0000075
WANDSWORTH COUNCIL,ASC,SOCIAL SERVICES,Revenue,CUSTOMER & CLIENT RECPTS - EXT,CL CONT EXTERNAL RESIDENTIAL,498976,130280720,06-Oct-14,-319.40,CMG HOMES LTD,SP0000075
WANDSWORTH COUNCIL,ASC,SOCIAL SERVICES,Revenue,CUSTOMER & CLIENT RECPTS - EXT,CL CONT EXTERNAL RESIDENTIAL,498977,130280720,06-Oct-14,-495.80,CMG HOMES LTD,SP0000075
WANDSWORTH COUNCIL,ASC,SOCIAL SERVICES,Revenue,CUSTOMER & CLIENT RECPTS - EXT,CL CONT EXTERNAL RESIDENTIAL,498980,130280720,06-Oct-14,-362.80,CMG HOMES LTD,SP0000075
WANDSWORTH COUNCIL,ASC,SOCIAL SERVICES,Revenue,CUSTOMER & CLIENT RECPTS - EXT,CL CONT EXTERNAL RESIDENTIAL,498993,130280720,06-Oct-14,-319.40,CMG HOMES LTD,SP0000075
WANDSWORTH COUNCIL,ASC,SOCIAL SERVICES,Revenue,CUSTOMER & CLIENT RECPTS - EXT,CL CONT EXTERNAL RESIDENTIAL,507296,130280720,21-Oct-14,-362.80,NATIONAL SOCIETY FOR EPILEPSY,SP0000120
WANDSWORTH COUNCIL,ASC,SOCIAL SERVICES,Revenue,CUSTOMER & CLIENT RECPTS - EXT,CL CONT EXTERNAL RESIDENTIAL,507652,130280720,21-Oct-14,-319.40,SANCTUARY CARE LTD,SP0000121
WANDSWORTH COUNCIL,ASC,SOCIAL SERVICES,Revenue,CUSTOMER & CLIENT RECPTS - EXT,CL CONT EXTERNAL RESIDENTIAL,515351,130280720,29-Oct-14,-305.61,IN CHORUS LTD,SP0000129
WANDSWORTH COUNCIL,ASC,SOCIAL SERVICES,Revenue,CUSTOMER & CLIENT RECPTS - EXT,CL CONT EXTERNAL RESIDENTIAL,518136,130280720,31-Oct-14,-353.63,CENTRUST CARE HOMES LTD,SP0000141
WANDSWORTH COUNCIL,ASC,SOCIAL SERVICES,Revenue,CUSTOMER & CLIENT RECPTS - EXT,CL CONT EXTERNAL RESIDENTIAL,518169,130280720,31-Oct-14,-353.63,FRANCES TAYLOR FOUNDATION,SP0000142
WANDSWORTH COUNCIL,ASC,SOCIAL SERVICES,Revenue,CUSTOMER & CLIENT RECPTS - EXT,CL CONT EXTERNAL RESIDENTIAL,518170,130280720,31-Oct-14,-353.63,FRANCES TAYLOR FOUNDATION,SP0000142
WANDSWORTH COUNCIL,ASC,SOCIAL SERVICES,Revenue,CUSTOMER & CLIENT RECPTS - EXT,CL CONT EXTERNAL RESIDENTIAL,518171,130280720,31-Oct-14,-348.98,FRANCES TAYLOR FOUNDATION,SP0000142
WANDSWORTH COUNCIL,ASC,SOCIAL SERVICES,Revenue,CUSTOMER & CLIENT RECPTS - EXT,CL CONT EXTERNAL RESIDENTIAL,503947,130280720,16-Oct-14,-342.21,RESIDENTIAL CARE SERVICES T/A FRANKLYN L,SP0000147
WANDSWORTH COUNCIL,ASC,SOCIAL SERVICES,Revenue,CUSTOMER & CLIENT RECPTS - EXT,CL CONT EXTERNAL RESIDENTIAL,507338,130280720,21-Oct-14,-319.40,THE CHESTNUTS,SP0000182
WANDSWORTH COUNCIL,ASC,SOCIAL SERVICES,Revenue,CUSTOMER & CLIENT RECPTS - EXT,CL CONT EXTERNAL RESIDENTIAL,507322,130280720,21-Oct-14,-319.40,ORCHARD VALE TRUST,SP0000214
WANDSWORTH COUNCIL,ASC,SOCIAL SERVICES,Revenue,CUSTOMER & CLIENT RECPTS - EXT,CL CONT EXTERNAL RESIDENTIAL,515353,130280720,29-Oct-14,-268.15,ST MARYS RESIDENTIAL HOME,SP0000215
WANDSWORTH COUNCIL,ASC,SOCIAL SERVICES,Revenue,CUSTOMER & CLIENT RECPTS - EXT,CL CONT EXTERNAL RESIDENTIAL,515354,130280720,29-Oct-14,-548.93,ST MARYS RESIDENTIAL HOME,SP0000215
WANDSWORTH COUNCIL,ASC,SOCIAL SERVICES,Revenue,CUSTOMER & CLIENT RECPTS - EXT,CL CONT EXTERNAL RESIDENTIAL,515355,130280720,29-Oct-14,-353.63,ST MARYS RESIDENTIAL HOME,SP0000215
WANDSWORTH COUNCIL,ASC,SOCIAL SERVICES,Revenue,CUSTOMER & CLIENT RECPTS - EXT,CL CONT EXTERNAL RESIDENTIAL,515356,130280720,29-Oct-14,-353.63,ST MARYS RESIDENTIAL HOME,SP0000215
WANDSWORTH COUNCIL,ASC,SOCIAL SERVICES,Revenue,CUSTOMER & CLIENT RECPTS - EXT,CL CONT EXTERNAL RESIDENTIAL,515357,130280720,29-Oct-14,-548.93,ST MARYS RESIDENTIAL HOME,SP0000215
WANDSWORTH COUNCIL,ASC,SOCIAL SERVICES,Revenue,CUSTOMER & CLIENT RECPTS - EXT,CL CONT EXTERNAL RESIDENTIAL,515358,130280720,29-Oct-14,-353.63,ST MARYS RESIDENTIAL HOME,SP0000215
WANDSWORTH COUNCIL,ASC,SOCIAL SERVICES,Revenue,CUSTOMER & CLIENT RECPTS - EXT,CL CONT EXTERNAL RESIDENTIAL,515359,130280720,29-Oct-14,-353.63,ST MARYS RESIDENTIAL HOME,SP0000215
WANDSWORTH COUNCIL,ASC,SOCIAL SERVICES,Revenue,CUSTOMER & CLIENT RECPTS - EXT,CL CONT EXTERNAL RESIDENTIAL,515360,130280720,29-Oct-14,-353.63,ST MARYS RESIDENTIAL HOME,SP0000215
WANDSWORTH COUNCIL,ASC,SOCIAL SERVICES,Revenue,CUSTOMER & CLIENT RECPTS - EXT,CL CONT EXTERNAL RESIDENTIAL,515361,130280720,29-Oct-14,-548.93,ST MARYS RESIDENTIAL HOME,SP0000215
WANDSWORTH COUNCIL,ASC,SOCIAL SERVICES,Revenue,CUSTOMER & CLIENT RECPTS - EXT,CL CONT EXTERNAL RESIDENTIAL,515363,130280720,29-Oct-14,-711.32,ST MARYS RESIDENTIAL HOME,SP0000215
WANDSWORTH COUNCIL,ASC,SOCIAL SERVICES,Revenue,CUSTOMER & CLIENT RECPTS - EXT,CL CONT EXTERNAL RESIDENTIAL,515366,130280720,29-Oct-14,"-1,333.40",ST MARYS RESIDENTIAL HOME,SP0000215
WANDSWORTH COUNCIL,ASC,SOCIAL SERVICES,Revenue,CUSTOMER & CLIENT RECPTS - EXT,CL CONT EXTERNAL RESIDENTIAL,515367,130280720,29-Oct-14,-319.40,ST MARYS RESIDENTIAL HOME,SP0000215
WANDSWORTH COUNCIL,ASC,SOCIAL SERVICES,Revenue,CUSTOMER & CLIENT RECPTS - EXT,CL CONT EXTERNAL RESIDENTIAL,502320,130280720,15-Oct-14,-319.40,NAS SERVICES LIMITED,SP0000217
WANDSWORTH COUNCIL,ASC,SOCIAL SERVICES,Revenue,CUSTOMER & CLIENT RECPTS - EXT,CL CONT EXTERNAL RESIDENTIAL,503955,130280720,16-Oct-14,-319.40,NAS SERVICES LIMITED,SP0000217
WANDSWORTH COUNCIL,ASC,SOCIAL SERVICES,Revenue,CUSTOMER & CLIENT RECPTS - EXT,CL CONT EXTERNAL RESIDENTIAL,503960,130280720,16-Oct-14,-319.40,NAS SERVICES LIMITED,SP0000217
WANDSWORTH COUNCIL,ASC,SOCIAL SERVICES,Revenue,CUSTOMER & CLIENT RECPTS - EXT,CL CONT EXTERNAL RESIDENTIAL,515337,130280720,29-Oct-14,-319.40,NAS SERVICES LIMITED,SP0000217
WANDSWORTH COUNCIL,ASC,SOCIAL SERVICES,Revenue,CUSTOMER & CLIENT RECPTS - EXT,CL CONT EXTERNAL RESIDENTIAL,515373,130280720,29-Oct-14,-319.40,NAS SERVICES LIMITED,SP0000217
WANDSWORTH COUNCIL,ASC,SOCIAL SERVICES,Revenue,CUSTOMER & CLIENT RECPTS - EXT,CL CONT EXTERNAL RESIDENTIAL,512263,130280720,23-Oct-14,-319.40,SPRING LAKE,SP0000223
WANDSWORTH COUNCIL,ASC,SOCIAL SERVICES,Revenue,CUSTOMER & CLIENT RECPTS - EXT,CL CONT EXTERNAL RESIDENTIAL,512264,130280720,23-Oct-14,-362.80,SPRING LAKE,SP0000223
WANDSWORTH COUNCIL,ASC,SOCIAL SERVICES,Revenue,CUSTOMER & CLIENT RECPTS - EXT,CL CONT EXTERNAL RESIDENTIAL,512265,130280720,23-Oct-14,-319.40,SPRING LAKE,SP0000223
WANDSWORTH COUNCIL,ASC,SOCIAL SERVICES,Revenue,CUSTOMER & CLIENT RECPTS - EXT,CL CONT EXTERNAL RESIDENTIAL,512266,130280720,23-Oct-14,-362.80,SPRING LAKE,SP0000223
WANDSWORTH COUNCIL,ASC,SOCIAL SERVICES,Revenue,CUSTOMER & CLIENT RECPTS - EXT,CL CONT EXTERNAL RESIDENTIAL,503945,130280720,16-Oct-14,-319.40,HAYDON PARK LODGE LTD,SP0000231
WANDSWORTH COUNCIL,ASC,SOCIAL SERVICES,Revenue,CUSTOMER & CLIENT RECPTS - EXT,CL CONT EXTERNAL RESIDENTIAL,518119,130280720,31-Oct-14,-401.68,BROOKDALE CARE,SP0000282
WANDSWORTH COUNCIL,ASC,SOCIAL SERVICES,Revenue,CUSTOMER & CLIENT RECPTS - EXT,CL CONT EXTERNAL RESIDENTIAL,497007,130280720,02-Oct-14,-319.40,CRAEGMOOR FACILITIES CO LTD,SP0000306
WANDSWORTH COUNCIL,ASC,SOCIAL SERVICES,Revenue,CUSTOMER & CLIENT RECPTS - EXT,CL CONT EXTERNAL RESIDENTIAL,507336,130280720,21-Oct-14,-319.40,CRAEGMOOR FACILITIES CO LTD,SP0000306
WANDSWORTH COUNCIL,ASC,SOCIAL SERVICES,Revenue,CUSTOMER & CLIENT RECPTS - EXT,CL CONT EXTERNAL RESIDENTIAL,515368,130280720,29-Oct-14,-353.63,DOLPHIN HOMES LTD,SP0000331
WANDSWORTH COUNCIL,ASC,SOCIAL SERVICES,Revenue,CUSTOMER & CLIENT RECPTS - EXT,CL CONT EXTERNAL RESIDENTIAL,515369,130280720,29-Oct-14,-353.63,DOLPHIN HOMES LTD,SP0000331
WANDSWORTH COUNCIL,ASC,SOCIAL SERVICES,Revenue,CUSTOMER & CLIENT RECPTS - EXT,CL CONT EXTERNAL RESIDENTIAL,503958,130280720,16-Oct-14,-319.40,NORWOOD SCHOOLS LTD,SP0000332
WANDSWORTH COUNCIL,ASC,SOCIAL SERVICES,Revenue,CUSTOMER & CLIENT RECPTS - EXT,CL CONT EXTERNAL RESIDENTIAL,503959,130280720,16-Oct-14,-319.40,NORWOOD SCHOOLS LTD,SP0000332
WANDSWORTH COUNCIL,ASC,SOCIAL SERVICES,Revenue,CUSTOMER & CLIENT RECPTS - EXT,CL CONT EXTERNAL RESIDENTIAL,513670,130280720,27-Oct-14,-319.40,NORWOOD SCHOOLS LTD,SP0000332
WANDSWORTH COUNCIL,ASC,SOCIAL SERVICES,Revenue,CUSTOMER & CLIENT RECPTS - EXT,CL CONT EXTERNAL RESIDENTIAL,513671,130280720,27-Oct-14,-319.40,NORWOOD SCHOOLS LTD,SP0000332
WANDSWORTH COUNCIL,ASC,SOCIAL SERVICES,Revenue,CUSTOMER & CLIENT RECPTS - EXT,CL CONT EXTERNAL RESIDENTIAL,518147,130280720,31-Oct-14,-548.93,THE MANOR,SP0000340
WANDSWORTH COUNCIL,ASC,SOCIAL SERVICES,Revenue,CUSTOMER & CLIENT RECPTS - EXT,CL CONT EXTERNAL RESIDENTIAL,498991,130280720,06-Oct-14,-319.40,POTENSIAL LTD,SP0000395
WANDSWORTH COUNCIL,ASC,SOCIAL SERVICES,Revenue,CUSTOMER & CLIENT RECPTS - EXT,CL CONT EXTERNAL RESIDENTIAL,518128,130280720,31-Oct-14,-319.40,POTENSIAL LTD,SP0000395
WANDSWORTH COUNCIL,ASC,SOCIAL SERVICES,Revenue,CUSTOMER & CLIENT RECPTS - EXT,CL CONT EXTERNAL RESIDENTIAL,513639,130280720,27-Oct-14,-495.80,KENILWORTH RESIDENTIAL HOME,SP0000432
WANDSWORTH COUNCIL,ASC,SOCIAL SERVICES,Revenue,CUSTOMER & CLIENT RECPTS - EXT,CL CONT EXTERNAL RESIDENTIAL,513640,130280720,27-Oct-14,-319.40,KENILWORTH RESIDENTIAL HOME,SP0000432
WANDSWORTH COUNCIL,ASC,SOCIAL SERVICES,Revenue,CUSTOMER & CLIENT RECPTS - EXT,CL CONT EXTERNAL RESIDENTIAL,503971,130280720,16-Oct-14,-495.80,SURREY & BORDERS PARTNERSHIP NHS TRUST,SP0000501
WANDSWORTH COUNCIL,ASC,SOCIAL SERVICES,Revenue,CUSTOMER & CLIENT RECPTS - EXT,CL CONT EXTERNAL RESIDENTIAL,502304,130280720,15-Oct-14,-342.21,SEEABILITY,SP0000572
WANDSWORTH COUNCIL,ASC,SOCIAL SERVICES,Revenue,CUSTOMER & CLIENT RECPTS - EXT,CL CONT EXTERNAL RESIDENTIAL,498979,130280720,06-Oct-14,-531.21,THE COMMUNITY CARE COMPANY UK LTD,SP0000576
WANDSWORTH COUNCIL,ASC,SOCIAL SERVICES,Revenue,CUSTOMER & CLIENT RECPTS - EXT,CL CONT EXTERNAL RESIDENTIAL,504209,130280720,16-Oct-14,-330.81,EVERGREEN PARTNERSHIP,SP0000597
WANDSWORTH COUNCIL,ASC,SOCIAL SERVICES,Revenue,CUSTOMER & CLIENT RECPTS - EXT,CL CONT EXTERNAL RESIDENTIAL,507328,130280720,21-Oct-14,-307.99,EVERGREEN PARTNERSHIP,SP0000597
WANDSWORTH COUNCIL,ASC,SOCIAL SERVICES,Revenue,CUSTOMER & CLIENT RECPTS - EXT,CL CONT EXTERNAL RESIDENTIAL,512199,130280720,23-Oct-14,-319.40,LAETUS LODGE,SP0000600
WANDSWORTH COUNCIL,ASC,SOCIAL SERVICES,Revenue,CUSTOMER & CLIENT RECPTS - EXT,CL CONT EXTERNAL RESIDENTIAL,512201,130280720,23-Oct-14,-397.20,LAETUS LODGE,SP0000600
WANDSWORTH COUNCIL,ASC,SOCIAL SERVICES,Revenue,CUSTOMER & CLIENT RECPTS - EXT,CL CONT EXTERNAL RESIDENTIAL,512203,130280720,23-Oct-14,-96.52,LAETUS LODGE,SP0000600
WANDSWORTH COUNCIL,ASC,SOCIAL SERVICES,Revenue,CUSTOMER & CLIENT RECPTS - EXT,CL CONT EXTERNAL RESIDENTIAL,512204,130280720,23-Oct-14,-362.80,LAETUS LODGE,SP0000600
WANDSWORTH COUNCIL,ASC,SOCIAL SERVICES,Revenue,CUSTOMER & CLIENT RECPTS - EXT,CL CONT EXTERNAL RESIDENTIAL,512205,130280720,23-Oct-14,-319.40,LAETUS LODGE,SP0000600
WANDSWORTH COUNCIL,ASC,SOCIAL SERVICES,Revenue,CUSTOMER & CLIENT RECPTS - EXT,CL CONT EXTERNAL RESIDENTIAL,512206,130280720,23-Oct-14,-319.40,LAETUS LODGE,SP0000600
WANDSWORTH COUNCIL,ASC,SOCIAL SERVICES,Revenue,CUSTOMER & CLIENT RECPTS - EXT,CL CONT EXTERNAL RESIDENTIAL,518134,130280720,31-Oct-14,-353.63,MENCAP,SP0000604
WANDSWORTH COUNCIL,ASC,SOCIAL SERVICES,Revenue,CUSTOMER & CLIENT RECPTS - EXT,CL CONT EXTERNAL RESIDENTIAL,518135,130280720,31-Oct-14,-353.63,MENCAP,SP0000604
WANDSWORTH COUNCIL,ASC,SOCIAL SERVICES,Revenue,CUSTOMER & CLIENT RECPTS - EXT,CL CONT EXTERNAL RESIDENTIAL,518152,130280720,31-Oct-14,-353.63,MENCAP,SP0000604
WANDSWORTH COUNCIL,ASC,SOCIAL SERVICES,Revenue,CUSTOMER & CLIENT RECPTS - EXT,CL CONT EXTERNAL RESIDENTIAL,503961,130280720,16-Oct-14,-319.40,LIVABILITY,SP0000669
WANDSWORTH COUNCIL,ASC,SOCIAL SERVICES,Revenue,CUSTOMER & CLIENT RECPTS - EXT,CL CONT EXTERNAL RESIDENTIAL,512193,130280720,23-Oct-14,-319.40,LOVING CARE LTD,SP0000670
WANDSWORTH COUNCIL,ASC,SOCIAL SERVICES,Revenue,CUSTOMER & CLIENT RECPTS - EXT,CL CONT EXTERNAL RESIDENTIAL,512194,130280720,23-Oct-14,-319.40,LOVING CARE LTD,SP0000670
WANDSWORTH COUNCIL,ASC,SOCIAL SERVICES,Revenue,CUSTOMER & CLIENT RECPTS - EXT,CL CONT EXTERNAL RESIDENTIAL,512195,130280720,23-Oct-14,-319.40,LOVING CARE LTD,SP0000670
WANDSWORTH COUNCIL,ASC,SOCIAL SERVICES,Revenue,CUSTOMER & CLIENT RECPTS - EXT,CL CONT EXTERNAL RESIDENTIAL,512196,130280720,23-Oct-14,-315.20,LOVING CARE LTD,SP0000670
WANDSWORTH COUNCIL,ASC,SOCIAL SERVICES,Revenue,CUSTOMER & CLIENT RECPTS - EXT,CL CONT EXTERNAL RESIDENTIAL,512197,130280720,23-Oct-14,-319.40,LOVING CARE LTD,SP0000670
WANDSWORTH COUNCIL,ASC,SOCIAL SERVICES,Revenue,CUSTOMER & CLIENT RECPTS - EXT,CL CONT EXTERNAL RESIDENTIAL,513642,130280720,27-Oct-14,-319.40,LOVING CARE LTD,SP0000670
WANDSWORTH COUNCIL,ASC,SOCIAL SERVICES,Revenue,CUSTOMER & CLIENT RECPTS - EXT,CL CONT EXTERNAL RESIDENTIAL,518146,130280720,31-Oct-14,-353.63,THE MANOR HOUSE,SP0000728
WANDSWORTH COUNCIL,ASC,SOCIAL SERVICES,Revenue,CUSTOMER & CLIENT RECPTS - EXT,CL CONT EXTERNAL RESIDENTIAL,502272,130280720,15-Oct-14,-531.21,RALEIGH HOUSE LTD,SP0000760
WANDSWORTH COUNCIL,ASC,SOCIAL SERVICES,Revenue,CUSTOMER & CLIENT RECPTS - EXT,CL CONT EXTERNAL RESIDENTIAL,508193,130280720,21-Oct-14,-319.40,GLENCARE GROUP,SP0000791
WANDSWORTH COUNCIL,ASC,SOCIAL SERVICES,Revenue,CUSTOMER & CLIENT RECPTS - EXT,CL CONT EXTERNAL RESIDENTIAL,508194,130280720,21-Oct-14,-319.40,GLENCARE GROUP,SP0000791
WANDSWORTH COUNCIL,ASC,SOCIAL SERVICES,Revenue,CUSTOMER & CLIENT RECPTS - EXT,CL CONT EXTERNAL RESIDENTIAL,512256,130280720,23-Oct-14,-495.80,GLENCARE GROUP,SP0000791
WANDSWORTH COUNCIL,ASC,SOCIAL SERVICES,Revenue,CUSTOMER & CLIENT RECPTS - EXT,CL CONT EXTERNAL RESIDENTIAL,504204,130280720,16-Oct-14,-319.40,FREEWAYS TRUST LTD,SP0000793
WANDSWORTH COUNCIL,ASC,SOCIAL SERVICES,Revenue,CUSTOMER & CLIENT RECPTS - EXT,CL CONT EXTERNAL RESIDENTIAL,498968,130280720,06-Oct-14,-319.40,UNITED RESPONSE,SP0000797
WANDSWORTH COUNCIL,ASC,SOCIAL SERVICES,Revenue,CUSTOMER & CLIENT RECPTS - EXT,CL CONT EXTERNAL RESIDENTIAL,498969,130280720,06-Oct-14,-319.40,UNITED RESPONSE,SP0000797
WANDSWORTH COUNCIL,ASC,SOCIAL SERVICES,Revenue,CUSTOMER & CLIENT RECPTS - EXT,CL CONT EXTERNAL RESIDENTIAL,503957,130280720,16-Oct-14,-319.40,PROSPECTS,SP0000800
WANDSWORTH COUNCIL,ASC,SOCIAL SERVICES,Revenue,CUSTOMER & CLIENT RECPTS - EXT,CL CONT EXTERNAL RESIDENTIAL,496992,130280720,02-Oct-14,-342.21,WESSEX AUTISTIC SOCIETY,SP0000805
WANDSWORTH COUNCIL,ASC,SOCIAL SERVICES,Revenue,CUSTOMER & CLIENT RECPTS - EXT,CL CONT EXTERNAL RESIDENTIAL,515350,130280720,29-Oct-14,-353.63,FIRCROFT,SP0000840
WANDSWORTH COUNCIL,ASC,SOCIAL SERVICES,Revenue,CUSTOMER & CLIENT RECPTS - EXT,CL CONT EXTERNAL RESIDENTIAL,513666,130280720,27-Oct-14,-319.40,ROYAL MENCAP SOCIETY,SP0000842
WANDSWORTH COUNCIL,ASC,SOCIAL SERVICES,Revenue,CUSTOMER & CLIENT RECPTS - EXT,CL CONT EXTERNAL RESIDENTIAL,513667,130280720,27-Oct-14,-319.40,ROYAL MENCAP SOCIETY,SP0000842
WANDSWORTH COUNCIL,ASC,SOCIAL SERVICES,Revenue,CUSTOMER & CLIENT RECPTS - EXT,CL CONT EXTERNAL RESIDENTIAL,503968,130280720,16-Oct-14,-337.71,STALLCOMBE HOUSE,SP0000843
WANDSWORTH COUNCIL,ASC,SOCIAL SERVICES,Revenue,CUSTOMER & CLIENT RECPTS - EXT,CL CONT EXTERNAL RESIDENTIAL,513645,130280720,27-Oct-14,-382.85,SCOPE,SP0000852
WANDSWORTH COUNCIL,ASC,SOCIAL SERVICES,Revenue,CUSTOMER & CLIENT RECPTS - EXT,CL CONT EXTERNAL RESIDENTIAL,518158,130280720,31-Oct-14,-353.63,SCOPE,SP0000852
WANDSWORTH COUNCIL,ASC,SOCIAL SERVICES,Revenue,CUSTOMER & CLIENT RECPTS - EXT,CL CONT EXTERNAL RESIDENTIAL,518159,130280720,31-Oct-14,-382.85,SCOPE,SP0000852
WANDSWORTH COUNCIL,ASC,SOCIAL SERVICES,Revenue,CUSTOMER & CLIENT RECPTS - EXT,CL CONT EXTERNAL RESIDENTIAL,507316,130280720,21-Oct-14,-342.21,229 MITCHAM LANE LTD,SP0000884
WANDSWORTH COUNCIL,ASC,SOCIAL SERVICES,Revenue,CUSTOMER & CLIENT RECPTS - EXT,CL CONT EXTERNAL RESIDENTIAL,503949,130280720,16-Oct-14,-319.40,THE LEO TRUST,SP0000908
WANDSWORTH COUNCIL,ASC,SOCIAL SERVICES,Revenue,CUSTOMER & CLIENT RECPTS - EXT,CL CONT EXTERNAL RESIDENTIAL,512240,130280720,23-Oct-14,-319.40,REDACTED PERSONAL DATA,SP0000931
WANDSWORTH COUNCIL,ASC,SOCIAL SERVICES,Revenue,CUSTOMER & CLIENT RECPTS - EXT,CL CONT EXTERNAL RESIDENTIAL,508209,130280720,21-Oct-14,-319.40,MISSION CARE,SP0000958
WANDSWORTH COUNCIL,ASC,SOCIAL SERVICES,Revenue,CUSTOMER & CLIENT RECPTS - EXT,CL CONT EXTERNAL RESIDENTIAL,503975,130280720,16-Oct-14,-319.40,RIDGEWOOD CARE SERVICES LTD,SP0000969
WANDSWORTH COUNCIL,ASC,SOCIAL SERVICES,Revenue,CUSTOMER & CLIENT RECPTS - EXT,CL CONT EXTERNAL RESIDENTIAL,512258,130280720,23-Oct-14,-319.40,RIDGEWOOD CARE SERVICES LTD,SP0000969
WANDSWORTH COUNCIL,ASC,SOCIAL SERVICES,Revenue,CUSTOMER & CLIENT RECPTS - EXT,CL CONT EXTERNAL RESIDENTIAL,503963,130280720,16-Oct-14,-342.21,LEONARD CHESHIRE,SP0000976
WANDSWORTH COUNCIL,ASC,SOCIAL SERVICES,Revenue,CUSTOMER & CLIENT RECPTS - EXT,CL CONT EXTERNAL RESIDENTIAL,513641,130280720,27-Oct-14,-319.40,LOTUS CARE HOME LTD,SP0001006
WANDSWORTH COUNCIL,ASC,SOCIAL SERVICES,Revenue,CUSTOMER & CLIENT RECPTS - EXT,CL CONT EXTERNAL RESIDENTIAL,507332,130280720,21-Oct-14,-319.40,THE HOME FARM TRUST LTD,SP0001048
WANDSWORTH COUNCIL,ASC,SOCIAL SERVICES,Revenue,CUSTOMER & CLIENT RECPTS - EXT,CL CONT EXTERNAL RESIDENTIAL,507333,130280720,21-Oct-14,-506.92,THE HOME FARM TRUST LTD,SP0001048
WANDSWORTH COUNCIL,ASC,SOCIAL SERVICES,Revenue,CUSTOMER & CLIENT RECPTS - EXT,CL CONT EXTERNAL RESIDENTIAL,507334,130280720,21-Oct-14,-495.80,THE HOME FARM TRUST LTD,SP0001048
WANDSWORTH COUNCIL,ASC,SOCIAL SERVICES,Revenue,CUSTOMER & CLIENT RECPTS - EXT,CL CONT EXTERNAL RESIDENTIAL,513665,130280720,27-Oct-14,-495.80,THE HOME FARM TRUST LTD,SP0001048
WANDSWORTH COUNCIL,ASC,SOCIAL SERVICES,Revenue,CUSTOMER & CLIENT RECPTS - EXT,CL CONT EXTERNAL RESIDENTIAL,512253,130280720,23-Oct-14,-353.62,SAXON COURT,SP0001100
WANDSWORTH COUNCIL,ASC,SOCIAL SERVICES,Revenue,CUSTOMER & CLIENT RECPTS - EXT,CL CONT EXTERNAL RESIDENTIAL,512254,130280720,23-Oct-14,-353.62,SAXON COURT,SP0001100
WANDSWORTH COUNCIL,ASC,SOCIAL SERVICES,Revenue,CUSTOMER & CLIENT RECPTS - EXT,CL CONT EXTERNAL RESIDENTIAL,512255,130280720,23-Oct-14,-342.21,SAXON COURT,SP0001100
WANDSWORTH COUNCIL,ASC,SOCIAL SERVICES,Revenue,CUSTOMER & CLIENT RECPTS - EXT,CL CONT EXTERNAL RESIDENTIAL,512208,130280720,23-Oct-14,-362.80,TOTTERDOWN,SP0001113
WANDSWORTH COUNCIL,ASC,SOCIAL SERVICES,Revenue,CUSTOMER & CLIENT RECPTS - EXT,CL CONT EXTERNAL RESIDENTIAL,518173,130280720,31-Oct-14,-353.63,SUSSEX HEALTH CARE,SP0001115
WANDSWORTH COUNCIL,ASC,SOCIAL SERVICES,Revenue,CUSTOMER & CLIENT RECPTS - EXT,CL CONT EXTERNAL RESIDENTIAL,518138,130280720,31-Oct-14,-401.68,LONDON CARE PARTNERSHIP LTD,SP0001138
WANDSWORTH COUNCIL,ASC,SOCIAL SERVICES,Revenue,CUSTOMER & CLIENT RECPTS - EXT,CL CONT EXTERNAL RESIDENTIAL,518139,130280720,31-Oct-14,-291.27,LONDON CARE PARTNERSHIP LTD,SP0001138
WANDSWORTH COUNCIL,ASC,SOCIAL SERVICES,Revenue,CUSTOMER & CLIENT RECPTS - EXT,CL CONT EXTERNAL RESIDENTIAL,518140,130280720,31-Oct-14,-353.63,LONDON CARE PARTNERSHIP LTD,SP0001138
WANDSWORTH COUNCIL,ASC,SOCIAL SERVICES,Revenue,CUSTOMER & CLIENT RECPTS - EXT,CL CONT EXTERNAL RESIDENTIAL,518141,130280720,31-Oct-14,-439.76,LONDON CARE PARTNERSHIP LTD,SP0001138
WANDSWORTH COUNCIL,ASC,SOCIAL SERVICES,Revenue,CUSTOMER & CLIENT RECPTS - EXT,CL CONT EXTERNAL RESIDENTIAL,518142,130280720,31-Oct-14,-212.58,LONDON CARE PARTNERSHIP LTD,SP0001138
WANDSWORTH COUNCIL,ASC,SOCIAL SERVICES,Revenue,CUSTOMER & CLIENT RECPTS - EXT,CL CONT EXTERNAL RESIDENTIAL,518143,130280720,31-Oct-14,-401.68,LONDON CARE PARTNERSHIP LTD,SP0001138
WANDSWORTH COUNCIL,ASC,SOCIAL SERVICES,Revenue,CUSTOMER & CLIENT RECPTS - EXT,CL CONT EXTERNAL RESIDENTIAL,518137,130280720,31-Oct-14,-353.63,HOME FROM HOME CARE LIMITED,SP0001373
WANDSWORTH COUNCIL,ASC,SOCIAL SERVICES,Revenue,CUSTOMER & CLIENT RECPTS - EXT,CL CONT EXTERNAL RESIDENTIAL,513669,130280720,27-Oct-14,-362.80,LARKFIELD HALL LTD T/A PEPENBURY,SP0001378
WANDSWORTH COUNCIL,ASC,SOCIAL SERVICES,Revenue,CUSTOMER & CLIENT RECPTS - EXT,CL CONT EXTERNAL RESIDENTIAL,518160,130280720,31-Oct-14,-401.68,ROOKERY HOVE PRIORY,SP0001498
WANDSWORTH COUNCIL,ASC,SOCIAL SERVICES,Revenue,CUSTOMER & CLIENT RECPTS - EXT,CL CONT EXTERNAL RESIDENTIAL,503953,130280720,16-Oct-14,-319.40,MCCH SOCIETY LIMITED,SP0001531
WANDSWORTH COUNCIL,ASC,SOCIAL SERVICES,Revenue,CUSTOMER & CLIENT RECPTS - EXT,CL CONT EXTERNAL RESIDENTIAL,503954,130280720,16-Oct-14,-319.40,MCCH SOCIETY LIMITED,SP0001531
WANDSWORTH COUNCIL,ASC,SOCIAL SERVICES,Revenue,CUSTOMER & CLIENT RECPTS - EXT,CL CONT EXTERNAL RESIDENTIAL,518151,130280720,31-Oct-14,-381.69,NUTLEY HALL LTD,SP0001581
WANDSWORTH COUNCIL,ASC,SOCIAL SERVICES,Revenue,CUSTOMER & CLIENT RECPTS - EXT,CL CONT EXTERNAL RESIDENTIAL,518163,130280720,31-Oct-14,-311.55,CRAEGMOOR OLD RECTORY BREDE PRIORY,SP0001621
WANDSWORTH COUNCIL,ASC,SOCIAL SERVICES,Revenue,CUSTOMER & CLIENT RECPTS - EXT,CL CONT EXTERNAL RESIDENTIAL,512227,130280720,23-Oct-14,-953.49,ACH OF LONDON LLP,SP0001688
WANDSWORTH COUNCIL,ASC,SOCIAL SERVICES,Revenue,CUSTOMER & CLIENT RECPTS - EXT,CL CONT EXTERNAL RESIDENTIAL,518117,130280720,31-Oct-14,-439.76,ACH OF LONDON LLP,SP0001688
WANDSWORTH COUNCIL,ASC,SOCIAL SERVICES,Revenue,CUSTOMER & CLIENT RECPTS - EXT,CL CONT EXTERNAL RESIDENTIAL,504205,130280720,16-Oct-14,-319.40,THE BRANDON TRUST,SP0005337
WANDSWORTH COUNCIL,ASC,SOCIAL SERVICES,Revenue,CUSTOMER & CLIENT RECPTS - EXT,CL CONT EXTERNAL RESIDENTIAL,512261,130280720,23-Oct-14,-319.40,NORCREST (2000) HOME LTD,SP0008343
WANDSWORTH COUNCIL,ASC,SOCIAL SERVICES,Revenue,CUSTOMER & CLIENT RECPTS - EXT,CL CONT EXTERNAL RESIDENTIAL,512262,130280720,23-Oct-14,-319.40,NORCREST (2000) HOME LTD,SP0008343
WANDSWORTH COUNCIL,ASC,SOCIAL SERVICES,Revenue,CUSTOMER & CLIENT RECPTS - EXT,CL CONTS INTERNAL RESIDENTIAL,503977,130280760,16-Oct-14,-342.21,LEONARD CHESHIRE,SP0000976
WANDSWORTH COUNCIL,ASC,SOCIAL SERVICES,Revenue,CUSTOMER & CLIENT RECPTS - EXT,CLIENT CONTS EXTERNAL NURSING,502314,130280820,15-Oct-14,-319.40,WINGHAM COURT,SP0000025
WANDSWORTH COUNCIL,ASC,SOCIAL SERVICES,Revenue,CUSTOMER & CLIENT RECPTS - EXT,CLIENT CONTS EXTERNAL NURSING,508183,130280820,21-Oct-14,-535.64,ROSEDENE NURSING HOME,SP0000316
WANDSWORTH COUNCIL,ASC,SOCIAL SERVICES,Revenue,CUSTOMER & CLIENT RECPTS - EXT,CLIENT CONTS EXTERNAL NURSING,512259,130280820,23-Oct-14,-495.80,YEW TREE NURSING HOME,SP0000454
WANDSWORTH COUNCIL,ASC,SOCIAL SERVICES,Revenue,CUSTOMER & CLIENT RECPTS - EXT,CLIENT CONTS EXTERNAL NURSING,503946,130280820,16-Oct-14,-345.80,HIGH HURLANDS HOMES,SP0000668
WANDSWORTH COUNCIL,ASC,SOCIAL SERVICES,Revenue,CUSTOMER & CLIENT RECPTS - EXT,CLIENT CONTS EXTERNAL NURSING,507942,130280820,21-Oct-14,-387.40,TRINITY COURT NURSING HOME,SP0001001
WANDSWORTH COUNCIL,ASC,SOCIAL SERVICES,Revenue,CUSTOMER & CLIENT RECPTS - EXT,CLIENT CONTS EXTERNAL NURSING,497019,130280820,02-Oct-14,-551.49,CARE UK COMMUNITY PARTNERSHIP,SP0001022
WANDSWORTH COUNCIL,ASC,SOCIAL SERVICES,Revenue,CUSTOMER & CLIENT RECPTS - EXT,CLIENT CONTS EXTERNAL NURSING,507983,130280820,21-Oct-14,-262.53,YORK COURT CARE HOME,SP0006091
WANDSWORTH COUNCIL,ASC,SOCIAL SERVICES,Revenue,CUSTOMER & CLIENT RECPTS - EXT,CLIENT CONTS EXTERNAL NURSING,508009,130280820,21-Oct-14,-432.40,YORK COURT CARE HOME,SP0006091
WANDSWORTH COUNCIL,ASC,SOCIAL SERVICES,Revenue,CUSTOMER & CLIENT RECPTS - EXT,RNCC,502314,130284120,15-Oct-14,-443.56,WINGHAM COURT,SP0000025
WANDSWORTH COUNCIL,ASC,SOCIAL SERVICES,Revenue,CUSTOMER & CLIENT RECPTS - EXT,RNCC,518157,130284120,31-Oct-14,-491.09,RONALD GIBSON HOUSE,SP0000302
WANDSWORTH COUNCIL,ASC,SOCIAL SERVICES,Revenue,CUSTOMER & CLIENT RECPTS - EXT,RNCC,508183,130284120,21-Oct-14,-443.56,ROSEDENE NURSING HOME,SP0000316
WANDSWORTH COUNCIL,ASC,SOCIAL SERVICES,Revenue,CUSTOMER & CLIENT RECPTS - EXT,RNCC,512259,130284120,23-Oct-14,-443.56,YEW TREE NURSING HOME,SP0000454
WANDSWORTH COUNCIL,ASC,SOCIAL SERVICES,Revenue,CUSTOMER & CLIENT RECPTS - EXT,RNCC,503946,130284120,16-Oct-14,-610.44,HIGH HURLANDS HOMES,SP0000668
WANDSWORTH COUNCIL,ASC,SOCIAL SERVICES,Revenue,CUSTOMER & CLIENT RECPTS - EXT,RNCC,507942,130284120,21-Oct-14,-443.56,TRINITY COURT NURSING HOME,SP0001001
WANDSWORTH COUNCIL,ASC,SOCIAL SERVICES,Revenue,CUSTOMER & CLIENT RECPTS - EXT,RNCC,497019,130284120,02-Oct-14,-475.24,CARE UK COMMUNITY PARTNERSHIP,SP0001022
WANDSWORTH COUNCIL,ASC,SOCIAL SERVICES,Revenue,CUSTOMER & CLIENT RECPTS - EXT,RNCC,507983,130284120,21-Oct-14,-269.30,YORK COURT CARE HOME,SP0006091
WANDSWORTH COUNCIL,ASC,SOCIAL SERVICES,Revenue,CUSTOMER & CLIENT RECPTS - EXT,RNCC,508009,130284120,21-Oct-14,-443.56,YORK COURT CARE HOME,SP0006091
WANDSWORTH COUNCIL,ASC,ENVIRONMENT & COMMUNITY,Revenue,GRANTS & SUBSCRIPTIONS,CONTRACTS TO VOLUNTARY ORGS,500862,136137550,15-Oct-14,"1,076.33",HARINGEY ASSOCIATION FOR INDEPENDENT LIV,SP0000222
WANDSWORTH COUNCIL,ASC,ENVIRONMENT & COMMUNITY,Revenue,GRANTS & SUBSCRIPTIONS,CONTRACTS TO VOLUNTARY ORGS,500863,136137550,15-Oct-14,"1,139.89",HARINGEY ASSOCIATION FOR INDEPENDENT LIV,SP0000222
WANDSWORTH COUNCIL,ASC,ENVIRONMENT & COMMUNITY,Revenue,GRANTS & SUBSCRIPTIONS,CONTRACTS TO VOLUNTARY ORGS,500864,136137550,15-Oct-14,"1,830.60",HARINGEY ASSOCIATION FOR INDEPENDENT LIV,SP0000222
WANDSWORTH COUNCIL,ASC,ENVIRONMENT & COMMUNITY,Revenue,GRANTS & SUBSCRIPTIONS,CONTRACTS TO VOLUNTARY ORGS,500420,136237550,15-Oct-14,"5,839.40",WANDSWORTH MENCAP,SP0000834
WANDSWORTH COUNCIL,ASC,ENVIRONMENT & COMMUNITY,Revenue,GRANTS & SUBSCRIPTIONS,CONTRACTS TO VOLUNTARY ORGS,500826,136237550,16-Oct-14,922.70,WANDSWORTH MENCAP,SP0000834
WANDSWORTH COUNCIL,ASC,ENVIRONMENT & COMMUNITY,Revenue,GRANTS & SUBSCRIPTIONS,CONTRACTS TO VOLUNTARY ORGS,500827,136237550,16-Oct-14,922.70,WANDSWORTH MENCAP,SP0000834
WANDSWORTH COUNCIL,ASC,ENVIRONMENT & COMMUNITY,Revenue,GRANTS & SUBSCRIPTIONS,CONTRACTS TO VOLUNTARY ORGS,500411,136437550,15-Oct-14,"4,777.80",GENERATE OPPORTUNITIES LTD,SP0000503
WANDSWORTH COUNCIL,ASC,SOCIAL SERVICES,Revenue,DIRECT2,AGENCY STAFF,20293885,140000510,14-Oct-14,"1,477.54",SOUTH WEST LONDON & ST GEORGES MENTAL HEALTH NHS,2002084
WANDSWORTH COUNCIL,PH,SOCIAL SERVICES,Revenue,PRIVATE,EXTERNAL DAYCARE,504284,140145290,16-Oct-14,"1,008.00",JANUS DAY PROGRAMME,SP0008087
WANDSWORTH COUNCIL,PH,SOCIAL SERVICES,Revenue,PRIVATE,EXTERNAL DAYCARE,513314,140145290,24-Oct-14,795.00,JANUS DAY PROGRAMME,SP0008087
WANDSWORTH COUNCIL,PH,SOCIAL SERVICES,Revenue,PRIVATE,EXTERNAL HOMECARE,518239,140145300,31-Oct-14,450.00,CLEARUP SOLUTIONS,SP0001633
WANDSWORTH COUNCIL,PH,SOCIAL SERVICES,Revenue,PRIVATE,EXTERNAL RESIDENTIAL CARE,507310,140145330,21-Oct-14,"2,892.86",CRANSTOUN DRUG SERVICES,SP0000202
WANDSWORTH COUNCIL,PH,SOCIAL SERVICES,Revenue,PRIVATE,EXTERNAL RESIDENTIAL CARE,515349,140145330,29-Oct-14,675.00,CRANSTOUN DRUG SERVICES,SP0000202
WANDSWORTH COUNCIL,PH,SOCIAL SERVICES,Revenue,PRIVATE,EXTERNAL RESIDENTIAL CARE,513661,140145330,27-Oct-14,886.56,TREVI HOUSE LTD,SP0001055
WANDSWORTH COUNCIL,PH,SOCIAL SERVICES,Revenue,PRIVATE,EXTERNAL RESIDENTIAL CARE,498962,140145330,06-Oct-14,"2,699.96",STREETSCENE ADDICTION RECOVERY,SP0001163
WANDSWORTH COUNCIL,PH,SOCIAL SERVICES,Revenue,PRIVATE,EXTERNAL RESIDENTIAL CARE,513649,140145330,27-Oct-14,"2,177.60",STREETSCENE ADDICTION RECOVERY,SP0001163
WANDSWORTH COUNCIL,PH,SOCIAL SERVICES,Revenue,PRIVATE,EXTERNAL RESIDENTIAL CARE,513650,140145330,27-Oct-14,"2,588.04",STREETSCENE ADDICTION RECOVERY,SP0001163
WANDSWORTH COUNCIL,PH,SOCIAL SERVICES,Revenue,PRIVATE,EXTERNAL RESIDENTIAL CARE,515341,140145330,29-Oct-14,"2,599.92",STREETSCENE ADDICTION RECOVERY,SP0001163
WANDSWORTH COUNCIL,PH,SOCIAL SERVICES,Revenue,PRIVATE,EXTERNAL RESIDENTIAL CARE,518111,140145330,31-Oct-14,"1,294.02",STREETSCENE ADDICTION RECOVERY,SP0001163
WANDSWORTH COUNCIL,PH,SOCIAL SERVICES,Revenue,PRIVATE,EXTERNAL RESIDENTIAL CARE,515345,140145330,29-Oct-14,"2,380.00",WEYMOUTH AFTER-CARE CENTRE (CARLTON HOUS,SP0001300
WANDSWORTH COUNCIL,PH,SOCIAL SERVICES,Revenue,PRIVATE,EXTERNAL RESIDENTIAL CARE,515346,140145330,29-Oct-14,"2,380.00",WEYMOUTH AFTER-CARE CENTRE (CARLTON HOUS,SP0001300
WANDSWORTH COUNCIL,PH,SOCIAL SERVICES,Revenue,PRIVATE,EXTERNAL RESIDENTIAL CARE,513648,140145330,27-Oct-14,"2,571.43",MOUNT CARMEL,SP0001309
WANDSWORTH COUNCIL,PH,SOCIAL SERVICES,Revenue,PRIVATE,EXTERNAL RESIDENTIAL CARE,513646,140145330,27-Oct-14,769.53,KENWARD TRUST,SP0001418
WANDSWORTH COUNCIL,PH,SOCIAL SERVICES,Revenue,PRIVATE,EXTERNAL RESIDENTIAL CARE,513655,140145330,27-Oct-14,"2,360.00",KENWARD TRUST,SP0001418
WANDSWORTH COUNCIL,PH,SOCIAL SERVICES,Revenue,PRIVATE,EXTERNAL RESIDENTIAL CARE,515342,140145330,29-Oct-14,555.50,KENWARD TRUST,SP0001418
WANDSWORTH COUNCIL,PH,SOCIAL SERVICES,Revenue,PRIVATE,EXTERNAL RESIDENTIAL CARE,515372,140145330,29-Oct-14,555.50,KENWARD TRUST,SP0001418
WANDSWORTH COUNCIL,PH,SOCIAL SERVICES,Revenue,PRIVATE,EXTERNAL RESIDENTIAL CARE,498960,140145330,06-Oct-14,730.00,MERCIA CARE HOMES LTD T/A SEFTON PARK,SP0005828
WANDSWORTH COUNCIL,PH,SOCIAL SERVICES,Revenue,PRIVATE,EXTERNAL RESIDENTIAL CARE,498961,140145330,06-Oct-14,"2,908.46",FOUNDATION 66,SP0005873
WANDSWORTH COUNCIL,PH,SOCIAL SERVICES,Revenue,PRIVATE,EXTERNAL RESIDENTIAL CARE,507311,140145330,21-Oct-14,"2,963.57",FOUNDATION 66,SP0005873
WANDSWORTH COUNCIL,PH,SOCIAL SERVICES,Revenue,PRIVATE,EXTERNAL RESIDENTIAL CARE,513656,140145330,27-Oct-14,593.19,HEBRON TRUST,SP0008518
WANDSWORTH COUNCIL,PH,SOCIAL SERVICES,Revenue,PRIVATE,EXTERNAL RESIDENTIAL CARE,513657,140145330,27-Oct-14,"2,965.93",HEBRON TRUST,SP0008518
WANDSWORTH COUNCIL,PH,SOCIAL SERVICES,Revenue,VOL ASS,SUPPORTED HOUSING PROGRAMME,498956,140148030,06-Oct-14,"2,500.00",ADDICTION RECOVERY CENTRE,SP0001547
WANDSWORTH COUNCIL,PH,SOCIAL SERVICES,Revenue,VOL ASS,SUPPORTED HOUSING PROGRAMME,498957,140148030,06-Oct-14,"2,000.00",ADDICTION RECOVERY CENTRE,SP0001547
WANDSWORTH COUNCIL,PH,SOCIAL SERVICES,Revenue,VOL ASS,SUPPORTED HOUSING PROGRAMME,518108,140148030,31-Oct-14,"2,000.00",ADDICTION RECOVERY CENTRE,SP0001547
WANDSWORTH COUNCIL,PH,SOCIAL SERVICES,Revenue,VOL ASS,SUPPORTED HOUSING PROGRAMME,518109,140148030,31-Oct-14,"2,000.00",ADDICTION RECOVERY CENTRE,SP0001547
WANDSWORTH COUNCIL,PH,SOCIAL SERVICES,Revenue,VOL ASS,SUPPORTED HOUSING PROGRAMME,518110,140148030,31-Oct-14,"2,000.00",ADDICTION RECOVERY CENTRE,SP0001547
WANDSWORTH COUNCIL,PH,SOCIAL SERVICES,Revenue,CUSTOMER & CLIENT RECPTS - EXT,CL CONT EXTERNAL RESIDENTIAL,507310,140180720,21-Oct-14,-205.71,CRANSTOUN DRUG SERVICES,SP0000202
WANDSWORTH COUNCIL,PH,SOCIAL SERVICES,Revenue,CUSTOMER & CLIENT RECPTS - EXT,CL CONT EXTERNAL RESIDENTIAL,498962,140180720,06-Oct-14,-192.00,STREETSCENE ADDICTION RECOVERY,SP0001163
WANDSWORTH COUNCIL,PH,SOCIAL SERVICES,Revenue,CUSTOMER & CLIENT RECPTS - EXT,CL CONT EXTERNAL RESIDENTIAL,515341,140180720,29-Oct-14,-307.00,STREETSCENE ADDICTION RECOVERY,SP0001163
WANDSWORTH COUNCIL,PH,SOCIAL SERVICES,Revenue,CUSTOMER & CLIENT RECPTS - EXT,CL CONT EXTERNAL RESIDENTIAL,515345,140180720,29-Oct-14,-192.00,WEYMOUTH AFTER-CARE CENTRE (CARLTON HOUS,SP0001300
WANDSWORTH COUNCIL,PH,SOCIAL SERVICES,Revenue,CUSTOMER & CLIENT RECPTS - EXT,CL CONT EXTERNAL RESIDENTIAL,515346,140180720,29-Oct-14,-192.00,WEYMOUTH AFTER-CARE CENTRE (CARLTON HOUS,SP0001300
WANDSWORTH COUNCIL,PH,SOCIAL SERVICES,Revenue,CUSTOMER & CLIENT RECPTS - EXT,CL CONT EXTERNAL RESIDENTIAL,513648,140180720,27-Oct-14,-378.43,MOUNT CARMEL,SP0001309
WANDSWORTH COUNCIL,PH,SOCIAL SERVICES,Revenue,CUSTOMER & CLIENT RECPTS - EXT,CL CONT EXTERNAL RESIDENTIAL,513646,140180720,27-Oct-14,-109.64,KENWARD TRUST,SP0001418
WANDSWORTH COUNCIL,PH,SOCIAL SERVICES,Revenue,CUSTOMER & CLIENT RECPTS - EXT,CL CONT EXTERNAL RESIDENTIAL,513655,140180720,27-Oct-14,-307.00,KENWARD TRUST,SP0001418
WANDSWORTH COUNCIL,PH,SOCIAL SERVICES,Revenue,CUSTOMER & CLIENT RECPTS - EXT,CL CONT EXTERNAL RESIDENTIAL,515342,140180720,29-Oct-14,-47.80,KENWARD TRUST,SP0001418
WANDSWORTH COUNCIL,PH,SOCIAL SERVICES,Revenue,CUSTOMER & CLIENT RECPTS - EXT,CL CONT EXTERNAL RESIDENTIAL,515372,140180720,29-Oct-14,-47.80,KENWARD TRUST,SP0001418
WANDSWORTH COUNCIL,PH,SOCIAL SERVICES,Revenue,CUSTOMER & CLIENT RECPTS - EXT,CL CONT EXTERNAL RESIDENTIAL,498960,140180720,06-Oct-14,-79.85,MERCIA CARE HOMES LTD T/A SEFTON PARK,SP0005828
WANDSWORTH COUNCIL,PH,SOCIAL SERVICES,Revenue,CUSTOMER & CLIENT RECPTS - EXT,CL CONT EXTERNAL RESIDENTIAL,498961,140180720,06-Oct-14,-439.76,FOUNDATION 66,SP0005873
WANDSWORTH COUNCIL,PH,SOCIAL SERVICES,Revenue,CUSTOMER & CLIENT RECPTS - EXT,CL CONT EXTERNAL RESIDENTIAL,507311,140180720,21-Oct-14,-425.57,FOUNDATION 66,SP0005873
WANDSWORTH COUNCIL,PH,SOCIAL SERVICES,Revenue,CUSTOMER & CLIENT RECPTS - EXT,CL CONTS INTERNAL RESIDENTIAL,515349,140180760,29-Oct-14,-48.00,CRANSTOUN DRUG SERVICES,SP0000202
WANDSWORTH COUNCIL,ASC,ENVIRONMENT & COMMUNITY,Revenue,DIRECT2,AGENCY STAFF,518107,140400510,31-Oct-14,"10,801.23",SOUTH WEST LONDON & ST GEORGES MENTAL HE,SP0000358
WANDSWORTH COUNCIL,ASC,SOCIAL SERVICES,Revenue,OTHER AGENCIES,EXTERNAL OUTREACH,501338,140543330,14-Oct-14,940.56,ACTION ON HEARING LOSS,SP0000563
WANDSWORTH COUNCIL,ASC,SOCIAL SERVICES,Revenue,OTHER AGENCIES,EXTERNAL OUTREACH,507314,140543330,21-Oct-14,760.50,VIRIDIAN HOUSING,SP0001289
WANDSWORTH COUNCIL,ASC,SOCIAL SERVICES,Revenue,OTHER AGENCIES,EXTERNAL OUTREACH,507515,140543330,21-Oct-14,"1,391.00",VIRIDIAN HOUSING,SP0001289
WANDSWORTH COUNCIL,ASC,SOCIAL SERVICES,Revenue,OTHER AGENCIES,EXTERNAL OUTREACH,507517,140543330,21-Oct-14,"1,240.00",VIRIDIAN HOUSING,SP0001289
WANDSWORTH COUNCIL,ASC,SOCIAL SERVICES,Revenue,OTHER AGENCIES,EXTERNAL OUTREACH,501337,140543330,14-Oct-14,919.60,ACTION ON HEARING LOSS,SP0001359
WANDSWORTH COUNCIL,ASC,SOCIAL SERVICES,Revenue,PRIVATE,EXTERNAL RESIDENTIAL CARE,507305,140545330,21-Oct-14,"6,038.36",SIGNHEALTH,SP0000496
WANDSWORTH COUNCIL,ASC,SOCIAL SERVICES,Revenue,PRIVATE,EXTERNAL RESIDENTIAL CARE,507306,140545330,21-Oct-14,"7,041.92",SIGNHEALTH,SP0000496
WANDSWORTH COUNCIL,ASC,SOCIAL SERVICES,Revenue,PRIVATE,EXTERNAL RESIDENTIAL CARE,507307,140545330,21-Oct-14,"5,950.76",SIGNHEALTH,SP0000496
WANDSWORTH COUNCIL,ASC,SOCIAL SERVICES,Revenue,PRIVATE,EXTERNAL RESIDENTIAL CARE,501169,140545330,14-Oct-14,"4,800.00",ACTION ON HEARING LOSS,SP0000563
WANDSWORTH COUNCIL,ASC,SOCIAL SERVICES,Revenue,PRIVATE,EXTERNAL RESIDENTIAL CARE,513631,140545330,27-Oct-14,"4,800.00",ACTION ON HEARING LOSS,SP0000563
WANDSWORTH COUNCIL,ASC,SOCIAL SERVICES,Revenue,PRIVATE,EXTERNAL RESIDENTIAL CARE,497031,140545330,02-Oct-14,"4,024.32",VIRIDIAN HOUSING,SP0001289
WANDSWORTH COUNCIL,ASC,SOCIAL SERVICES,Revenue,PRIVATE,EXTERNAL RESIDENTIAL CARE,497032,140545330,02-Oct-14,"3,870.76",VIRIDIAN HOUSING,SP0001289
WANDSWORTH COUNCIL,ASC,SOCIAL SERVICES,Revenue,PRIVATE,EXTERNAL RESIDENTIAL CARE,515370,140545330,29-Oct-14,"4,024.32",VIRIDIAN HOUSING,SP0001289
WANDSWORTH COUNCIL,ASC,SOCIAL SERVICES,Revenue,PRIVATE,EXTERNAL RESIDENTIAL CARE,515371,140545330,29-Oct-14,"3,870.76",VIRIDIAN HOUSING,SP0001289
WANDSWORTH COUNCIL,ASC,SOCIAL SERVICES,Revenue,PRIVATE,EXTERNAL RESIDENTIAL CARE,515343,140545330,29-Oct-14,"5,155.16",ACTION ON HEARING LOSS,SP0001359
WANDSWORTH COUNCIL,ASC,SOCIAL SERVICES,Revenue,PRIVATE,EXTERNAL RESIDENTIAL CARE,497033,140545330,02-Oct-14,"10,511.04",BUTTERFLYS CARE HOMES LTD,SP0008006
WANDSWORTH COUNCIL,ASC,SOCIAL SERVICES,Revenue,PRIVATE,EXTERNAL RESIDENTIAL CARE,513658,140545330,27-Oct-14,"10,511.04",BUTTERFLYS CARE HOMES LTD,SP0008006
WANDSWORTH COUNCIL,ASC,SOCIAL SERVICES,Revenue,PRIVATE,EXTERNAL RESIDENTIAL CARE,513659,140545330,27-Oct-14,"10,511.04",BUTTERFLYS CARE HOMES LTD,SP0008006
WANDSWORTH COUNCIL,ASC,SOCIAL SERVICES,Revenue,CUSTOMER & CLIENT RECPTS - EXT,CL CONT EXTERNAL RESIDENTIAL,497031,140580720,02-Oct-14,-319.40,VIRIDIAN HOUSING,SP0001289
WANDSWORTH COUNCIL,ASC,SOCIAL SERVICES,Revenue,CUSTOMER & CLIENT RECPTS - EXT,CL CONT EXTERNAL RESIDENTIAL,497032,140580720,02-Oct-14,-319.40,VIRIDIAN HOUSING,SP0001289
WANDSWORTH COUNCIL,ASC,SOCIAL SERVICES,Revenue,CUSTOMER & CLIENT RECPTS - EXT,CL CONT EXTERNAL RESIDENTIAL,515370,140580720,29-Oct-14,-319.40,VIRIDIAN HOUSING,SP0001289
WANDSWORTH COUNCIL,ASC,SOCIAL SERVICES,Revenue,CUSTOMER & CLIENT RECPTS - EXT,CL CONT EXTERNAL RESIDENTIAL,515371,140580720,29-Oct-14,-319.40,VIRIDIAN HOUSING,SP0001289
WANDSWORTH COUNCIL,ASC,SOCIAL SERVICES,Revenue,OTHER AGENCIES,EXTERNAL OUTREACH,516019,142043330,30-Oct-14,616.72,NAS SERVICES LIMITED,SP0000217
WANDSWORTH COUNCIL,ASC,SOCIAL SERVICES,Revenue,PRIVATE,EXTERNAL HOMECARE,515558,142045300,29-Oct-14,546.01,LONDON CARE PLC,SP0001035
WANDSWORTH COUNCIL,ASC,SOCIAL SERVICES,Revenue,PRIVATE,EXTERNAL HOMECARE,512361,142045300,23-Oct-14,704.75,SUPREME CARE SERVICE LTD,SP0001600
WANDSWORTH COUNCIL,ASC,SOCIAL SERVICES,Revenue,PRIVATE,EXTERNAL NURSING CARE,507325,142045310,21-Oct-14,"3,400.00",HAVELOCK COURT NURSING HOME,SP0000024
WANDSWORTH COUNCIL,ASC,SOCIAL SERVICES,Revenue,PRIVATE,EXTERNAL NURSING CARE,502290,142045310,15-Oct-14,"2,815.88",ROSEDENE NURSING HOME,SP0000316
WANDSWORTH COUNCIL,ASC,SOCIAL SERVICES,Revenue,PRIVATE,EXTERNAL NURSING CARE,502293,142045310,15-Oct-14,"2,815.88",ROSEDENE NURSING HOME,SP0000316
WANDSWORTH COUNCIL,ASC,SOCIAL SERVICES,Revenue,PRIVATE,EXTERNAL NURSING CARE,502294,142045310,15-Oct-14,"2,815.88",ROSEDENE NURSING HOME,SP0000316
WANDSWORTH COUNCIL,ASC,SOCIAL SERVICES,Revenue,PRIVATE,EXTERNAL NURSING CARE,502295,142045310,15-Oct-14,"2,815.88",ROSEDENE NURSING HOME,SP0000316
WANDSWORTH COUNCIL,ASC,SOCIAL SERVICES,Revenue,PRIVATE,EXTERNAL NURSING CARE,512247,142045310,23-Oct-14,"2,815.88",ROSEDENE NURSING HOME,SP0000316
WANDSWORTH COUNCIL,ASC,SOCIAL SERVICES,Revenue,PRIVATE,EXTERNAL NURSING CARE,512248,142045310,23-Oct-14,"2,815.88",ROSEDENE NURSING HOME,SP0000316
WANDSWORTH COUNCIL,ASC,SOCIAL SERVICES,Revenue,PRIVATE,EXTERNAL NURSING CARE,512249,142045310,23-Oct-14,"2,815.88",ROSEDENE NURSING HOME,SP0000316
WANDSWORTH COUNCIL,ASC,SOCIAL SERVICES,Revenue,PRIVATE,EXTERNAL NURSING CARE,512252,142045310,23-Oct-14,"2,815.88",ROSEDENE NURSING HOME,SP0000316
WANDSWORTH COUNCIL,ASC,SOCIAL SERVICES,Revenue,PRIVATE,EXTERNAL NURSING CARE,507930,142045310,21-Oct-14,"3,138.52",TRINITY COURT NURSING HOME,SP0001001
WANDSWORTH COUNCIL,ASC,SOCIAL SERVICES,Revenue,PRIVATE,EXTERNAL NURSING CARE,507941,142045310,21-Oct-14,"2,828.00",TRINITY COURT NURSING HOME,SP0001001
WANDSWORTH COUNCIL,ASC,SOCIAL SERVICES,Revenue,PRIVATE,EXTERNAL RESIDENTIAL CARE,507918,142045330,21-Oct-14,"2,554.56",RICHARD CUSDEN HOMES LTD,SP0000268
WANDSWORTH COUNCIL,ASC,SOCIAL SERVICES,Revenue,PRIVATE,EXTERNAL RESIDENTIAL CARE,507921,142045330,21-Oct-14,"3,405.76",RICHARD CUSDEN HOMES LTD,SP0000268
WANDSWORTH COUNCIL,ASC,SOCIAL SERVICES,Revenue,PRIVATE,EXTERNAL RESIDENTIAL CARE,512235,142045330,23-Oct-14,"2,490.50",ASTRA HOMES LTD,SP0000374
WANDSWORTH COUNCIL,ASC,SOCIAL SERVICES,Revenue,PRIVATE,EXTERNAL RESIDENTIAL CARE,512236,142045330,23-Oct-14,"2,490.50",ASTRA HOMES LTD,SP0000374
WANDSWORTH COUNCIL,ASC,SOCIAL SERVICES,Revenue,PRIVATE,EXTERNAL RESIDENTIAL CARE,512237,142045330,23-Oct-14,"2,795.54",ASTRA HOMES LTD,SP0000374
WANDSWORTH COUNCIL,ASC,SOCIAL SERVICES,Revenue,PRIVATE,EXTERNAL RESIDENTIAL CARE,507354,142045330,21-Oct-14,"3,130.99",REDACTED PERSONAL DATA,SP0000408
WANDSWORTH COUNCIL,ASC,SOCIAL SERVICES,Revenue,PRIVATE,EXTERNAL RESIDENTIAL CARE,502359,142045330,15-Oct-14,"5,092.99",229 MITCHAM LANE LTD,SP0000884
WANDSWORTH COUNCIL,ASC,SOCIAL SERVICES,Revenue,PRIVATE,EXTERNAL RESIDENTIAL CARE,497034,142045330,02-Oct-14,"4,153.76",TOGETHER WORKING FOR WELLBEING,SP0000950
WANDSWORTH COUNCIL,ASC,SOCIAL SERVICES,Revenue,PRIVATE,EXTERNAL RESIDENTIAL CARE,507295,142045330,21-Oct-14,"2,424.00",QUANTUM CARE LTD,SP0001151
WANDSWORTH COUNCIL,ASC,SOCIAL SERVICES,Revenue,PRIVATE,EXTERNAL RESIDENTIAL CARE,512231,142045330,23-Oct-14,"3,109.03",THORNTON LODGE,SP0001197
WANDSWORTH COUNCIL,ASC,SOCIAL SERVICES,Revenue,PRIVATE,EXTERNAL RESIDENTIAL CARE,502316,142045330,15-Oct-14,"3,398.93",DEEPDENE CARE LTD,SP0001199
WANDSWORTH COUNCIL,ASC,SOCIAL SERVICES,Revenue,PRIVATE,EXTERNAL RESIDENTIAL CARE,502317,142045330,15-Oct-14,"3,404.11",DEEPDENE CARE LTD,SP0001199
WANDSWORTH COUNCIL,ASC,SOCIAL SERVICES,Revenue,PRIVATE,EXTERNAL RESIDENTIAL CARE,502319,142045330,15-Oct-14,"2,460.08",DEEPDENE CARE LTD,SP0001199
WANDSWORTH COUNCIL,ASC,SOCIAL SERVICES,Revenue,PRIVATE,EXTERNAL RESIDENTIAL CARE,502326,142045330,15-Oct-14,"3,058.99",DEEPDENE CARE LTD,SP0001199
WANDSWORTH COUNCIL,ASC,SOCIAL SERVICES,Revenue,PRIVATE,EXTERNAL RESIDENTIAL CARE,502327,142045330,15-Oct-14,"2,228.73",DEEPDENE CARE LTD,SP0001199
WANDSWORTH COUNCIL,ASC,SOCIAL SERVICES,Revenue,PRIVATE,EXTERNAL RESIDENTIAL CARE,502328,142045330,15-Oct-14,"2,228.69",DEEPDENE CARE LTD,SP0001199
WANDSWORTH COUNCIL,ASC,SOCIAL SERVICES,Revenue,PRIVATE,EXTERNAL RESIDENTIAL CARE,502329,142045330,15-Oct-14,"3,156.16",DEEPDENE CARE LTD,SP0001199
WANDSWORTH COUNCIL,ASC,SOCIAL SERVICES,Revenue,PRIVATE,EXTERNAL RESIDENTIAL CARE,502330,142045330,15-Oct-14,"2,228.68",DEEPDENE CARE LTD,SP0001199
WANDSWORTH COUNCIL,ASC,SOCIAL SERVICES,Revenue,PRIVATE,EXTERNAL RESIDENTIAL CARE,502331,142045330,15-Oct-14,"2,228.68",DEEPDENE CARE LTD,SP0001199
WANDSWORTH COUNCIL,ASC,SOCIAL SERVICES,Revenue,PRIVATE,EXTERNAL RESIDENTIAL CARE,507299,142045330,21-Oct-14,"2,625.04",REDACTED PERSONAL DATA,SP0001200
WANDSWORTH COUNCIL,ASC,SOCIAL SERVICES,Revenue,PRIVATE,EXTERNAL RESIDENTIAL CARE,507300,142045330,21-Oct-14,"2,714.40",REDACTED PERSONAL DATA,SP0001200
WANDSWORTH COUNCIL,ASC,SOCIAL SERVICES,Revenue,PRIVATE,EXTERNAL RESIDENTIAL CARE,512226,142045330,23-Oct-14,"2,193.10",CROWNWISE LTD,SP0001202
WANDSWORTH COUNCIL,ASC,SOCIAL SERVICES,Revenue,PRIVATE,EXTERNAL RESIDENTIAL CARE,502318,142045330,15-Oct-14,"9,224.02",ENIGMA CARE LTD,SP0001228
WANDSWORTH COUNCIL,ASC,SOCIAL SERVICES,Revenue,PRIVATE,EXTERNAL RESIDENTIAL CARE,498955,142045330,06-Oct-14,"2,440.00",ABBEY HOUSE,SP0001434
